Workbook

Sheet 星取り表112
B1: =+データ１!$B$2 -> 2023/2/25 | C1: =+データ１!$B$4 -> ２０２３年
B2: =+データ１!B6 -> スーパーリ－グ 第１７回大会 Aブロック ２０２３ | C2: =+IF(B3="","",+B3) -> 有馬スワローズ | F2: =+IF(B5="","",+B5) -> 麹町ドリームス | I2: =+IF(B7="","",+B7) -> 山野レッドイーグルス | L2: =+IF(B9="","",+B9) -> リトルジャイアンツ | O2: =+IF(B11="","",+B11) -> 大島タイガース | R2: =+IF(B13="","",+B13) -> 麻布キッズ | U2: =+IF(B15="","",+B15) -> 葛西ファイターズ | X2: =+IF(B17="","",+B17) -> コンバッツ | AA2: 勝 | AB2: 負 | AC2: 分 | AD2: 勝点 | AE2: 失点 | AF2: 得点 | AG2: 順位決定要素 | AH2: 順位
A3: 1 | B3: =IF(データ２!B2="","",VLOOKUP(A3,データ２!$A$2:$B$224,2)) -> 有馬スワローズ | C3: ＊ | L3: A | M3: - | N3: 3 | O3: A | P3: - | Q3: 4 | R3: A | S3: - | T3: 5 | AA3: =COUNTIF(C3:Z4,"○") -> 1 | AB3: =COUNTIF(C3:Z4,"●") -> 3 | AC3: =COUNTIF(C3:Z4,"△") -> 0 | AD3: =+AA3*3+AC3*1 -> 3 | AE3: =+H4+K4+N4+Q4+T4+W4+Z4 -> 40 | AF3: =+F4+I4+L4+O4+R4+U4+X4 -> 23 | AG3: =+RANK(AD3,$AD$3:$AD$18,0)*100+RANK(AE3,$AE$3:$AE$18,1)*10+RANK(AF3,$AF$3:$AF$18,0) -> 383 | AH3: =+RANK(AG3,$AG$3:$AG$18,1) -> 4
F4: 6 | G4: ○ | H4: 1 | I4: 6 | J4: ● | K4: 15 | M4: - | P4: - | S4: - | U4: 3 | V4: ● | W4: 12 | X4: 8 | Y4: ● | Z4: 12
A5: 2 | B5: =IF(データ２!B4="","",VLOOKUP(A5,データ２!$A$2:$B$224,2)) -> 麹町ドリームス | F5: ＊ | L5: A | M5: - | N5: 9 | O5: A | P5: - | Q5: 10 | R5: A | S5: - | T5: 11 | U5: A | V5: - | W5: 12 | X5: A | Y5: - | Z5: 13 | AA5: =COUNTIF(C5:Z6,"○") -> 0 | AB5: =COUNTIF(C5:Z6,"●") -> 2 | AC5: =COUNTIF(C5:Z6,"△") -> 0 | AD5: =+AA5*3+AC5*1 -> 0 | AE5: =+E6+K6+N6+Q6+T6+W6+Z6 -> 23 | AF5: =+C6+I6+L6+O6+R6+U6+X6 -> 1 | AG5: =+RANK(AD5,$AD$3:$AD$18,0)*100+RANK(AE5,$AE$3:$AE$18,1)*10+RANK(AF5,$AF$3:$AF$18,0) -> 567 | AH5: =+RANK(AG5,$AG$3:$AG$18,1) -> 8
C6: 1 | D6: ● | E6: 6 | I6: 0 | J6: ● | K6: 17 | M6: - | P6: - | S6: - | V6: - | Y6: -
A7: 3 | B7: =IF(データ２!B6="","",VLOOKUP(A7,データ２!$A$2:$B$224,2)) -> 山野レッドイーグルス | I7: ＊ | O7: A | P7: - | Q7: 15 | R7: A | S7: - | T7: 16 | AA7: =COUNTIF(C7:Z8,"○") -> 4 | AB7: =COUNTIF(C7:Z8,"●") -> 1 | AC7: =COUNTIF(C7:Z8,"△") -> 0 | AD7: =+AA7*3+AC7*1 -> 12 | AE7: =+E8+H8+N8+Q8+T8+W8+Z8 -> 18 | AF7: =C8+F8+L8+O8+R8+U8+X8 -> 58 | AG7: =+RANK(AD7,$AD$3:$AD$18,0)*100+RANK(AE7,$AE$3:$AE$18,1)*10+RANK(AF7,$AF$3:$AF$18,0) -> 151 | AH7: =+RANK(AG7,$AG$3:$AG$18,1) -> 2
C8: 15 | D8: ○ | E8: 6 | F8: 17 | G8: ○ | H8: 0 | L8: 16 | M8: ○ | N8: 5 | P8: - | S8: - | U8: 2 | V8: ● | W8: 5 | X8: 8 | Y8: ○ | Z8: 2
A9: 4 | B9: =IF(データ２!B8="","",VLOOKUP(A9,データ２!$A$2:$B$224,2)) -> リトルジャイアンツ | C9: A | D9: - | E9: 3 | F9: A | G9: - | H9: 9 | L9: ＊ | O9: A | P9: - | Q9: 19 | R9: A | S9: - | T9: 20 | U9: A | V9: - | W9: 21 | X9: A | Y9: - | Z9: 22 | AA9: =COUNTIF(C9:Z10,"○") -> 0 | AB9: =COUNTIF(C9:Z10,"●") -> 1 | AC9: =COUNTIF(C9:Z10,"△") -> 0 | AD9: =+AA9*3+AC9*1 -> 0 | AE9: =+E10+H10+K10+Q10+T10+W10+Z10 -> 16 | AF9: =C10+F10+I10+O10+R10+U10+X10 -> 5 | AG9: =+RANK(AD9,$AD$3:$AD$18,0)*100+RANK(AE9,$AE$3:$AE$18,1)*10+RANK(AF9,$AF$3:$AF$18,0) -> 545 | AH9: =+RANK(AG9,$AG$3:$AG$18,1) -> 7
D10: - | G10: - | I10: 5 | J10: ● | K10: 16 | P10: - | S10: - | V10: - | Y10: -
A11: 5 | B11: =IF(データ２!B10="","",VLOOKUP(A11,データ２!$A$2:$B$224,2)) -> 大島タイガース | C11: A | D11: - | E11: 4 | F11: A | G11: - | H11: 10 | I11: A | J11: - | K11: 15 | L11: A | M11: - | N11: 19 | O11: ＊ | R11: A | S11: - | T11: 23 | X11: A | Y11: - | Z11: 25 | AA11: =COUNTIF(C11:Z12,"○") -> 0 | AB11: =COUNTIF(C11:Z12,"●") -> 1 | AC11: =COUNTIF(C11:Z12,"△") -> 0 | AD11: =+AA11*3+AC11*1 -> 0 | AE11: =+E12+H12+K12+N12+T12+W12+Z12 -> 13 | AF11: =C12+F12+I12+L12+R12+U12+X12+AA12 -> 2 | AG11: =+RANK(AD11,$AD$3:$AD$18,0)*100+RANK(AE11,$AE$3:$AE$18,1)*10+RANK(AF11,$AF$3:$AF$18,0) -> 536 | AH11: =+RANK(AG11,$AG$3:$AG$18,1) -> 6
D12: - | G12: - | J12: - | M12: - | S12: - | U12: 2 | V12: ● | W12: 13 | Y12: -
A13: 6 | B13: =IF(データ２!B12="","",VLOOKUP(A13,データ２!$A$2:$B$224,2)) -> 麻布キッズ | C13: A | D13: - | E13: 5 | F13: A | G13: - | H13: 11 | I13: A | J13: - | K13: 16 | L13: A | M13: - | N13: 20 | O13: A | P13: - | Q13: 23 | R13: ＊ | U13: A | V13: - | W13: 26 | X13: A | Y13: - | Z13: 27 | AA13: =COUNTIF(C13:Z14,"○") -> 0 | AB13: =COUNTIF(C13:Z14,"●") -> 0 | AC13: =COUNTIF(C13:Z14,"△") -> 0 | AD13: =+AA13*3+AC13*1 -> 0 | AE13: =+E14+H14+K14+N14+Q14+W14+Z14 -> 0 | AF13: =C14+F14+I14+L14+O14+U14+X14 -> 0 | AG13: =+RANK(AD13,$AD$3:$AD$18,0)*100+RANK(AE13,$AE$3:$AE$18,1)*10+RANK(AF13,$AF$3:$AF$18,0) -> 518 | AH13: =+RANK(AG13,$AG$3:$AG$18,1) -> 5
D14: - | G14: - | J14: - | M14: - | P14: - | V14: - | Y14: -
A15: 7 | B15: =IF(データ２!B14="","",VLOOKUP(A15,データ２!$A$2:$B$224,2)) -> 葛西ファイターズ | F15: A | G15: - | H15: 12 | L15: A | M15: - | N15: 21 | R15: A | S15: - | T15: 26 | U15: ＊ | AA15: =COUNTIF(C15:Z16,"○") -> 4 | AB15: =COUNTIF(C15:Z16,"●") -> 0 | AC15: =COUNTIF(C15:Z16,"△") -> 0 | AD15: =+AA15*3+AC15*1 -> 12 | AE15: =+E16+H16+K16+N16+Q16+T16+Z16 -> 10 | AF15: =C16+F16+I16+L16+O16+R16+U16+X16 -> 47 | AG15: =+RANK(AD15,$AD$3:$AD$18,0)*100+RANK(AE15,$AE$3:$AE$18,1)*10+RANK(AF15,$AF$3:$AF$18,0) -> 122 | AH15: =+RANK(AG15,$AG$3:$AG$18,1) -> 1
C16: 12 | D16: ○ | E16: 3 | G16: - | I16: 5 | J16: ○ | K16: 2 | M16: - | O16: 13 | P16: ○ | Q16: 2 | S16: - | X16: 17 | Y16: ○ | Z16: 3
A17: 8 | B17: =IF(データ２!B16="","",VLOOKUP(A17,データ２!$A$2:$B$224,2)) -> コンバッツ | F17: A | G17: - | H17: 13 | L17: A | M17: - | N17: 22 | O17: A | P17: - | Q17: 25 | R17: A | S17: - | T17: 27 | X17: ＊ | AA17: =COUNTIF(C17:Z18,"○") -> 1 | AB17: =COUNTIF(C17:Z18,"●") -> 2 | AC17: =COUNTIF(C17:Z18,"△") -> 0 | AD17: =+AA17*3+AC17*1 -> 3 | AE17: =+E18+H18+K18+N18+Q18+T18+W18 -> 33 | AF17: =C18+F18+I18+L18+O18+R18+U18+X18 -> 17 | AG17: =+RANK(AD17,$AD$3:$AD$18,0)*100+RANK(AE17,$AE$3:$AE$18,1)*10+RANK(AF17,$AF$3:$AF$18,0) -> 374 | AH17: =+RANK(AG17,$AG$3:$AG$18,1) -> 3
C18: 12 | D18: ○ | E18: 8 | G18: - | I18: 2 | J18: ● | K18: 8 | M18: - | P18: - | S18: - | U18: 3 | V18: ● | W18: 17
AA19: =SUM(AA3:AA18) -> 10 | AB19: =SUM(AB3:AB18) -> 10 | AC19: =SUM(AC3:AC18) -> 0 | AE19: =SUM(AE3:AE18) -> 153 | AF19: 153 | AH19: =28-AA19-(AC19/2) -> 18
B20: =+データ１!$B$2 -> 2023/2/25 | C20: =+データ１!$B$4 -> ２０２３年
B21: =+データ１!B8 -> スーパーリ－グ 第１７回大会 Ｂブロック ２０２３ | C21: =+IF(B22="","",+B22) -> 葛飾アニマルズ | F21: =+IF(B24="","",+B24) -> 淀四ライオンズ | I21: =+IF(B26="","",+B26) -> エンジェルス | L21: =+IF(B28="","",+B28) -> 初台ビクトリー | O21: =+IF(B30="","",+B30) -> ニュー愛宕 | R21: =+IF(B32="","",+B32) -> 高輪クラブ | U21: =+IF(B34="","",+B34) -> 南篠崎ランチャーズ | X21: =+IF(B36="","",+B36) -> 勝どきドリームN | AA21: 勝 | AB21: 負 | AC21: 分 | AD21: 勝点 | AE21: 失点 | AF21: 得点 | AG21: 順位決定要素 | AH21: 順位
A22: 9 | B22: =IF(データ２!B18="","",VLOOKUP(A22,データ２!$A$2:$B$224,2)) -> 葛飾アニマルズ | C22: ＊ | F22: Ｂ | G22: - | H22: 1 | L22: Ｂ | M22: - | N22: 3 | R22: Ｂ | S22: - | T22: 5 | U22: Ｂ | V22: - | W22: 6 | X22: Ｂ | Y22: - | Z22: 7 | AA22: =COUNTIF(C22:Z23,"○") -> 1 | AB22: =COUNTIF(C22:Z23,"●") -> 1 | AC22: =COUNTIF(C22:Z23,"△") -> 0 | AD22: =+AA22*3+AC22*1 -> 3 | AE22: =+H23+K23+N23+Q23+T23+W23+Z23 -> 14 | AF22: =+F23+I23+L23+O23+R23+U23+X23 -> 8 | AG22: =+RANK(AD22,$AD$22:$AD$37,0)*100+RANK(AE22,$AE$22:$AE$37,1)*10+RANK(AF22,$AF$22:$AF$37,0) -> 536 | AH22: =+RANK(AG22,$AG$22:$AG$37,1) -> 5
G23: - | I23: 5 | J23: ○ | K23: 3 | M23: - | O23: 3 | P23: ● | Q23: 11 | S23: - | V23: - | Y23: -
A24: 10 | B24: =IF(データ２!B20="","",VLOOKUP(A24,データ２!$A$2:$B$224,2)) -> 淀四ライオンズ | C24: Ｂ | D24: - | E24: 1 | F24: ＊ | I24: Ｂ | J24: - | K24: 8 | L24: Ｂ | M24: - | N24: 9 | U24: Ｂ | V24: - | W24: 12 | AA24: =COUNTIF(C24:Z25,"○") -> 1 | AB24: =COUNTIF(C24:Z25,"●") -> 1 | AC24: =COUNTIF(C24:Z25,"△") -> 1 | AD24: =+AA24*3+AC24*1 -> 4 | AE24: =+E25+K25+N25+Q25+T25+W25+Z25 -> 18 | AF24: =+C25+I25+L25+O25+R25+U25+X25 -> 13 | AG24: =+RANK(AD24,$AD$22:$AD$37,0)*100+RANK(AE24,$AE$22:$AE$37,1)*10+RANK(AF24,$AF$22:$AF$37,0) -> 355 | AH24: =+RANK(AG24,$AG$22:$AG$37,1) -> 3
D25: - | J25: - | M25: - | O25: 6 | P25: ○ | Q25: 3 | R25: 1 | S25: ● | T25: 9 | V25: - | X25: 6 | Y25: △ | Z25: 6
A26: 11 | B26: =IF(データ２!B22="","",VLOOKUP(A26,データ２!$A$2:$B$224,2)) -> エンジェルス | F26: Ｂ | G26: - | H26: 8 | I26: ＊ | L26: Ｂ | M26: - | N26: 14 | R26: Ｂ | S26: - | T26: 16 | U26: Ｂ | V26: - | W26: 17 | AA26: =COUNTIF(C26:Z27,"○") -> 1 | AB26: =COUNTIF(C26:Z27,"●") -> 2 | AC26: =COUNTIF(C26:Z27,"△") -> 0 | AD26: =+AA26*3+AC26*1 -> 3 | AE26: =+E27+H27+N27+Q27+T27+W27+Z27 -> 22 | AF26: =C27+F27+L27+O27+R27+U27+X27 -> 15 | AG26: =+RANK(AD26,$AD$22:$AD$37,0)*100+RANK(AE26,$AE$22:$AE$37,1)*10+RANK(AF26,$AF$22:$AF$37,0) -> 574 | AH26: =+RANK(AG26,$AG$22:$AG$37,1) -> 6
C27: 3 | D27: ● | E27: 5 | G27: - | M27: - | O27: 5 | P27: ● | Q27: 11 | S27: - | V27: - | X27: 7 | Y27: ○ | Z27: 6
A28: 12 | B28: =IF(データ２!B24="","",VLOOKUP(A28,データ２!$A$2:$B$224,2)) -> 初台ビクトリー | C28: Ｂ | D28: - | E28: 3 | F28: Ｂ | G28: - | H28: 9 | I28: Ｂ | J28: - | K28: 14 | L28: ＊ | R28: Ｂ | S28: - | T28: 20 | U28: Ｂ | V28: - | W28: 21 | X28: Ｂ | Y28: - | Z28: 22 | AA28: =COUNTIF(C28:Z29,"○") -> 0 | AB28: =COUNTIF(C28:Z29,"●") -> 1 | AC28: =COUNTIF(C28:Z29,"△") -> 0 | AD28: =+AA28*3+AC28*1 -> 0 | AE28: =+E29+H29+K29+Q29+T29+W29+Z29 -> 6 | AF28: =C29+F29+I29+O29+R29+U29+X29 -> 2 | AG28: =+RANK(AD28,$AD$22:$AD$37,0)*100+RANK(AE28,$AE$22:$AE$37,1)*10+RANK(AF28,$AF$22:$AF$37,0) -> 728 | AH28: =+RANK(AG28,$AG$22:$AG$37,1) -> 7
D29: - | G29: - | J29: - | O29: 2 | P29: ● | Q29: 6 | S29: - | V29: - | Y29: -
A30: 13 | B30: =IF(データ２!B26="","",VLOOKUP(A30,データ２!$A$2:$B$224,2)) -> ニュー愛宕 | O30: ＊ | R30: Ｂ | S30: - | T30: 23 | U30: Ｂ | V30: - | W30: 24 | X30: Ｂ | Y30: - | Z30: 25 | AA30: =COUNTIF(C30:Z31,"○") -> 3 | AB30: =COUNTIF(C30:Z31,"●") -> 1 | AC30: =COUNTIF(C30:Z31,"△") -> 0 | AD30: =+AA30*3+AC30*1 -> 9 | AE30: =+E31+H31+K31+N31+T31+W31+Z31 -> 16 | AF30: =C31+F31+I31+L31+R31+U31+X31+AA31 -> 31 | AG30: =+RANK(AD30,$AD$22:$AD$37,0)*100+RANK(AE30,$AE$22:$AE$37,1)*10+RANK(AF30,$AF$22:$AF$37,0) -> 142 | AH30: =+RANK(AG30,$AG$22:$AG$37,1) -> 2
C31: 11 | D31: ○ | E31: 3 | F31: 3 | G31: ● | H31: 6 | I31: 11 | J31: ○ | K31: 5 | L31: 6 | M31: ○ | N31: 2 | S31: - | V31: - | Y31: -
A32: 14 | B32: =IF(データ２!B28="","",VLOOKUP(A32,データ２!$A$2:$B$224,2)) -> 高輪クラブ | C32: Ｂ | D32: - | E32: 5 | I32: Ｂ | J32: - | K32: 16 | L32: Ｂ | M32: - | N32: 20 | O32: Ｂ | P32: - | Q32: 23 | R32: ＊ | AA32: =COUNTIF(C32:Z33,"○") -> 3 | AB32: =COUNTIF(C32:Z33,"●") -> 0 | AC32: =COUNTIF(C32:Z33,"△") -> 0 | AD32: =+AA32*3+AC32*1 -> 9 | AE32: =+E33+H33+K33+N33+Q33+W33+Z33 -> 3 | AF32: =C33+F33+I33+L33+O33+U33+X33 -> 33 | AG32: =+RANK(AD32,$AD$22:$AD$37,0)*100+RANK(AE32,$AE$22:$AE$37,1)*10+RANK(AF32,$AF$22:$AF$37,0) -> 111 | AH32: =+RANK(AG32,$AG$22:$AG$37,1) -> 1
D33: - | F33: 9 | G33: ○ | H33: 1 | J33: - | M33: - | P33: - | U33: 12 | V33: ○ | W33: 2 | X33: 12 | Y33: ○ | Z33: 0
A34: 15 | B34: =IF(データ２!B30="","",VLOOKUP(A34,データ２!$A$2:$B$224,2)) -> 南篠崎ランチャーズ | C34: Ｂ | D34: - | E34: 6 | F34: Ｂ | G34: - | H34: 12 | I34: Ｂ | J34: - | K34: 17 | L34: Ｂ | M34: - | N34: 21 | O34: Ｂ | P34: - | Q34: 24 | U34: ＊ | AA34: =COUNTIF(C34:Z35,"○") -> 0 | AB34: =COUNTIF(C34:Z35,"●") -> 2 | AC34: =COUNTIF(C34:Z35,"△") -> 0 | AD34: =+AA34*3+AC34*1 -> 0 | AE34: =+E35+H35+K35+N35+Q35+T35+Z35 -> 19 | AF34: =C35+F35+I35+L35+O35+R35+U35+X35 -> 8 | AG34: =+RANK(AD34,$AD$22:$AD$37,0)*100+RANK(AE34,$AE$22:$AE$37,1)*10+RANK(AF34,$AF$22:$AF$37,0) -> 766 | AH34: =+RANK(AG34,$AG$22:$AG$37,1) -> 8
D35: - | G35: - | J35: - | M35: - | P35: - | R35: 2 | S35: ● | T35: 12 | X35: 6 | Y35: ● | Z35: 7
A36: 16 | B36: =IF(データ２!B32="","",VLOOKUP(A36,データ２!$A$2:$B$224,2)) -> 勝どきドリームN | C36: Ｂ | D36: - | E36: 7 | L36: Ｂ | M36: - | N36: 22 | O36: Ｂ | P36: - | Q36: 25 | X36: ＊ | AA36: =COUNTIF(C36:Z37,"○") -> 1 | AB36: =COUNTIF(C36:Z37,"●") -> 2 | AC36: =COUNTIF(C36:Z37,"△") -> 1 | AD36: =+AA36*3+AC36*1 -> 4 | AE36: =+E37+H37+K37+N37+Q37+T37+W37 -> 31 | AF36: =C37+F37+I37+L37+O37+R37+U37+X37 -> 19 | AG36: =+RANK(AD36,$AD$22:$AD$37,0)*100+RANK(AE36,$AE$22:$AE$37,1)*10+RANK(AF36,$AF$22:$AF$37,0) -> 383 | AH36: =+RANK(AG36,$AG$22:$AG$37,1) -> 4
D37: - | F37: 6 | G37: △ | H37: 6 | I37: 6 | J37: ● | K37: 7 | M37: - | P37: - | R37: 0 | S37: ● | T37: 12 | U37: 7 | V37: ○ | W37: 6
AA38: =SUM(AA22:AA37) -> 10 | AB38: =SUM(AB22:AB37) -> 10 | AC38: =SUM(AC22:AC37) -> 2 | AE38: =SUM(AE22:AE37) -> 129 | AF38: =SUM(AF22:AF37) -> 129 | AH38: =28-AA38-(AC38/2) -> 17
B39: =+データ１!$B$2 -> 2023/2/25 | C39: =+データ１!$B$4 -> ２０２３年
B40: =+データ１!B10 -> スーパーリ－グ 第１７回大会 Ｃブロック ２０２３ | C40: =+IF(B41="","",+B41) -> 高島エイト | F40: =+IF(B43="","",+B43) -> 新宿ドリーム | I40: =+IF(B45="","",+B45) -> 糀谷イーグルス | L40: =+IF(B47="","",+B47) -> 富ヶ谷ノーティーボーイズ | O40: =+IF(B49="","",+B49) -> 深川レッドソックス | R40: =+IF(B51="","",+B51) -> 御殿山ファイターズ | U40: =+IF(B53="","",+B53) -> 堀小スワローズ | X40: =+IF(B55="","",+B55) -> 豊島ブレイズ | AA40: 勝 | AB40: 負 | AC40: 分 | AD40: 勝点 | AE40: 失点 | AF40: 得点 | AG40: 順位決定要素 | AH40: 順位
A41: 17 | B41: =IF(データ２!B34="","",VLOOKUP(A41,データ２!$A$2:$B$224,2)) -> 高島エイト | C41: ＊ | F41: Ｃ | G41: - | H41: 1 | I41: Ｃ | J41: - | K41: 2 | O41: Ｃ | P41: - | Q41: 4 | U41: Ｃ | V41: - | W41: 6 | AA41: =COUNTIF(C41:Z42,"○") -> 2 | AB41: =COUNTIF(C41:Z42,"●") -> 1 | AC41: =COUNTIF(C41:Z42,"△") -> 0 | AD41: =+AA41*3+AC41*1 -> 6 | AE41: =+H42+K42+N42+Q42+T42+W42+Z42 -> 15 | AF41: =+F42+I42+L42+O42+R42+U42+X42 -> 28 | AG41: =+RANK(AD41,$AD$41:$AD$56,0)*100+RANK(AE41,$AE$41:$AE$56,1)*10+RANK(AF41,$AF$41:$AF$56,0) -> 333 | AH41: =+RANK(AG41,$AG$41:$AG$56,1) -> 3
G42: - | J42: - | L42: 9 | M42: ○ | N42: 4 | P42: - | R42: 16 | S42: ○ | T42: 5 | V42: - | X42: 3 | Y42: ● | Z42: 6
A43: 18 | B43: =IF(データ２!B36="","",VLOOKUP(A43,データ２!$A$2:$B$224,2)) -> 新宿ドリーム | C43: Ｃ | D43: - | E43: 1 | F43: ＊ | I43: Ｃ | J43: - | K43: 8 | L43: Ｃ | M43: - | N43: 9 | R43: Ｃ | S43: - | T43: 11 | X43: Ｃ | Y43: - | Z43: 13 | AA43: =COUNTIF(C43:Z44,"○") -> 0 | AB43: =COUNTIF(C43:Z44,"●") -> 2 | AC43: =COUNTIF(C43:Z44,"△") -> 0 | AD43: =+AA43*3+AC43*1 -> 0 | AE43: =+E44+K44+N44+Q44+T44+W44+Z44 -> 36 | AF43: =+C44+I44+L44+O44+R44+U44+X44 -> 1 | AG43: =+RANK(AD43,$AD$41:$AD$56,0)*100+RANK(AE43,$AE$41:$AE$56,1)*10+RANK(AF43,$AF$41:$AF$56,0) -> 688 | AH43: =+RANK(AG43,$AG$41:$AG$56,1) -> 8
D44: - | J44: - | M44: - | O44: 0 | P44: ● | Q44: 17 | S44: - | U44: 1 | V44: ● | W44: 19 | Y44: -
A45: 19 | B45: =IF(データ２!B38="","",VLOOKUP(A45,データ２!$A$2:$B$224,2)) -> 糀谷イーグルス | C45: Ｃ | D45: - | E45: 2 | F45: Ｃ | G45: - | H45: 8 | I45: ＊ | L45: Ｃ | M45: - | N45: 14 | R45: Ｃ | S45: - | T45: 16 | AA45: =COUNTIF(C45:Z46,"○") -> 1 | AB45: =COUNTIF(C45:Z46,"●") -> 1 | AC45: =COUNTIF(C45:Z46,"△") -> 1 | AD45: =+AA45*3+AC45*1 -> 4 | AE45: =+E46+H46+N46+Q46+T46+W46+Z46 -> 24 | AF45: =C46+F46+L46+O46+R46+U46+X46 -> 15 | AG45: =+RANK(AD45,$AD$41:$AD$56,0)*100+RANK(AE45,$AE$41:$AE$56,1)*10+RANK(AF45,$AF$41:$AF$56,0) -> 555 | AH45: =+RANK(AG45,$AG$41:$AG$56,1) -> 5
D46: - | G46: - | M46: - | O46: 10 | P46: ○ | Q46: 3 | S46: - | U46: 4 | V46: △ | W46: 4 | X46: 1 | Y46: ● | Z46: 17
A47: 20 | B47: =IF(データ２!B40="","",VLOOKUP(A47,データ２!$A$2:$B$224,2)) -> 富ヶ谷ノーティーボーイズ | F47: Ｃ | G47: - | H47: 9 | I47: Ｃ | J47: - | K47: 14 | L47: ＊ | O47: Ｃ | P47: - | Q47: 19 | R47: Ｃ | S47: - | T47: 20 | U47: Ｃ | V47: - | W47: 21 | AA47: =COUNTIF(C47:Z48,"○") -> 0 | AB47: =COUNTIF(C47:Z48,"●") -> 2 | AC47: =COUNTIF(C47:Z48,"△") -> 0 | AD47: =+AA47*3+AC47*1 -> 0 | AE47: =+E48+H48+K48+Q48+T48+W48+Z48 -> 18 | AF47: =C48+F48+I48+O48+R48+U48+X48 -> 7 | AG47: =+RANK(AD47,$AD$41:$AD$56,0)*100+RANK(AE47,$AE$41:$AE$56,1)*10+RANK(AF47,$AF$41:$AF$56,0) -> 647 | AH47: =+RANK(AG47,$AG$41:$AG$56,1) -> 6
C48: 4 | D48: ● | E48: 9 | G48: - | J48: - | P48: - | S48: - | V48: - | X48: 3 | Y48: ● | Z48: 9
A49: 21 | B49: =IF(データ２!B42="","",VLOOKUP(A49,データ２!$A$2:$B$224,2)) -> 深川レッドソックス | C49: Ｃ | D49: - | E49: 4 | L49: Ｃ | M49: - | N49: 19 | O49: ＊ | AA49: =COUNTIF(C49:Z50,"○") -> 2 | AB49: =COUNTIF(C49:Z50,"●") -> 2 | AC49: =COUNTIF(C49:Z50,"△") -> 1 | AD49: =+AA49*3+AC49*1 -> 7 | AE49: =+E50+H50+K50+N50+T50+W50+Z50 -> 27 | AF49: =C50+F50+I50+L50+R50+U50+X50+AA50 -> 45 | AG49: =+RANK(AD49,$AD$41:$AD$56,0)*100+RANK(AE49,$AE$41:$AE$56,1)*10+RANK(AF49,$AF$41:$AF$56,0) -> 261 | AH49: =+RANK(AG49,$AG$41:$AG$56,1) -> 2
D50: - | F50: 17 | G50: ○ | H50: 0 | I50: 3 | J50: ● | K50: 10 | M50: - | R50: 18 | S50: ○ | T50: 5 | U50: 4 | V50: △ | W50: 4 | X50: 3 | Y50: ● | Z50: 8
A51: 22 | B51: =IF(データ２!B44="","",VLOOKUP(A51,データ２!$A$2:$B$224,2)) -> 御殿山ファイターズ | F51: Ｃ | G51: - | H51: 11 | I51: Ｃ | J51: - | K51: 16 | L51: Ｃ | M51: - | N51: 20 | R51: ＊ | U51: Ｃ | V51: - | W51: 26 | X51: Ｃ | Y51: - | Z51: 27 | AA51: =COUNTIF(C51:Z52,"○") -> 0 | AB51: =COUNTIF(C51:Z52,"●") -> 2 | AC51: =COUNTIF(C51:Z52,"△") -> 0 | AD51: =+AA51*3+AC51*1 -> 0 | AE51: =+E52+H52+K52+N52+Q52+W52+Z52 -> 34 | AF51: =C52+F52+I52+L52+O52+U52+X52 -> 10 | AG51: =+RANK(AD51,$AD$41:$AD$56,0)*100+RANK(AE51,$AE$41:$AE$56,1)*10+RANK(AF51,$AF$41:$AF$56,0) -> 676 | AH51: =+RANK(AG51,$AG$41:$AG$56,1) -> 7
C52: 5 | D52: ● | E52: 16 | G52: - | J52: - | M52: - | O52: 5 | P52: ● | Q52: 18 | V52: - | Y52: -
A53: 23 | B53: =IF(データ２!B46="","",VLOOKUP(A53,データ２!$A$2:$B$224,2)) -> 堀小スワローズ | C53: Ｃ | D53: - | E53: 6 | L53: Ｃ | M53: - | N53: 21 | R53: Ｃ | S53: - | T53: 26 | U53: ＊ | X53: Ｃ | Y53: - | Z53: 28 | AA53: =COUNTIF(C53:Z54,"○") -> 1 | AB53: =COUNTIF(C53:Z54,"●") -> 0 | AC53: =COUNTIF(C53:Z54,"△") -> 2 | AD53: =+AA53*3+AC53*1 -> 5 | AE53: =+E54+H54+K54+N54+Q54+T54+Z54 -> 9 | AF53: =C54+F54+I54+L54+O54+R54+U54+X54 -> 27 | AG53: =+RANK(AD53,$AD$41:$AD$56,0)*100+RANK(AE53,$AE$41:$AE$56,1)*10+RANK(AF53,$AF$41:$AF$56,0) -> 414 | AH53: =+RANK(AG53,$AG$41:$AG$56,1) -> 4
D54: - | F54: 19 | G54: ○ | H54: 1 | I54: 4 | J54: △ | K54: 4 | M54: - | O54: 4 | P54: △ | Q54: 4 | S54: - | Y54: -
A55: 24 | B55: =IF(データ２!B48="","",VLOOKUP(A55,データ２!$A$2:$B$224,2)) -> 豊島ブレイズ | F55: Ｃ | G55: - | H55: 13 | R55: Ｃ | S55: - | T55: 27 | U55: Ｃ | V55: - | W55: 28 | X55: ＊ | AA55: =COUNTIF(C55:Z56,"○") -> 4 | AB55: =COUNTIF(C55:Z56,"●") -> 0 | AC55: =COUNTIF(C55:Z56,"△") -> 0 | AD55: =+AA55*3+AC55*1 -> 12 | AE55: =+E56+H56+K56+N56+Q56+T56+W56 -> 10 | AF55: =C56+F56+I56+L56+O56+R56+U56+X56 -> 40 | AG55: =+RANK(AD55,$AD$41:$AD$56,0)*100+RANK(AE55,$AE$41:$AE$56,1)*10+RANK(AF55,$AF$41:$AF$56,0) -> 122 | AH55: =+RANK(AG55,$AG$41:$AG$56,1) -> 1
C56: 6 | D56: ○ | E56: 3 | G56: - | I56: 17 | J56: ○ | K56: 1 | L56: 9 | M56: ○ | N56: 3 | O56: 8 | P56: ○ | Q56: 3 | S56: - | V56: -
AA57: =SUM(AA41:AA56) -> 10 | AB57: =SUM(AB41:AB56) -> 10 | AC57: =SUM(AC41:AC56) -> 4 | AE57: =SUM(AE41:AE56) -> 173 | AF57: =SUM(AF41:AF56) -> 173 | AH57: =28-AA57-(AC57/2) -> 16
B58: =+データ１!$B$2 -> 2023/2/25 | C58: =+データ１!$B$4 -> ２０２３年
B59: =+データ１!B12 -> スーパーリ－グ 第１７回大会 Ｄブロック ２０２３ | C59: =+IF(B60="","",+B60) -> 品川ドリームキッズ | F59: =+IF(B62="","",+B62) -> 扇ターキーズ | I59: =+IF(B64="","",+B64) -> トゥールスジュニア | L59: =+IF(B66="","",+B66) -> 文京パワーズ | O59: =+IF(B68="","",+B68) -> 江東ジョーズ | R59: =+IF(B70="","",+B70) -> サンジュニア | U59: =+IF(B72="","",+B72) -> 興宮ファイターズ | X59: =+IF(B74="","",+B74) -> 不動パイレーツ | AA59: 勝 | AB59: 負 | AC59: 分 | AD59: 勝点 | AE59: 失点 | AF59: 得点 | AG59: 順位決定要素 | AH59: 順位
A60: 25 | B60: =IF(データ２!B50="","",VLOOKUP(A60,データ２!$A$2:$B$224,2)) -> 品川ドリームキッズ | C60: ＊ | F60: Ｄ | G60: - | H60: 1 | I60: Ｄ | J60: - | K60: 2 | U60: Ｄ | V60: - | W60: 6 | AA60: =COUNTIF(C60:Z61,"○") -> 1 | AB60: =COUNTIF(C60:Z61,"●") -> 3 | AC60: =COUNTIF(C60:Z61,"△") -> 0 | AD60: =+AA60*3+AC60*1 -> 3 | AE60: =+H61+K61+N61+Q61+T61+W61+Z61 -> 22 | AF60: =+F61+I61+L61+O61+R61+U61+X61 -> 16 | AG60: =+RANK(AD60,$AD$60:$AD$75,0)*100+RANK(AE60,$AE$60:$AE$75,1)*10+RANK(AF60,$AF$60:$AF$75,0) -> 646 | AH60: =+RANK(AG60,$AG$60:$AG$75,1) -> 6
G61: - | J61: - | L61: 3 | M61: ● | N61: 4 | O61: 2 | P61: ● | Q61: 4 | R61: 7 | S61: ○ | T61: 4 | V61: - | X61: 4 | Y61: ● | Z61: 10
A62: 26 | B62: =IF(データ２!B52="","",VLOOKUP(A62,データ２!$A$2:$B$224,2)) -> 扇ターキーズ | C62: Ｄ | D62: - | E62: 1 | F62: ＊ | X62: Ｄ | Y62: - | Z62: 13 | AA62: =COUNTIF(C62:Z63,"○") -> 4 | AB62: =COUNTIF(C62:Z63,"●") -> 1 | AC62: =COUNTIF(C62:Z63,"△") -> 0 | AD62: =+AA62*3+AC62*1 -> 12 | AE62: =+E63+K63+N63+Q63+T63+W63+Z63 -> 24 | AF62: =+C63+I63+L63+O63+R63+U63+X63 -> 31 | AG62: =+RANK(AD62,$AD$60:$AD$75,0)*100+RANK(AE62,$AE$60:$AE$75,1)*10+RANK(AF62,$AF$60:$AF$75,0) -> 152 | AH62: =+RANK(AG62,$AG$60:$AG$75,1) -> 1
D63: - | I63: 4 | J63: ○ | K63: 3 | L63: 4 | M63: ● | N63: 5 | O63: 7 | P63: ○ | Q63: 3 | R63: 10 | S63: ○ | T63: 8 | U63: 6 | V63: ○ | W63: 5 | Y63: -
A64: 27 | B64: =IF(データ２!B54="","",VLOOKUP(A64,データ２!$A$2:$B$224,2)) -> トゥールスジュニア | C64: Ｄ | D64: - | E64: 2 | I64: ＊ | L64: Ｄ | M64: - | N64: 14 | O64: Ｄ | P64: - | Q64: 15 | X64: Ｄ | Y64: - | Z64: 18 | AA64: =COUNTIF(C64:Z65,"○") -> 0 | AB64: =COUNTIF(C64:Z65,"●") -> 3 | AC64: =COUNTIF(C64:Z65,"△") -> 0 | AD64: =+AA64*3+AC64*1 -> 0 | AE64: =+E65+H65+N65+Q65+T65+W65+Z65 -> 17 | AF64: =C65+F65+L65+O65+R65+U65+X65 -> 13 | AG64: =+RANK(AD64,$AD$60:$AD$75,0)*100+RANK(AE64,$AE$60:$AE$75,1)*10+RANK(AF64,$AF$60:$AF$75,0) -> 838 | AH64: =+RANK(AG64,$AG$60:$AG$75,1) -> 8
D65: - | F65: 3 | G65: ● | H65: 4 | M65: - | P65: - | R65: 4 | S65: ● | T65: 5 | U65: 6 | V65: ● | W65: 8 | Y65: -
A66: 28 | B66: =IF(データ２!B56="","",VLOOKUP(A66,データ２!$A$2:$B$224,2)) -> 文京パワーズ | I66: Ｄ | J66: - | K66: 14 | L66: ＊ | O66: Ｄ | P66: - | Q66: 19 | U66: Ｄ | V66: - | W66: 21 | X66: Ｄ | Y66: - | Z66: 22 | AA66: =COUNTIF(C66:Z67,"○") -> 3 | AB66: =COUNTIF(C66:Z67,"●") -> 0 | AC66: =COUNTIF(C66:Z67,"△") -> 0 | AD66: =+AA66*3+AC66*1 -> 9 | AE66: =+E67+H67+K67+Q67+T67+W67+Z67 -> 11 | AF66: =C67+F67+I67+O67+R67+U67+X67 -> 15 | AG66: =+RANK(AD66,$AD$60:$AD$75,0)*100+RANK(AE66,$AE$60:$AE$75,1)*10+RANK(AF66,$AF$60:$AF$75,0) -> 227 | AH66: =+RANK(AG66,$AG$60:$AG$75,1) -> 3
C67: 4 | D67: ○ | E67: 3 | F67: 5 | G67: ○ | H67: 4 | J67: - | P67: - | R67: 6 | S67: ○ | T67: 4 | V67: - | Y67: -
A68: 29 | B68: =IF(データ２!B58="","",VLOOKUP(A68,データ２!$A$2:$B$224,2)) -> 江東ジョーズ | I68: Ｄ | J68: - | K68: 15 | L68: Ｄ | M68: - | N68: 19 | O68: ＊ | X68: Ｄ | Y68: - | Z68: 25 | AA68: =COUNTIF(C68:Z69,"○") -> 1 | AB68: =COUNTIF(C68:Z69,"●") -> 3 | AC68: =COUNTIF(C68:Z69,"△") -> 0 | AD68: =+AA68*3+AC68*1 -> 3 | AE68: =+E69+H69+K69+N69+T69+W69+Z69 -> 26 | AF68: =C69+F69+I69+L69+R69+U69+X69+AA69 -> 20 | AG68: =+RANK(AD68,$AD$60:$AD$75,0)*100+RANK(AE68,$AE$60:$AE$75,1)*10+RANK(AF68,$AF$60:$AF$75,0) -> 665 | AH68: =+RANK(AG68,$AG$60:$AG$75,1) -> 7
C69: 4 | D69: ○ | E69: 2 | F69: 3 | G69: ● | H69: 7 | J69: - | M69: - | R69: 6 | S69: ● | T69: 7 | U69: 7 | V69: ● | W69: 10 | Y69: -
A70: 30 | B70: =IF(データ２!B60="","",VLOOKUP(A70,データ２!$A$2:$B$224,2)) -> サンジュニア | R70: ＊ | AA70: =COUNTIF(C70:Z71,"○") -> 2 | AB70: =COUNTIF(C70:Z71,"●") -> 5 | AC70: =COUNTIF(C70:Z71,"△") -> 0 | AD70: =+AA70*3+AC70*1 -> 6 | AE70: =+E71+H71+K71+N71+Q71+W71+Z71 -> 45 | AF70: =C71+F71+I71+L71+O71+U71+X71 -> 33 | AG70: =+RANK(AD70,$AD$60:$AD$75,0)*100+RANK(AE70,$AE$60:$AE$75,1)*10+RANK(AF70,$AF$60:$AF$75,0) -> 581 | AH70: =+RANK(AG70,$AG$60:$AG$75,1) -> 5
C71: 4 | D71: ● | E71: 7 | F71: 8 | G71: ● | H71: 10 | I71: 5 | J71: ○ | K71: 4 | L71: 4 | M71: ● | N71: 6 | O71: 7 | P71: ○ | Q71: 6 | U71: 0 | V71: ● | W71: 3 | X71: 5 | Y71: ● | Z71: 9
A72: 31 | B72: =IF(データ２!B62="","",VLOOKUP(A72,データ２!$A$2:$B$224,2)) -> 興宮ファイターズ | C72: Ｄ | D72: - | E72: 6 | L72: Ｄ | M72: - | N72: 21 | U72: ＊ | AA72: =COUNTIF(C72:Z73,"○") -> 3 | AB72: =COUNTIF(C72:Z73,"●") -> 2 | AC72: =COUNTIF(C72:Z73,"△") -> 0 | AD72: =+AA72*3+AC72*1 -> 9 | AE72: =+E73+H73+K73+N73+Q73+T73+Z73 -> 27 | AF72: =C73+F73+I73+L73+O73+R73+U73+X73 -> 26 | AG72: =+RANK(AD72,$AD$60:$AD$75,0)*100+RANK(AE72,$AE$60:$AE$75,1)*10+RANK(AF72,$AF$60:$AF$75,0) -> 274 | AH72: =+RANK(AG72,$AG$60:$AG$75,1) -> 4
D73: - | F73: 5 | G73: ● | H73: 6 | I73: 8 | J73: ○ | K73: 6 | M73: - | O73: 10 | P73: ○ | Q73: 7 | R73: 3 | S73: ○ | T73: 0 | X73: 0 | Y73: ● | Z73: 8
A74: 32 | B74: =IF(データ２!B64="","",VLOOKUP(A74,データ２!$A$2:$B$224,2)) -> 不動パイレーツ | F74: Ｄ | G74: - | H74: 13 | I74: Ｄ | J74: - | K74: 18 | L74: Ｄ | M74: - | N74: 22 | O74: Ｄ | P74: - | Q74: 25 | X74: ＊ | AA74: =COUNTIF(C74:Z75,"○") -> 3 | AB74: =COUNTIF(C74:Z75,"●") -> 0 | AC74: =COUNTIF(C74:Z75,"△") -> 0 | AD74: =+AA74*3+AC74*1 -> 9 | AE74: =+E75+H75+K75+N75+Q75+T75+W75 -> 9 | AF74: =C75+F75+I75+L75+O75+R75+U75+X75 -> 27 | AG74: =+RANK(AD74,$AD$60:$AD$75,0)*100+RANK(AE74,$AE$60:$AE$75,1)*10+RANK(AF74,$AF$60:$AF$75,0) -> 213 | AH74: =+RANK(AG74,$AG$60:$AG$75,1) -> 2
C75: 10 | D75: ○ | E75: 4 | G75: - | J75: - | M75: - | P75: - | R75: 9 | S75: ○ | T75: 5 | U75: 8 | V75: ○ | W75: 0
AA76: =SUM(AA60:AA75) -> 17 | AB76: =SUM(AB60:AB75) -> 17 | AC76: =SUM(AC60:AC75) -> 0 | AE76: =SUM(AE60:AE75) -> 181 | AF76: =SUM(AF60:AF75) -> 181 | AH76: =28-AA76-(AC76/2) -> 11
B77: =+データ１!$B$2 -> 2023/2/25 | C77: =+データ１!$B$4 -> ２０２３年
B78: =+データ１!B14 -> スーパーリ－グ 第１７回大会 Ｅブロック ２０２３ | C78: =+IF(B79="","",+B79) -> オール麻布 | F78: =+IF(B81="","",+B81) -> ブラックキラーズ | I78: =+IF(B83="","",+B83) -> ブラザースクラブ | L78: =+IF(B85="","",+B85) -> 茗荷谷クラブ | O78: =+IF(B87="","",+B87) -> 深川ライナーズ | R78: =+IF(B89="","",+B89) -> 浅草ベースボールクラブ | U78: =+IF(B91="","",+B91) -> 向陽台スターキッズ | X78: =+IF(B93="","",+B93) -> 中央バンディーズ | AA78: 勝 | AB78: 負 | AC78: 分 | AD78: 勝点 | AE78: 失点 | AF78: 得点 | AG78: 順位決定要素 | AH78: 順位
A79: 33 | B79: =IF(データ２!B66="","",VLOOKUP(A79,データ２!$A$2:$B$224,2)) -> オール麻布 | C79: ＊ | F79: Ｅ | G79: - | H79: 1 | I79: Ｅ | J79: - | K79: 2 | O79: Ｅ | P79: - | Q79: 4 | R79: Ｅ | S79: - | T79: 5 | AA79: =COUNTIF(C79:Z80,"○") -> 0 | AB79: =COUNTIF(C79:Z80,"●") -> 3 | AC79: =COUNTIF(C79:Z80,"△") -> 0 | AD79: =+AA79*3+AC79*1 -> 0 | AE79: =+H80+K80+N80+Q80+T80+W80+Z80 -> 31 | AF79: =+F80+I80+L80+O80+R80+U80+X80 -> 13 | AG79: =+RANK(AD79,$AD$79:$AD$94,0)*100+RANK(AE79,$AE$79:$AE$94,1)*10+RANK(AF79,$AF$79:$AF$94,0) -> 675 | AH79: =+RANK(AG79,$AG$79:$AG$94,1) -> 7
G80: - | J80: - | L80: 3 | M80: ● | N80: 15 | P80: - | S80: - | U80: 6 | V80: ● | W80: 7 | X80: 4 | Y80: ● | Z80: 9
A81: 34 | B81: =IF(データ２!B68="","",VLOOKUP(A81,データ２!$A$2:$B$224,2)) -> ブラックキラーズ | C81: Ｅ | D81: - | E81: 1 | F81: ＊ | I81: Ｅ | J81: - | K81: 8 | L81: Ｅ | M81: - | N81: 9 | O81: Ｅ | P81: - | Q81: 10 | U81: Ｅ | V81: - | W81: 12 | AA81: =COUNTIF(C81:Z82,"○") -> 0 | AB81: =COUNTIF(C81:Z82,"●") -> 2 | AC81: =COUNTIF(C81:Z82,"△") -> 0 | AD81: =+AA81*3+AC81*1 -> 0 | AE81: =+E82+K82+N82+Q82+T82+W82+Z82 -> 38 | AF81: =+C82+I82+L82+O82+R82+U82+X82 -> 2 | AG81: =+RANK(AD81,$AD$79:$AD$94,0)*100+RANK(AE81,$AE$79:$AE$94,1)*10+RANK(AF81,$AF$79:$AF$94,0) -> 687 | AH81: =+RANK(AG81,$AG$79:$AG$94,1) -> 8
D82: - | J82: - | M82: - | P82: - | R82: 2 | S82: ● | T82: 20 | V82: - | X82: 0 | Y82: ● | Z82: 18
A83: 35 | B83: =IF(データ２!B70="","",VLOOKUP(A83,データ２!$A$2:$B$224,2)) -> ブラザースクラブ | C83: Ｅ | D83: - | E83: 2 | F83: Ｅ | G83: - | H83: 8 | I83: ＊ | L83: Ｅ | M83: - | N83: 14 | O83: Ｅ | P83: - | Q83: 15 | R83: Ｅ | S83: - | T83: 16 | U83: Ｅ | V83: - | W83: 17 | X83: Ｅ | Y83: - | Z83: 18 | AA83: =COUNTIF(C83:Z84,"○") -> 0 | AB83: =COUNTIF(C83:Z84,"●") -> 0 | AC83: =COUNTIF(C83:Z84,"△") -> 0 | AD83: =+AA83*3+AC83*1 -> 0 | AE83: =+E84+H84+N84+Q84+T84+W84+Z84 -> 0 | AF83: =C84+F84+L84+O84+R84+U84+X84 -> 0 | AG83: =+RANK(AD83,$AD$79:$AD$94,0)*100+RANK(AE83,$AE$79:$AE$94,1)*10+RANK(AF83,$AF$79:$AF$94,0) -> 618 | AH83: =+RANK(AG83,$AG$79:$AG$94,1) -> 6
D84: - | G84: - | M84: - | P84: - | S84: - | V84: - | Y84: -
A85: 36 | B85: =IF(データ２!B72="","",VLOOKUP(A85,データ２!$A$2:$B$224,2)) -> 茗荷谷クラブ | F85: Ｅ | G85: - | H85: 9 | I85: Ｅ | J85: - | K85: 14 | L85: ＊ | R85: Ｅ | S85: - | T85: 20 | X85: Ｅ | Y85: - | Z85: 22 | AA85: =COUNTIF(C85:Z86,"○") -> 3 | AB85: =COUNTIF(C85:Z86,"●") -> 0 | AC85: =COUNTIF(C85:Z86,"△") -> 0 | AD85: =+AA85*3+AC85*1 -> 9 | AE85: =+E86+H86+K86+Q86+T86+W86+Z86 -> 7 | AF85: =C86+F86+I86+O86+R86+U86+X86 -> 45 | AG85: =+RANK(AD85,$AD$79:$AD$94,0)*100+RANK(AE85,$AE$79:$AE$94,1)*10+RANK(AF85,$AF$79:$AF$94,0) -> 121 | AH85: =+RANK(AG85,$AG$79:$AG$94,1) -> 1
C86: 15 | D86: ○ | E86: 3 | G86: - | J86: - | O86: 9 | P86: ○ | Q86: 2 | S86: - | U86: 21 | V86: ○ | W86: 2 | Y86: -
A87: 37 | B87: =IF(データ２!B74="","",VLOOKUP(A87,データ２!$A$2:$B$224,2)) -> 深川ライナーズ | C87: Ｅ | D87: - | E87: 4 | F87: Ｅ | G87: - | H87: 10 | I87: Ｅ | J87: - | K87: 15 | O87: ＊ | U87: Ｅ | V87: - | W87: 24 | AA87: =COUNTIF(C87:Z88,"○") -> 1 | AB87: =COUNTIF(C87:Z88,"●") -> 2 | AC87: =COUNTIF(C87:Z88,"△") -> 0 | AD87: =+AA87*3+AC87*1 -> 3 | AE87: =+E88+H88+K88+N88+T88+W88+Z88 -> 24 | AF87: =C88+F88+I88+L88+R88+U88+X88+AA88 -> 17 | AG87: =+RANK(AD87,$AD$79:$AD$94,0)*100+RANK(AE87,$AE$79:$AE$94,1)*10+RANK(AF87,$AF$79:$AF$94,0) -> 354 | AH87: =+RANK(AG87,$AG$79:$AG$94,1) -> 4
D88: - | G88: - | J88: - | L88: 2 | M88: ● | N88: 9 | R88: 12 | S88: ○ | T88: 3 | V88: - | X88: 3 | Y88: ● | Z88: 12
A89: 38 | B89: =IF(データ２!B76="","",VLOOKUP(A89,データ２!$A$2:$B$224,2)) -> 浅草ベースボールクラブ | C89: Ｅ | D89: - | E89: 5 | I89: Ｅ | J89: - | K89: 16 | L89: Ｅ | M89: - | N89: 20 | R89: ＊ | U89: Ｅ | V89: - | W89: 26 | X89: Ｅ | Y89: - | Z89: 27 | AA89: =COUNTIF(C89:Z90,"○") -> 1 | AB89: =COUNTIF(C89:Z90,"●") -> 1 | AC89: =COUNTIF(C89:Z90,"△") -> 0 | AD89: =+AA89*3+AC89*1 -> 3 | AE89: =+E90+H90+K90+N90+Q90+W90+Z90 -> 14 | AF89: =C90+F90+I90+L90+O90+U90+X90 -> 23 | AG89: =+RANK(AD89,$AD$79:$AD$94,0)*100+RANK(AE89,$AE$79:$AE$94,1)*10+RANK(AF89,$AF$79:$AF$94,0) -> 343 | AH89: =+RANK(AG89,$AG$79:$AG$94,1) -> 3
D90: - | F90: 20 | G90: ○ | H90: 2 | J90: - | M90: - | O90: 3 | P90: ● | Q90: 12 | V90: - | Y90: -
A91: 39 | B91: =IF(データ２!B78="","",VLOOKUP(A91,データ２!$A$2:$B$224,2)) -> 向陽台スターキッズ | F91: Ｅ | G91: - | H91: 12 | I91: Ｅ | J91: - | K91: 17 | O91: Ｅ | P91: - | Q91: 24 | R91: Ｅ | S91: - | T91: 26 | U91: ＊ | X91: Ｅ | Y91: - | Z91: 28 | AA91: =COUNTIF(C91:Z92,"○") -> 1 | AB91: =COUNTIF(C91:Z92,"●") -> 1 | AC91: =COUNTIF(C91:Z92,"△") -> 0 | AD91: =+AA91*3+AC91*1 -> 3 | AE91: =+E92+H92+K92+N92+Q92+T92+Z92 -> 27 | AF91: =C92+F92+I92+L92+O92+R92+U92+X92 -> 9 | AG91: =+RANK(AD91,$AD$79:$AD$94,0)*100+RANK(AE91,$AE$79:$AE$94,1)*10+RANK(AF91,$AF$79:$AF$94,0) -> 366 | AH91: =+RANK(AG91,$AG$79:$AG$94,1) -> 5
C92: 7 | D92: ○ | E92: 6 | G92: - | J92: - | L92: 2 | M92: ● | N92: 21 | P92: - | S92: - | Y92: -
A93: 40 | B93: =IF(データ２!B80="","",VLOOKUP(A93,データ２!$A$2:$B$224,2)) -> 中央バンディーズ | I93: Ｅ | J93: - | K93: 18 | L93: Ｅ | M93: - | N93: 22 | R93: Ｅ | S93: - | T93: 27 | U93: Ｅ | V93: - | W93: 28 | X93: ＊ | AA93: =COUNTIF(C93:Z94,"○") -> 3 | AB93: =COUNTIF(C93:Z94,"●") -> 0 | AC93: =COUNTIF(C93:Z94,"△") -> 0 | AD93: =+AA93*3+AC93*1 -> 9 | AE93: =+E94+H94+K94+N94+Q94+T94+W94 -> 7 | AF93: =C94+F94+I94+L94+O94+R94+U94+X94 -> 39 | AG93: =+RANK(AD93,$AD$79:$AD$94,0)*100+RANK(AE93,$AE$79:$AE$94,1)*10+RANK(AF93,$AF$79:$AF$94,0) -> 122 | AH93: =+RANK(AG93,$AG$79:$AG$94,1) -> 2
C94: 9 | D94: ○ | E94: 4 | F94: 18 | G94: ○ | H94: 0 | J94: - | M94: - | O94: 12 | P94: ○ | Q94: 3 | S94: - | V94: -
AA95: =SUM(AA79:AA94) -> 9 | AB95: =SUM(AB79:AB94) -> 9 | AC95: =SUM(AC79:AC94) -> 0 | AE95: =SUM(AE79:AE94) -> 148 | AF95: =SUM(AF79:AF94) -> 148 | AH95: =28-AA95-(AC95/2) -> 19
B96: =+データ１!$B$2 -> 2023/2/25 | C96: =+データ１!$B$4 -> ２０２３年
B97: =+データ１!B16 -> スーパーリ－グ 第１７回大会 Ｆブロック ２０２３ | C97: =+IF(B98="","",+B98) -> 大島中央 | F97: =+IF(B100="","",+B100) -> ジュニアヤンガース | I97: =+IF(B102="","",+B102) -> KCレッドジャッカル | L97: =+IF(B104="","",+B104) -> 菊坂ファイヤーズ | O97: =+IF(B106="","",+B106) -> 亀戸合同 | R97: =+IF(B108="","",+B108) -> 本村クラブ | U97: =+IF(B110="","",+B110) -> 高井戸東少年野球クラブ | X97: =+IF(B112="","",+B112) -> 駒込ベアーズ | AA97: 勝 | AB97: 負 | AC97: 分 | AD97: 勝点 | AE97: 失点 | AF97: 得点 | AG97: 順位決定要素 | AH97: 順位
A98: 41 | B98: =IF(データ２!B82="","",VLOOKUP(A98,データ２!$A$2:$B$224,2)) -> 大島中央 | C98: ＊ | F98: Ｆ | G98: - | H98: 1 | I98: Ｆ | J98: - | K98: 2 | L98: Ｆ | M98: - | N98: 3 | R98: Ｆ | S98: - | T98: 5 | U98: Ｆ | V98: - | W98: 6 | AA98: =COUNTIF(C98:Z99,"○") -> 2 | AB98: =COUNTIF(C98:Z99,"●") -> 0 | AC98: =COUNTIF(C98:Z99,"△") -> 0 | AD98: =+AA98*3+AC98*1 -> 6 | AE98: =+H99+K99+N99+Q99+T99+W99+Z99 -> 6 | AF98: =+F99+I99+L99+O99+R99+U99+X99 -> 23 | AG98: =+RANK(AD98,$AD$98:$AD$113,0)*100+RANK(AE98,$AE$98:$AE$113,1)*10+RANK(AF98,$AF$98:$AF$113,0) -> 233 | AH98: =+RANK(AG98,$AG$98:$AG$113,1) -> 3
G99: - | J99: - | M99: - | O99: 10 | P99: ○ | Q99: 1 | S99: - | V99: - | X99: 13 | Y99: ○ | Z99: 5
A100: 42 | B100: =IF(データ２!B84="","",VLOOKUP(A100,データ２!$A$2:$B$224,2)) -> ジュニアヤンガース | C100: Ｆ | D100: - | E100: 1 | F100: ＊ | I100: Ｆ | J100: - | K100: 8 | X100: Ｆ | Y100: - | Z100: 13 | AA100: =COUNTIF(C100:Z101,"○") -> 0 | AB100: =COUNTIF(C100:Z101,"●") -> 4 | AC100: =COUNTIF(C100:Z101,"△") -> 0 | AD100: =+AA100*3+AC100*1 -> 0 | AE100: =+E101+K101+N101+Q101+T101+W101+Z101 -> 57 | AF100: =+C101+I101+L101+O101+R101+U101+X101 -> 14 | AG100: =+RANK(AD100,$AD$98:$AD$113,0)*100+RANK(AE100,$AE$98:$AE$113,1)*10+RANK(AF100,$AF$98:$AF$113,0) -> 686 | AH100: =+RANK(AG100,$AG$98:$AG$113,1) -> 8
D101: - | J101: - | L101: 6 | M101: ● | N101: 8 | O101: 4 | P101: ● | Q101: 14 | R101: 4 | S101: ● | T101: 17 | U101: 0 | V101: ● | W101: 18 | Y101: -
A102: 43 | B102: =IF(データ２!B86="","",VLOOKUP(A102,データ２!$A$2:$B$224,2)) -> KCレッドジャッカル | C102: Ｆ | D102: - | E102: 2 | F102: Ｆ | G102: - | H102: 8 | I102: ＊ | O102: Ｆ | P102: - | Q102: 15 | X102: Ｆ | Y102: - | Z102: 18 | AA102: =COUNTIF(C102:Z103,"○") -> 0 | AB102: =COUNTIF(C102:Z103,"●") -> 3 | AC102: =COUNTIF(C102:Z103,"△") -> 0 | AD102: =+AA102*3+AC102*1 -> 0 | AE102: =+E103+H103+N103+Q103+T103+W103+Z103 -> 37 | AF102: =C103+F103+L103+O103+R103+U103+X103 -> 6 | AG102: =+RANK(AD102,$AD$98:$AD$113,0)*100+RANK(AE102,$AE$98:$AE$113,1)*10+RANK(AF102,$AF$98:$AF$113,0) -> 677 | AH102: =+RANK(AG102,$AG$98:$AG$113,1) -> 7
D103: - | G103: - | L103: 5 | M103: ● | N103: 13 | P103: - | R103: 0 | S103: ● | T103: 12 | U103: 1 | V103: ● | W103: 12 | Y103: -
A104: 44 | B104: =IF(データ２!B88="","",VLOOKUP(A104,データ２!$A$2:$B$224,2)) -> 菊坂ファイヤーズ | C104: Ｆ | D104: - | E104: 3 | L104: ＊ | O104: Ｆ | P104: - | Q104: 19 | R104: Ｆ | S104: - | T104: 20 | U104: Ｆ | V104: - | W104: 21 | X104: Ｆ | Y104: - | Z104: 22 | AA104: =COUNTIF(C104:Z105,"○") -> 2 | AB104: =COUNTIF(C104:Z105,"●") -> 0 | AC104: =COUNTIF(C104:Z105,"△") -> 0 | AD104: =+AA104*3+AC104*1 -> 6 | AE104: =+E105+H105+K105+Q105+T105+W105+Z105 -> 11 | AF104: =C105+F105+I105+O105+R105+U105+X105 -> 21 | AG104: =+RANK(AD104,$AD$98:$AD$113,0)*100+RANK(AE104,$AE$98:$AE$113,1)*10+RANK(AF104,$AF$98:$AF$113,0) -> 244 | AH104: =+RANK(AG104,$AG$98:$AG$113,1) -> 4
D105: - | F105: 8 | G105: ○ | H105: 6 | I105: 13 | J105: ○ | K105: 5 | P105: - | S105: - | V105: - | Y105: -
A106: 45 | B106: =IF(データ２!B90="","",VLOOKUP(A106,データ２!$A$2:$B$224,2)) -> 亀戸合同 | I106: Ｆ | J106: - | K106: 15 | L106: Ｆ | M106: - | N106: 19 | O106: ＊ | R106: Ｆ | S106: - | T106: 23 | U106: Ｆ | V106: - | W106: 24 | X106: Ｆ | Y106: - | Z106: 25 | AA106: =COUNTIF(C106:Z107,"○") -> 1 | AB106: =COUNTIF(C106:Z107,"●") -> 1 | AC106: =COUNTIF(C106:Z107,"△") -> 0 | AD106: =+AA106*3+AC106*1 -> 3 | AE106: =+E107+H107+K107+N107+T107+W107+Z107 -> 14 | AF106: =C107+F107+I107+L107+R107+U107+X107+AA107 -> 15 | AG106: =+RANK(AD106,$AD$98:$AD$113,0)*100+RANK(AE106,$AE$98:$AE$113,1)*10+RANK(AF106,$AF$98:$AF$113,0) -> 555 | AH106: =+RANK(AG106,$AG$98:$AG$113,1)+1 -> 6
C107: 1 | D107: ● | E107: 10 | F107: 14 | G107: ○ | H107: 4 | J107: - | M107: - | S107: - | V107: - | Y107: -
A108: 46 | B108: =IF(データ２!B92="","",VLOOKUP(A108,データ２!$A$2:$B$224,2)) -> 本村クラブ | C108: Ｆ | D108: - | E108: 5 | L108: Ｆ | M108: - | N108: 20 | O108: Ｆ | P108: - | Q108: 23 | R108: ＊ | U108: Ｆ | V108: - | W108: 26 | X108: Ｆ | Y108: - | Z108: 27 | AA108: =COUNTIF(C108:Z109,"○") -> 2 | AB108: =COUNTIF(C108:Z109,"●") -> 0 | AC108: =COUNTIF(C108:Z109,"△") -> 0 | AD108: =+AA108*3+AC108*1 -> 6 | AE108: =+E109+H109+K109+N109+Q109+W109+Z109 -> 4 | AF108: =C109+F109+I109+L109+O109+U109+X109 -> 29 | AG108: =+RANK(AD108,$AD$98:$AD$113,0)*100+RANK(AE108,$AE$98:$AE$113,1)*10+RANK(AF108,$AF$98:$AF$113,0) -> 222 | AH108: =+RANK(AG108,$AG$98:$AG$113,1) -> 2
D109: - | F109: 17 | G109: ○ | H109: 4 | I109: 12 | J109: ○ | K109: 0 | M109: - | P109: - | V109: - | Y109: -
A110: 47 | B110: =IF(データ２!B94="","",VLOOKUP(A110,データ２!$A$2:$B$224,2)) -> 高井戸東少年野球クラブ | C110: Ｆ | D110: - | E110: 6 | L110: Ｆ | M110: - | N110: 21 | O110: Ｆ | P110: - | Q110: 24 | R110: Ｆ | S110: - | T110: 26 | U110: ＊ | AA110: =COUNTIF(C110:Z111,"○") -> 3 | AB110: =COUNTIF(C110:Z111,"●") -> 0 | AC110: =COUNTIF(C110:Z111,"△") -> 0 | AD110: =+AA110*3+AC110*1 -> 9 | AE110: =+E111+H111+K111+N111+Q111+T111+Z111 -> 1 | AF110: =C111+F111+I111+L111+O111+R111+U111+X111 -> 41 | AG110: =+RANK(AD110,$AD$98:$AD$113,0)*100+RANK(AE110,$AE$98:$AE$113,1)*10+RANK(AF110,$AF$98:$AF$113,0) -> 111 | AH110: =+RANK(AG110,$AG$98:$AG$113,1) -> 1
D111: - | F111: 18 | G111: ○ | H111: 0 | I111: 12 | J111: ○ | K111: 1 | M111: - | P111: - | S111: - | X111: 11 | Y111: ○ | Z111: 0
A112: 48 | B112: =IF(データ２!B96="","",VLOOKUP(A112,データ２!$A$2:$B$224,2)) -> 駒込ベアーズ | F112: Ｆ | G112: - | H112: 13 | I112: Ｆ | J112: - | K112: 18 | L112: Ｆ | M112: - | N112: 22 | O112: Ｆ | P112: - | Q112: 25 | R112: Ｆ | S112: - | T112: 27 | X112: ＊ | AA112: =COUNTIF(C112:Z113,"○") -> 0 | AB112: =COUNTIF(C112:Z113,"●") -> 2 | AC112: =COUNTIF(C112:Z113,"△") -> 0 | AD112: =+AA112*3+AC112*1 -> 0 | AE112: =+E113+H113+K113+N113+Q113+T113+W113 -> 24 | AF112: =C113+F113+I113+L113+O113+R113+U113+X113 -> 5 | AG112: =+RANK(AD112,$AD$98:$AD$113,0)*100+RANK(AE112,$AE$98:$AE$113,1)*10+RANK(AF112,$AF$98:$AF$113,0) -> 668 | AH112: =+RANK(AG112,$AG$98:$AG$113,1) -> 6
C113: 5 | D113: ● | E113: 13 | G113: - | J113: - | M113: - | P113: - | S113: - | U113: 0 | V113: ● | W113: 11
AA114: =SUM(AA98:AA113) -> 10 | AB114: =SUM(AB98:AB113) -> 10 | AC114: =SUM(AC98:AC113) -> 0 | AE114: =SUM(AE98:AE113) -> 154 | AF114: =SUM(AF98:AF113) -> 154 | AH114: =28-AA114-(AC114/2) -> 18
B115: =+データ１!$B$2 -> 2023/2/25 | C115: =+データ１!$B$4 -> ２０２３年
B116: =+データ１!B18 -> スーパーリ－グ 第１７回大会 Ｇブロック ２０２３ | C116: =+IF(B117="","",+B117) -> レッドサンズ | F116: =+IF(B119="","",+B119) -> いちがやチーターズ | I116: =+IF(B121="","",+B121) -> 馬込ジャガース | L116: =+IF(B123="","",+B123) -> 金町ジャイアンツ | O116: =+IF(B125="","",+B125) -> 元加賀 | R116: =+IF(B127="","",+B127) -> 品川ブルーレーシング | U116: =+IF(B129="","",+B129) -> 本一色イーグルス | X116: =+IF(B131="","",+B131) -> 月島ライオンズ | AA116: 勝 | AB116: 負 | AC116: 分 | AD116: 勝点 | AE116: 失点 | AF116: 得点 | AG116: 順位決定要素 | AH116: 順位
A117: 49 | B117: =IF(データ２!B98="","",VLOOKUP(A117,データ２!$A$2:$B$224,2)) -> レッドサンズ | C117: ＊ | I117: Ｇ | J117: - | K117: 2 | L117: Ｇ | M117: - | N117: 3 | R117: Ｇ | S117: - | T117: 5 | U117: Ｇ | V117: - | W117: 6 | X117: Ｇ | Y117: - | Z117: 7 | AA117: =COUNTIF(C117:Z118,"○") -> 2 | AB117: =COUNTIF(C117:Z118,"●") -> 0 | AC117: =COUNTIF(C117:Z118,"△") -> 0 | AD117: =+AA117*3+AC117*1 -> 6 | AE117: =+H118+K118+N118+Q118+T118+W118+Z118 -> 3 | AF117: =+F118+I118+L118+O118+R118+U118+X118 -> 24 | AG117: =+RANK(AD117,$AD$117:$AD$132,0)*100+RANK(AE117,$AE$117:$AE$132,1)*10+RANK(AF117,$AF$117:$AF$132,0) -> 313 | AH117: =+RANK(AG117,$AG$117:$AG$132,1) -> 3
F118: 12 | G118: ○ | H118: 2 | J118: - | M118: - | O118: 12 | P118: ○ | Q118: 1 | S118: - | V118: - | Y118: -
A119: 50 | B119: =IF(データ２!B100="","",VLOOKUP(A119,データ２!$A$2:$B$224,2)) -> いちがやチーターズ | F119: ＊ | I119: Ｇ | J119: - | K119: 8 | L119: Ｇ | M119: - | N119: 9 | U119: Ｇ | V119: - | W119: 12 | X119: Ｇ | Y119: - | Z119: 13 | AA119: =COUNTIF(C119:Z120,"○") -> 0 | AB119: =COUNTIF(C119:Z120,"●") -> 3 | AC119: =COUNTIF(C119:Z120,"△") -> 0 | AD119: =+AA119*3+AC119*1 -> 0 | AE119: =+E120+K120+N120+Q120+T120+W120+Z120 -> 25 | AF119: =+C120+I120+L120+O120+R120+U120+X120 -> 5 | AG119: =+RANK(AD119,$AD$117:$AD$132,0)*100+RANK(AE119,$AE$117:$AE$132,1)*10+RANK(AF119,$AF$117:$AF$132,0) -> 566 | AH119: =+RANK(AG119,$AG$117:$AG$132,1) -> 6
C120: 2 | D120: ● | E120: 12 | J120: - | M120: - | O120: 1 | P120: ● | Q120: 5 | R120: 2 | S120: ● | T120: 8 | V120: - | Y120: -
A121: 51 | B121: =IF(データ２!B102="","",VLOOKUP(A121,データ２!$A$2:$B$224,2)) -> 馬込ジャガース | C121: Ｇ | D121: - | E121: 2 | F121: Ｇ | G121: - | H121: 8 | I121: ＊ | U121: Ｇ | V121: - | W121: 17 | X121: Ｇ | Y121: - | Z121: 18 | AA121: =COUNTIF(C121:Z122,"○") -> 0 | AB121: =COUNTIF(C121:Z122,"●") -> 3 | AC121: =COUNTIF(C121:Z122,"△") -> 0 | AD121: =+AA121*3+AC121*1 -> 0 | AE121: =+E122+H122+N122+Q122+T122+W122+Z122 -> 42 | AF121: =C122+F122+L122+O122+R122+U122+X122 -> 8 | AG121: =+RANK(AD121,$AD$117:$AD$132,0)*100+RANK(AE121,$AE$117:$AE$132,1)*10+RANK(AF121,$AF$117:$AF$132,0) -> 585 | AH121: =+RANK(AG121,$AG$117:$AG$132,1) -> 8
D122: - | G122: - | L122: 5 | M122: ● | N122: 11 | O122: 2 | P122: ● | Q122: 19 | R122: 1 | S122: ● | T122: 12 | V122: - | Y122: -
A123: 52 | B123: =IF(データ２!B104="","",VLOOKUP(A123,データ２!$A$2:$B$224,2)) -> 金町ジャイアンツ | C123: Ｇ | D123: - | E123: 3 | F123: Ｇ | G123: - | H123: 9 | L123: ＊ | O123: Ｇ | P123: - | Q123: 19 | R123: Ｇ | S123: - | T123: 20 | X123: Ｇ | Y123: - | Z123: 22 | AA123: =COUNTIF(C123:Z124,"○") -> 2 | AB123: =COUNTIF(C123:Z124,"●") -> 0 | AC123: =COUNTIF(C123:Z124,"△") -> 0 | AD123: =+AA123*3+AC123*1 -> 6 | AE123: =+E124+H124+K124+Q124+T124+W124+Z124 -> 7 | AF123: =C124+F124+I124+O124+R124+U124+X124 -> 24 | AG123: =+RANK(AD123,$AD$117:$AD$132,0)*100+RANK(AE123,$AE$117:$AE$132,1)*10+RANK(AF123,$AF$117:$AF$132,0) -> 323 | AH123: =+RANK(AG123,$AG$117:$AG$132,1) -> 4
D124: - | G124: - | I124: 11 | J124: ○ | K124: 5 | P124: - | S124: - | U124: 13 | V124: ○ | W124: 2 | Y124: -
A125: 53 | B125: =IF(データ２!B106="","",VLOOKUP(A125,データ２!$A$2:$B$224,2)) -> 元加賀 | L125: Ｇ | M125: - | N125: 19 | O125: ＊ | U125: Ｇ | V125: - | W125: 24 | AA125: =COUNTIF(C125:Z126,"○") -> 4 | AB125: =COUNTIF(C125:Z126,"●") -> 1 | AC125: =COUNTIF(C125:Z126,"△") -> 0 | AD125: =+AA125*3+AC125*1 -> 12 | AE125: =+E126+H126+K126+N126+T126+W126+Z126 -> 20 | AF125: =C126+F126+I126+L126+R126+U126+X126+AA126 -> 50 | AG125: =+RANK(AD125,$AD$117:$AD$132,0)*100+RANK(AE125,$AE$117:$AE$132,1)*10+RANK(AF125,$AF$117:$AF$132,0) -> 151 | AH125: =+RANK(AG125,$AG$117:$AG$132,1) -> 1
C126: 1 | D126: ● | E126: 12 | F126: 5 | G126: ○ | H126: 1 | I126: 19 | J126: ○ | K126: 2 | M126: - | R126: 5 | S126: ○ | T126: 4 | V126: - | X126: 20 | Y126: ○ | Z126: 1
A127: 54 | B127: =IF(データ２!B108="","",VLOOKUP(A127,データ２!$A$2:$B$224,2)) -> 品川ブルーレーシング | C127: Ｇ | D127: - | E127: 5 | L127: Ｇ | M127: - | N127: 20 | R127: ＊ | U127: Ｇ | V127: - | W127: 26 | AA127: =COUNTIF(C127:Z128,"○") -> 3 | AB127: =COUNTIF(C127:Z128,"●") -> 1 | AC127: =COUNTIF(C127:Z128,"△") -> 0 | AD127: =+AA127*3+AC127*1 -> 9 | AE127: =+E128+H128+K128+N128+Q128+W128+Z128 -> 8 | AF127: =C128+F128+I128+L128+O128+U128+X128 -> 37 | AG127: =+RANK(AD127,$AD$117:$AD$132,0)*100+RANK(AE127,$AE$117:$AE$132,1)*10+RANK(AF127,$AF$117:$AF$132,0) -> 232 | AH127: =+RANK(AG127,$AG$117:$AG$132,1) -> 2
D128: - | F128: 8 | G128: ○ | H128: 2 | I128: 12 | J128: ○ | K128: 1 | M128: - | O128: 4 | P128: ● | Q128: 5 | V128: - | X128: 13 | Y128: ○ | Z128: 0
A129: 55 | B129: =IF(データ２!B110="","",VLOOKUP(A129,データ２!$A$2:$B$224,2)) -> 本一色イーグルス | C129: Ｇ | D129: - | E129: 6 | F129: Ｇ | G129: - | H129: 12 | I129: Ｇ | J129: - | K129: 17 | O129: Ｇ | P129: - | Q129: 24 | R129: Ｇ | S129: - | T129: 26 | U129: ＊ | X129: Ｇ | Y129: - | Z129: 28 | AA129: =COUNTIF(C129:Z130,"○") -> 0 | AB129: =COUNTIF(C129:Z130,"●") -> 1 | AC129: =COUNTIF(C129:Z130,"△") -> 0 | AD129: =+AA129*3+AC129*1 -> 0 | AE129: =+E130+H130+K130+N130+Q130+T130+Z130 -> 13 | AF129: =C130+F130+I130+L130+O130+R130+U130+X130 -> 2 | AG129: =+RANK(AD129,$AD$117:$AD$132,0)*100+RANK(AE129,$AE$117:$AE$132,1)*10+RANK(AF129,$AF$117:$AF$132,0) -> 547 | AH129: =+RANK(AG129,$AG$117:$AG$132,1) -> 5
D130: - | G130: - | J130: - | L130: 2 | M130: ● | N130: 13 | P130: - | S130: - | Y130: -
A131: 56 | B131: =IF(データ２!B112="","",VLOOKUP(A131,データ２!$A$2:$B$224,2)) -> 月島ライオンズ | C131: Ｇ | D131: - | E131: 7 | F131: Ｇ | G131: - | H131: 13 | I131: Ｇ | J131: - | K131: 18 | L131: Ｇ | M131: - | N131: 22 | U131: Ｇ | V131: - | W131: 28 | X131: ＊ | AA131: =COUNTIF(C131:Z132,"○") -> 0 | AB131: =COUNTIF(C131:Z132,"●") -> 2 | AC131: =COUNTIF(C131:Z132,"△") -> 0 | AD131: =+AA131*3+AC131*1 -> 0 | AE131: =+E132+H132+K132+N132+Q132+T132+W132 -> 33 | AF131: =C132+F132+I132+L132+O132+R132+U132+X132 -> 1 | AG131: =+RANK(AD131,$AD$117:$AD$132,0)*100+RANK(AE131,$AE$117:$AE$132,1)*10+RANK(AF131,$AF$117:$AF$132,0) -> 578 | AH131: =+RANK(AG131,$AG$117:$AG$132,1) -> 7
D132: - | G132: - | J132: - | M132: - | O132: 1 | P132: ● | Q132: 20 | R132: 0 | S132: ● | T132: 13 | V132: -
AA133: =SUM(AA117:AA132) -> 11 | AB133: =SUM(AB117:AB132) -> 11 | AC133: =SUM(AC117:AC132) -> 0 | AE133: =SUM(AE117:AE132) -> 151 | AF133: =SUM(AF117:AF132) -> 151 | AH133: =28-AA133-(AC133/2) -> 17
B134: =+データ１!$B$2 -> 2023/2/25 | C134: =+データ１!$B$4 -> ２０２３年
B135: =+データ１!B20 -> スーパーリ－グ 第１７回大会 Ｈブロック ２０２３ | C135: =+IF(B136="","",+B136) -> 南千住ペガサス | F135: =+IF(B138="","",+B138) -> 竹仲 | I135: =+IF(B140="","",+B140) -> 九品仏ペガサス | L135: =+IF(B142="","",+B142) -> 駒込チャイルド | O135: =+IF(B144="","",+B144) -> 東陽フェニックス | R135: =+IF(B146="","",+B146) -> 港南メッツ | U135: =+IF(B148="","",+B148) -> サンダースターズ | X135: =+IF(B150="","",+B150) -> 大塚スネイクス | AA135: 勝 | AB135: 負 | AC135: 分 | AD135: 勝点 | AE135: 失点 | AF135: 得点 | AG135: 順位決定要素 | AH135: 順位
A136: 57 | B136: =IF(データ２!B114="","",VLOOKUP(A136,データ２!$A$2:$B$224,2)) -> 南千住ペガサス | C136: ＊ | F136: Ｈ | G136: - | H136: 1 | I136: Ｈ | J136: - | K136: 2 | X136: Ｈ | Y136: - | Z136: 7 | AA136: =COUNTIF(C136:Z137,"○") -> 2 | AB136: =COUNTIF(C136:Z137,"●") -> 2 | AC136: =COUNTIF(C136:Z137,"△") -> 0 | AD136: =+AA136*3+AC136*1 -> 6 | AE136: =+H137+K137+N137+Q137+T137+W137+Z137 -> 19 | AF136: =+F137+I137+L137+O137+R137+U137+X137 -> 23 | AG136: =+RANK(AD136,$AD$136:$AD$151,0)*100+RANK(AE136,$AE$136:$AE$151,1)*10+RANK(AF136,$AF$136:$AF$151,0) -> 253 | AH136: =+RANK(AG136,$AG$136:$AG$151,1) -> 3
G137: - | J137: - | L137: 11 | M137: ○ | N137: 0 | O137: 2 | P137: ● | Q137: 8 | R137: 3 | S137: ● | T137: 8 | U137: 7 | V137: ○ | W137: 3 | Y137: -
A138: 58 | B138: =IF(データ２!B116="","",VLOOKUP(A138,データ２!$A$2:$B$224,2)) -> 竹仲 | C138: Ｈ | D138: - | E138: 1 | F138: ＊ | L138: Ｈ | M138: - | N138: 9 | O138: Ｈ | P138: - | Q138: 10 | R138: Ｈ | S138: - | T138: 11 | X138: Ｈ | Y138: - | Z138: 13 | AA138: =COUNTIF(C138:Z139,"○") -> 2 | AB138: =COUNTIF(C138:Z139,"●") -> 0 | AC138: =COUNTIF(C138:Z139,"△") -> 0 | AD138: =+AA138*3+AC138*1 -> 6 | AE138: =+E139+K139+N139+Q139+T139+W139+Z139 -> 11 | AF138: =+C139+I139+L139+O139+R139+U139+X139 -> 14 | AG138: =+RANK(AD138,$AD$136:$AD$151,0)*100+RANK(AE138,$AE$136:$AE$151,1)*10+RANK(AF138,$AF$136:$AF$151,0) -> 236 | AH138: =+RANK(AG138,$AG$136:$AG$151,1) -> 2
D139: - | I139: 7 | J139: ○ | K139: 6 | M139: - | P139: - | S139: - | U139: 7 | V139: ○ | W139: 5 | Y139: -
A140: 59 | B140: =IF(データ２!B118="","",VLOOKUP(A140,データ２!$A$2:$B$224,2)) -> 九品仏ペガサス | C140: Ｈ | D140: - | E140: 2 | I140: ＊ | L140: Ｈ | M140: - | N140: 14 | O140: Ｈ | P140: - | Q140: 15 | U140: Ｈ | V140: - | W140: 17 | X140: Ｈ | Y140: - | Z140: 18 | AA140: =COUNTIF(C140:Z141,"○") -> 1 | AB140: =COUNTIF(C140:Z141,"●") -> 1 | AC140: =COUNTIF(C140:Z141,"△") -> 0 | AD140: =+AA140*3+AC140*1 -> 3 | AE140: =+E141+H141+N141+Q141+T141+W141+Z141 -> 12 | AF140: =C141+F141+L141+O141+R141+U141+X141 -> 21 | AG140: =+RANK(AD140,$AD$136:$AD$151,0)*100+RANK(AE140,$AE$136:$AE$151,1)*10+RANK(AF140,$AF$136:$AF$151,0) -> 444 | AH140: =+RANK(AG140,$AG$136:$AG$151,1) -> 5
D141: - | F141: 6 | G141: ● | H141: 7 | M141: - | P141: - | R141: 15 | S141: ○ | T141: 5 | V141: - | Y141: -
A142: 60 | B142: =IF(データ２!B120="","",VLOOKUP(A142,データ２!$A$2:$B$224,2)) -> 駒込チャイルド | F142: Ｈ | G142: - | H142: 9 | I142: Ｈ | J142: - | K142: 14 | L142: ＊ | R142: Ｈ | S142: - | T142: 20 | X142: Ｈ | Y142: - | Z142: 22 | AA142: =COUNTIF(C142:Z143,"○") -> 0 | AB142: =COUNTIF(C142:Z143,"●") -> 3 | AC142: =COUNTIF(C142:Z143,"△") -> 0 | AD142: =+AA142*3+AC142*1 -> 0 | AE142: =+E143+H143+K143+Q143+T143+W143+Z143 -> 45 | AF142: =C143+F143+I143+O143+R143+U143+X143 -> 1 | AG142: =+RANK(AD142,$AD$136:$AD$151,0)*100+RANK(AE142,$AE$136:$AE$151,1)*10+RANK(AF142,$AF$136:$AF$151,0) -> 888 | AH142: =+RANK(AG142,$AG$136:$AG$151,1) -> 8
C143: 0 | D143: ● | E143: 11 | G143: - | J143: - | O143: 1 | P143: ● | Q143: 20 | S143: - | U143: 0 | V143: ● | W143: 14 | Y143: -
A144: 61 | B144: =IF(データ２!B122="","",VLOOKUP(A144,データ２!$A$2:$B$224,2)) -> 東陽フェニックス | F144: Ｈ | G144: - | H144: 10 | I144: Ｈ | J144: - | K144: 15 | O144: ＊ | U144: Ｈ | V144: - | W144: 24 | X144: Ｈ | Y144: - | Z144: 25 | AA144: =COUNTIF(C144:Z145,"○") -> 3 | AB144: =COUNTIF(C144:Z145,"●") -> 0 | AC144: =COUNTIF(C144:Z145,"△") -> 0 | AD144: =+AA144*3+AC144*1 -> 9 | AE144: =+E145+H145+K145+N145+T145+W145+Z145 -> 7 | AF144: =C145+F145+I145+L145+R145+U145+X145+AA145 -> 33 | AG144: =+RANK(AD144,$AD$136:$AD$151,0)*100+RANK(AE144,$AE$136:$AE$151,1)*10+RANK(AF144,$AF$136:$AF$151,0) -> 121 | AH144: =+RANK(AG144,$AG$136:$AG$151,1) -> 1
C145: 8 | D145: ○ | E145: 2 | G145: - | J145: - | L145: 20 | M145: ○ | N145: 1 | R145: 5 | S145: ○ | T145: 4 | V145: - | Y145: -
A146: 62 | B146: =IF(データ２!B124="","",VLOOKUP(A146,データ２!$A$2:$B$224,2)) -> 港南メッツ | F146: Ｈ | G146: - | H146: 11 | L146: Ｈ | M146: - | N146: 20 | R146: ＊ | U146: Ｈ | V146: - | W146: 26 | X146: Ｈ | Y146: - | Z146: 27 | AA146: =COUNTIF(C146:Z147,"○") -> 1 | AB146: =COUNTIF(C146:Z147,"●") -> 2 | AC146: =COUNTIF(C146:Z147,"△") -> 0 | AD146: =+AA146*3+AC146*1 -> 3 | AE146: =+E147+H147+K147+N147+Q147+W147+Z147 -> 23 | AF146: =C147+F147+I147+L147+O147+U147+X147 -> 17 | AG146: =+RANK(AD146,$AD$136:$AD$151,0)*100+RANK(AE146,$AE$136:$AE$151,1)*10+RANK(AF146,$AF$136:$AF$151,0) -> 475 | AH146: =+RANK(AG146,$AG$136:$AG$151,1) -> 7
C147: 8 | D147: ○ | E147: 3 | G147: - | I147: 5 | J147: ● | K147: 15 | M147: - | O147: 4 | P147: ● | Q147: 5 | V147: - | Y147: -
A148: 63 | B148: =IF(データ２!B126="","",VLOOKUP(A148,データ２!$A$2:$B$224,2)) -> サンダースターズ | I148: Ｈ | J148: - | K148: 17 | O148: Ｈ | P148: - | Q148: 24 | R148: Ｈ | S148: - | T148: 26 | U148: ＊ | AA148: =COUNTIF(C148:Z149,"○") -> 1 | AB148: =COUNTIF(C148:Z149,"●") -> 3 | AC148: =COUNTIF(C148:Z149,"△") -> 0 | AD148: =+AA148*3+AC148*1 -> 3 | AE148: =+E149+H149+K149+N149+Q149+T149+Z149 -> 20 | AF148: =C149+F149+I149+L149+O149+R149+U149+X149 -> 24 | AG148: =+RANK(AD148,$AD$136:$AD$151,0)*100+RANK(AE148,$AE$136:$AE$151,1)*10+RANK(AF148,$AF$136:$AF$151,0) -> 462 | AH148: =+RANK(AG148,$AG$136:$AG$151,1) -> 6
C149: 3 | D149: ● | E149: 7 | F149: 5 | G149: ● | H149: 7 | J149: - | L149: 14 | M149: ○ | N149: 0 | P149: - | S149: - | X149: 2 | Y149: ● | Z149: 6
A150: 64 | B150: =IF(データ２!B128="","",VLOOKUP(A150,データ２!$A$2:$B$224,2)) -> 大塚スネイクス | C150: Ｈ | D150: - | E150: 7 | F150: Ｈ | G150: - | H150: 13 | I150: Ｈ | J150: - | K150: 18 | L150: Ｈ | M150: - | N150: 22 | O150: Ｈ | P150: - | Q150: 25 | R150: Ｈ | S150: - | T150: 27 | X150: ＊ | AA150: =COUNTIF(C150:Z151,"○") -> 1 | AB150: =COUNTIF(C150:Z151,"●") -> 0 | AC150: =COUNTIF(C150:Z151,"△") -> 0 | AD150: =+AA150*3+AC150*1 -> 3 | AE150: =+E151+H151+K151+N151+Q151+T151+W151 -> 2 | AF150: =C151+F151+I151+L151+O151+R151+U151+X151 -> 6 | AG150: =+RANK(AD150,$AD$136:$AD$151,0)*100+RANK(AE150,$AE$136:$AE$151,1)*10+RANK(AF150,$AF$136:$AF$151,0) -> 417 | AH150: =+RANK(AG150,$AG$136:$AG$151,1) -> 4
D151: - | G151: - | J151: - | M151: - | P151: - | S151: - | U151: 6 | V151: ○ | W151: 2
AA152: =SUM(AA136:AA151) -> 11 | AB152: =SUM(AB136:AB151) -> 11 | AC152: =SUM(AC136:AC151) -> 0 | AE152: =SUM(AE136:AE151) -> 139 | AF152: =SUM(AF136:AF151) -> 139 | AH152: =28-AA152-(AC152/2) -> 17
B153: =+データ１!$B$2 -> 2023/2/25 | C153: =+データ１!$B$4 -> ２０２３年
B154: =+データ１!B22 -> スーパーリ－グ 第１７回大会 Ｉブロック ２０２３ | C154: =+IF(B155="","",+B155) -> カバラホークス | F154: =+IF(B157="","",+B157) -> 落合コメッツ | I154: =+IF(B159="","",+B159) -> 池雪ジュニアストロング | L154: =+IF(B161="","",+B161) -> 若羽クラブ | O154: =+IF(B163="","",+B163) -> 東雲メッツ | R154: =+IF(B165="","",+B165) -> 元芝ハヤブサ | U154: =+IF(B167="","",+B167) -> 雷サンダース | X154: =+IF(B169="","",+B169) -> 目黒ペガサス | AA154: 勝 | AB154: 負 | AC154: 分 | AD154: 勝点 | AE154: 失点 | AF154: 得点 | AG154: 順位決定要素 | AH154: 順位
A155: 65 | B155: =IF(データ２!B130="","",VLOOKUP(A155,データ２!$A$2:$B$224,2)) -> カバラホークス | C155: ＊ | F155: Ｉ | G155: - | H155: 1 | I155: Ｉ | J155: - | K155: 2 | L155: Ｉ | M155: - | N155: 3 | U155: Ｉ | V155: - | W155: 6 | AA155: =COUNTIF(C155:Z156,"○") -> 3 | AB155: =COUNTIF(C155:Z156,"●") -> 0 | AC155: =COUNTIF(C155:Z156,"△") -> 0 | AD155: =+AA155*3+AC155*1 -> 9 | AE155: =+H156+K156+N156+Q156+T156+W156+Z156 -> 8 | AF155: =+F156+I156+L156+O156+R156+U156+X156 -> 41 | AG155: =+RANK(AD155,$AD$155:$AD$170,0)*100+RANK(AE155,$AE$155:$AE$170,1)*10+RANK(AF155,$AF$155:$AF$170,0) -> 131 | AH155: =+RANK(AG155,$AG$155:$AG$170,1) -> 1
G156: - | J156: - | M156: - | O156: 20 | P156: ○ | Q156: 2 | R156: 12 | S156: ○ | T156: 4 | V156: - | X156: 9 | Y156: ○ | Z156: 2
A157: 66 | B157: =IF(データ２!B132="","",VLOOKUP(A157,データ２!$A$2:$B$224,2)) -> 落合コメッツ | C157: Ｉ | D157: - | E157: 1 | F157: ＊ | I157: Ｉ | J157: - | K157: 8 | L157: Ｉ | M157: - | N157: 9 | O157: Ｉ | P157: - | Q157: 10 | R157: Ｉ | S157: - | T157: 11 | AA157: =COUNTIF(C157:Z158,"○") -> 0 | AB157: =COUNTIF(C157:Z158,"●") -> 2 | AC157: =COUNTIF(C157:Z158,"△") -> 0 | AD157: =+AA157*3+AC157*1 -> 0 | AE157: =+E158+K158+N158+Q158+T158+W158+Z158 -> 18 | AF157: =+C158+I158+L158+O158+R158+U158+X158 -> 3 | AG157: =+RANK(AD157,$AD$155:$AD$170,0)*100+RANK(AE157,$AE$155:$AE$170,1)*10+RANK(AF157,$AF$155:$AF$170,0) -> 858 | AH157: =+RANK(AG157,$AG$155:$AG$170,1) -> 8
D158: - | J158: - | M158: - | P158: - | S158: - | U158: 3 | V158: ● | W158: 9 | X158: 0 | Y158: ● | Z158: 9
A159: 67 | B159: =IF(データ２!B134="","",VLOOKUP(A159,データ２!$A$2:$B$224,2)) -> 池雪ジュニアストロング | C159: Ｉ | D159: - | E159: 2 | F159: Ｉ | G159: - | H159: 8 | I159: ＊ | U159: Ｉ | V159: - | W159: 17 | X159: Ｉ | Y159: - | Z159: 18 | AA159: =COUNTIF(C159:Z160,"○") -> 2 | AB159: =COUNTIF(C159:Z160,"●") -> 1 | AC159: =COUNTIF(C159:Z160,"△") -> 0 | AD159: =+AA159*3+AC159*1 -> 6 | AE159: =+E160+H160+N160+Q160+T160+W160+Z160 -> 7 | AF159: =C160+F160+L160+O160+R160+U160+X160 -> 11 | AG159: =+RANK(AD159,$AD$155:$AD$170,0)*100+RANK(AE159,$AE$155:$AE$170,1)*10+RANK(AF159,$AF$155:$AF$170,0) -> 225 | AH159: =+RANK(AG159,$AG$155:$AG$170,1) -> 2
D160: - | G160: - | L160: 4 | M160: ● | N160: 6 | O160: 2 | P160: ○ | Q160: 1 | R160: 5 | S160: ○ | T160: 0 | V160: - | Y160: -
A161: 68 | B161: =IF(データ２!B136="","",VLOOKUP(A161,データ２!$A$2:$B$224,2)) -> 若羽クラブ | C161: Ｉ | D161: - | E161: 3 | F161: Ｉ | G161: - | H161: 9 | L161: ＊ | O161: Ｉ | P161: - | Q161: 19 | R161: Ｉ | S161: - | T161: 20 | U161: Ｉ | V161: - | W161: 21 | AA161: =COUNTIF(C161:Z162,"○") -> 1 | AB161: =COUNTIF(C161:Z162,"●") -> 0 | AC161: =COUNTIF(C161:Z162,"△") -> 1 | AD161: =+AA161*3+AC161*1 -> 4 | AE161: =+E162+H162+K162+Q162+T162+W162+Z162 -> 11 | AF161: =C162+F162+I162+O162+R162+U162+X162 -> 13 | AG161: =+RANK(AD161,$AD$155:$AD$170,0)*100+RANK(AE161,$AE$155:$AE$170,1)*10+RANK(AF161,$AF$155:$AF$170,0) -> 344 | AH161: =+RANK(AG161,$AG$155:$AG$170,1) -> 3
D162: - | G162: - | I162: 6 | J162: ○ | K162: 4 | P162: - | S162: - | V162: - | X162: 7 | Y162: △ | Z162: 7
A163: 69 | B163: =IF(データ２!B138="","",VLOOKUP(A163,データ２!$A$2:$B$224,2)) -> 東雲メッツ | F163: Ｉ | G163: - | H163: 10 | L163: Ｉ | M163: - | N163: 19 | O163: ＊ | R163: Ｉ | S163: - | T163: 23 | U163: Ｉ | V163: - | W163: 24 | AA163: =COUNTIF(C163:Z164,"○") -> 1 | AB163: =COUNTIF(C163:Z164,"●") -> 2 | AC163: =COUNTIF(C163:Z164,"△") -> 0 | AD163: =+AA163*3+AC163*1 -> 3 | AE163: =+E164+H164+K164+N164+T164+W164+Z164 -> 25 | AF163: =C164+F164+I164+L164+R164+U164+X164+AA164 -> 18 | AG163: =+RANK(AD163,$AD$155:$AD$170,0)*100+RANK(AE163,$AE$155:$AE$170,1)*10+RANK(AF163,$AF$155:$AF$170,0) -> 573 | AH163: =+RANK(AG163,$AG$155:$AG$170,1) -> 7
C164: 2 | D164: ● | E164: 20 | G164: - | I164: 1 | J164: ● | K164: 2 | M164: - | S164: - | V164: - | X164: 15 | Y164: ○ | Z164: 3
A165: 70 | B165: =IF(データ２!B140="","",VLOOKUP(A165,データ２!$A$2:$B$224,2)) -> 元芝ハヤブサ | F165: Ｉ | G165: - | H165: 11 | L165: Ｉ | M165: - | N165: 20 | O165: Ｉ | P165: - | Q165: 23 | R165: ＊ | X165: Ｉ | Y165: - | Z165: 27 | AA165: =COUNTIF(C165:Z166,"○") -> 1 | AB165: =COUNTIF(C165:Z166,"●") -> 2 | AC165: =COUNTIF(C165:Z166,"△") -> 0 | AD165: =+AA165*3+AC165*1 -> 3 | AE165: =+E166+H166+K166+N166+Q166+W166+Z166 -> 18 | AF165: =C166+F166+I166+L166+O166+U166+X166 -> 7 | AG165: =+RANK(AD165,$AD$155:$AD$170,0)*100+RANK(AE165,$AE$155:$AE$170,1)*10+RANK(AF165,$AF$155:$AF$170,0) -> 557 | AH165: =+RANK(AG165,$AG$155:$AG$170,1) -> 6
C166: 4 | D166: ● | E166: 12 | G166: - | I166: 0 | J166: ● | K166: 5 | M166: - | P166: - | U166: 3 | V166: ○ | W166: 1 | Y166: -
A167: 71 | B167: =IF(データ２!B142="","",VLOOKUP(A167,データ２!$A$2:$B$224,2)) -> 雷サンダース | C167: Ｉ | D167: - | E167: 6 | I167: Ｉ | J167: - | K167: 17 | L167: Ｉ | M167: - | N167: 21 | O167: Ｉ | P167: - | Q167: 24 | U167: ＊ | X167: Ｉ | Y167: - | Z167: 28 | AA167: =COUNTIF(C167:Z168,"○") -> 1 | AB167: =COUNTIF(C167:Z168,"●") -> 1 | AC167: =COUNTIF(C167:Z168,"△") -> 0 | AD167: =+AA167*3+AC167*1 -> 3 | AE167: =+E168+H168+K168+N168+Q168+T168+Z168 -> 6 | AF167: =C168+F168+I168+L168+O168+R168+U168+X168 -> 10 | AG167: =+RANK(AD167,$AD$155:$AD$170,0)*100+RANK(AE167,$AE$155:$AE$170,1)*10+RANK(AF167,$AF$155:$AF$170,0) -> 516 | AH167: =+RANK(AG167,$AG$155:$AG$170,1) -> 5
D168: - | F168: 9 | G168: ○ | H168: 3 | J168: - | M168: - | P168: - | R168: 1 | S168: ● | T168: 3 | Y168: -
A169: 72 | B169: =IF(データ２!B144="","",VLOOKUP(A169,データ２!$A$2:$B$224,2)) -> 目黒ペガサス | I169: Ｉ | J169: - | K169: 18 | R169: Ｉ | S169: - | T169: 27 | U169: Ｉ | V169: - | W169: 28 | X169: ＊ | AA169: =COUNTIF(C169:Z170,"○") -> 1 | AB169: =COUNTIF(C169:Z170,"●") -> 2 | AC169: =COUNTIF(C169:Z170,"△") -> 1 | AD169: =+AA169*3+AC169*1 -> 4 | AE169: =+E170+H170+K170+N170+Q170+T170+W170 -> 31 | AF169: =C170+F170+I170+L170+O170+R170+U170+X170 -> 21 | AG169: =+RANK(AD169,$AD$155:$AD$170,0)*100+RANK(AE169,$AE$155:$AE$170,1)*10+RANK(AF169,$AF$155:$AF$170,0) -> 382 | AH169: =+RANK(AG169,$AG$155:$AG$170,1) -> 4
C170: 2 | D170: ● | E170: 9 | F170: 9 | G170: ○ | H170: 0 | J170: - | L170: 7 | M170: △ | N170: 7 | O170: 3 | P170: ● | Q170: 15 | S170: - | V170: -
AA171: =SUM(AA155:AA170) -> 10 | AB171: =SUM(AB155:AB170) -> 10 | AC171: =SUM(AC155:AC170) -> 2 | AE171: =SUM(AE155:AE170) -> 124 | AF171: =SUM(AF155:AF170) -> 124 | AH171: =28-AA171-(AC171/2) -> 17
B172: =+データ１!$B$2 -> 2023/2/25 | C172: =+データ１!$B$4 -> ２０２３年
B173: =+データ１!B24 -> スーパーリ－グ 第１７回大会 Ｊブロック ２０２３ | C173: =+IF(B174="","",+B174) -> 大雲寺スターズ | F173: =+IF(B176="","",+B176) -> 西伊興若潮ジュニア | I173: =+IF(B178="","",+B178) -> 球友ジュニアーズ | L173: =+IF(B180="","",+B180) -> 礫川 | O173: =+IF(B182="","",+B182) -> 越中島ブレーブス | R173: =+IF(B184="","",+B184) -> リトルロジャース | U173: =+IF(B186="","",+B186) -> 調布メンパース | X173: =+IF(B188="","",+B188) -> 晴海アポローズ | AA173: 勝 | AB173: 負 | AC173: 分 | AD173: 勝点 | AE173: 失点 | AF173: 得点 | AG173: 順位決定要素 | AH173: 順位
A174: 73 | B174: =IF(データ２!B146="","",VLOOKUP(A174,データ２!$A$2:$B$224,2)) -> 大雲寺スターズ | C174: ＊ | F174: Ｊ | G174: - | H174: 1 | I174: Ｊ | J174: - | K174: 2 | X174: Ｊ | Y174: - | Z174: 7 | AA174: =COUNTIF(C174:Z175,"○") -> 2 | AB174: =COUNTIF(C174:Z175,"●") -> 2 | AC174: =COUNTIF(C174:Z175,"△") -> 0 | AD174: =+AA174*3+AC174*1 -> 6 | AE174: =+H175+K175+N175+Q175+T175+W175+Z175 -> 22 | AF174: =+F175+I175+L175+O175+R175+U175+X175 -> 30 | AG174: =+RANK(AD174,$AD$174:$AD$189,0)*100+RANK(AE174,$AE$174:$AE$189,1)*10+RANK(AF174,$AF$174:$AF$189,0) -> 253 | AH174: =+RANK(AG174,$AG$174:$AG$189,1) -> 3
G175: - | J175: - | L175: 7 | M175: ● | N175: 11 | O175: 1 | P175: ● | Q175: 9 | R175: 5 | S175: ○ | T175: 0 | U175: 17 | V175: ○ | W175: 2 | Y175: -
A176: 74 | B176: =IF(データ２!B148="","",VLOOKUP(A176,データ２!$A$2:$B$224,2)) -> 西伊興若潮ジュニア | C176: Ｊ | D176: - | E176: 1 | F176: ＊ | L176: Ｊ | M176: - | N176: 9 | R176: Ｊ | S176: - | T176: 11 | U176: Ｊ | V176: - | W176: 12 | AA176: =COUNTIF(C176:Z177,"○") -> 2 | AB176: =COUNTIF(C176:Z177,"●") -> 1 | AC176: =COUNTIF(C176:Z177,"△") -> 0 | AD176: =+AA176*3+AC176*1 -> 6 | AE176: =+E177+K177+N177+Q177+T177+W177+Z177 -> 7 | AF176: =+C177+I177+L177+O177+R177+U177+X177 -> 35 | AG176: =+RANK(AD176,$AD$174:$AD$189,0)*100+RANK(AE176,$AE$174:$AE$189,1)*10+RANK(AF176,$AF$174:$AF$189,0) -> 212 | AH176: =+RANK(AG176,$AG$174:$AG$189,1) -> 2
D177: - | I177: 20 | J177: ○ | K177: 1 | M177: - | O177: 0 | P177: ● | Q177: 5 | S177: - | V177: - | X177: 15 | Y177: ○ | Z177: 1
A178: 75 | B178: =IF(データ２!B150="","",VLOOKUP(A178,データ２!$A$2:$B$224,2)) -> 球友ジュニアーズ | C178: Ｊ | D178: - | E178: 2 | I178: ＊ | L178: Ｊ | M178: - | N178: 14 | U178: Ｊ | V178: - | W178: 17 | X178: Ｊ | Y178: - | Z178: 18 | AA178: =COUNTIF(C178:Z179,"○") -> 0 | AB178: =COUNTIF(C178:Z179,"●") -> 3 | AC178: =COUNTIF(C178:Z179,"△") -> 0 | AD178: =+AA178*3+AC178*1 -> 0 | AE178: =+E179+H179+N179+Q179+T179+W179+Z179 -> 56 | AF178: =C179+F179+L179+O179+R179+U179+X179 -> 5 | AG178: =+RANK(AD178,$AD$174:$AD$189,0)*100+RANK(AE178,$AE$174:$AE$189,1)*10+RANK(AF178,$AF$174:$AF$189,0) -> 686 | AH178: =+RANK(AG178,$AG$174:$AG$189,1) -> 8
D179: - | F179: 1 | G179: ● | H179: 20 | M179: - | O179: 1 | P179: ● | Q179: 21 | R179: 3 | S179: ● | T179: 15 | V179: - | Y179: -
A180: 76 | B180: =IF(データ２!B152="","",VLOOKUP(A180,データ２!$A$2:$B$224,2)) -> 礫川 | F180: Ｊ | G180: - | H180: 9 | I180: Ｊ | J180: - | K180: 14 | L180: ＊ | O180: Ｊ | P180: - | Q180: 19 | R180: Ｊ | S180: - | T180: 20 | U180: Ｊ | V180: - | W180: 21 | X180: Ｊ | Y180: - | Z180: 22 | AA180: =COUNTIF(C180:Z181,"○") -> 1 | AB180: =COUNTIF(C180:Z181,"●") -> 0 | AC180: =COUNTIF(C180:Z181,"△") -> 0 | AD180: =+AA180*3+AC180*1 -> 3 | AE180: =+E181+H181+K181+Q181+T181+W181+Z181 -> 7 | AF180: =C181+F181+I181+O181+R181+U181+X181 -> 11 | AG180: =+RANK(AD180,$AD$174:$AD$189,0)*100+RANK(AE180,$AE$174:$AE$189,1)*10+RANK(AF180,$AF$174:$AF$189,0) -> 415 | AH180: =+RANK(AG180,$AG$174:$AG$189,1) -> 4
C181: 11 | D181: ○ | E181: 7 | G181: - | J181: - | P181: - | S181: - | V181: - | Y181: -
A182: 77 | B182: =IF(データ２!B154="","",VLOOKUP(A182,データ２!$A$2:$B$224,2)) -> 越中島ブレーブス | L182: Ｊ | M182: - | N182: 19 | O182: ＊ | U182: Ｊ | V182: - | W182: 24 | AA182: =COUNTIF(C182:Z183,"○") -> 5 | AB182: =COUNTIF(C182:Z183,"●") -> 0 | AC182: =COUNTIF(C182:Z183,"△") -> 0 | AD182: =+AA182*3+AC182*1 -> 15 | AE182: =+E183+H183+K183+N183+T183+W183+Z183 -> 10 | AF182: =C183+F183+I183+L183+R183+U183+X183+AA183 -> 65 | AG182: =+RANK(AD182,$AD$174:$AD$189,0)*100+RANK(AE182,$AE$174:$AE$189,1)*10+RANK(AF182,$AF$174:$AF$189,0) -> 131 | AH182: =+RANK(AG182,$AG$174:$AG$189,1) -> 1
C183: 9 | D183: ○ | E183: 1 | F183: 5 | G183: ○ | H183: 0 | I183: 21 | J183: ○ | K183: 1 | M183: - | R183: 16 | S183: ○ | T183: 7 | V183: - | X183: 14 | Y183: ○ | Z183: 1
A184: 78 | B184: =IF(データ２!B156="","",VLOOKUP(A184,データ２!$A$2:$B$224,2)) -> リトルロジャース | F184: Ｊ | G184: - | H184: 11 | L184: Ｊ | M184: - | N184: 20 | R184: ＊ | U184: Ｊ | V184: - | W184: 26 | X184: Ｊ | Y184: - | Z184: 27 | AA184: =COUNTIF(C184:Z185,"○") -> 1 | AB184: =COUNTIF(C184:Z185,"●") -> 2 | AC184: =COUNTIF(C184:Z185,"△") -> 0 | AD184: =+AA184*3+AC184*1 -> 3 | AE184: =+E185+H185+K185+N185+Q185+W185+Z185 -> 24 | AF184: =C185+F185+I185+L185+O185+U185+X185 -> 22 | AG184: =+RANK(AD184,$AD$174:$AD$189,0)*100+RANK(AE184,$AE$174:$AE$189,1)*10+RANK(AF184,$AF$174:$AF$189,0) -> 464 | AH184: =+RANK(AG184,$AG$174:$AG$189,1) -> 5
C185: 0 | D185: ● | E185: 5 | G185: - | I185: 15 | J185: ○ | K185: 3 | M185: - | O185: 7 | P185: ● | Q185: 16 | V185: - | Y185: -
A186: 79 | B186: =IF(データ２!B158="","",VLOOKUP(A186,データ２!$A$2:$B$224,2)) -> 調布メンパース | F186: Ｊ | G186: - | H186: 12 | I186: Ｊ | J186: - | K186: 17 | L186: Ｊ | M186: - | N186: 21 | O186: Ｊ | P186: - | Q186: 24 | R186: Ｊ | S186: - | T186: 26 | U186: ＊ | X186: Ｊ | Y186: - | Z186: 28 | AA186: =COUNTIF(C186:Z187,"○") -> 0 | AB186: =COUNTIF(C186:Z187,"●") -> 1 | AC186: =COUNTIF(C186:Z187,"△") -> 0 | AD186: =+AA186*3+AC186*1 -> 0 | AE186: =+E187+H187+K187+N187+Q187+T187+Z187 -> 17 | AF186: =C187+F187+I187+L187+O187+R187+U187+X187 -> 2 | AG186: =+RANK(AD186,$AD$174:$AD$189,0)*100+RANK(AE186,$AE$174:$AE$189,1)*10+RANK(AF186,$AF$174:$AF$189,0) -> 647 | AH186: =+RANK(AG186,$AG$174:$AG$189,1) -> 6
C187: 2 | D187: ● | E187: 17 | G187: - | J187: - | M187: - | P187: - | S187: - | Y187: -
A188: 80 | B188: =IF(データ２!B160="","",VLOOKUP(A188,データ２!$A$2:$B$224,2)) -> 晴海アポローズ | C188: Ｊ | D188: - | E188: 7 | I188: Ｊ | J188: - | K188: 18 | L188: Ｊ | M188: - | N188: 22 | R188: Ｊ | S188: - | T188: 27 | U188: Ｊ | V188: - | W188: 28 | X188: ＊ | AA188: =COUNTIF(C188:Z189,"○") -> 0 | AB188: =COUNTIF(C188:Z189,"●") -> 2 | AC188: =COUNTIF(C188:Z189,"△") -> 0 | AD188: =+AA188*3+AC188*1 -> 0 | AE188: =+E189+H189+K189+N189+Q189+T189+W189 -> 29 | AF188: =C189+F189+I189+L189+O189+R189+U189+X189 -> 2 | AG188: =+RANK(AD188,$AD$174:$AD$189,0)*100+RANK(AE188,$AE$174:$AE$189,1)*10+RANK(AF188,$AF$174:$AF$189,0) -> 677 | AH188: =+RANK(AG188,$AG$174:$AG$189,1) -> 7
D189: - | F189: 1 | G189: ● | H189: 15 | J189: - | M189: - | O189: 1 | P189: ● | Q189: 14 | S189: - | V189: -
AA190: =SUM(AA174:AA189) -> 11 | AB190: =SUM(AB174:AB189) -> 11 | AC190: =SUM(AC174:AC189) -> 0 | AE190: =SUM(AE174:AE189) -> 172 | AF190: =SUM(AF174:AF189) -> 172 | AH190: =28-AA190-(AC190/2) -> 17
B191: =+データ１!$B$2 -> 2023/2/25 | C191: =+データ１!$B$4 -> ２０２３年
B192: =+データ１!B26 -> スーパーリ－グ 第１７回大会 Ｋブロック ２０２３ | C192: =+IF(B193="","",+B193) -> 北原少年野球クラブ | F192: =+IF(B195="","",+B195) -> 東伊興シャインズ | I192: =+IF(B197="","",+B197) -> 船橋フェニックス | L192: =+IF(B199="","",+B199) -> 城北メッツ | O192: =+IF(B201="","",+B201) -> 深川ジャイアンツ | R192: =+IF(B203="","",+B203) -> 中板橋ボーイズ | U192: =+IF(B205="","",+B205) -> 桃五少年野球クラブ | X192: =+IF(B207="","",+B207) -> 日本橋ファイターズ | AA192: 勝 | AB192: 負 | AC192: 分 | AD192: 勝点 | AE192: 失点 | AF192: 得点 | AG192: 順位決定要素 | AH192: 順位
A193: 81 | B193: =IF(データ２!B162="","",VLOOKUP(A193,データ２!$A$2:$B$224,2)) -> 北原少年野球クラブ | C193: ＊ | L193: Ｋ | M193: - | N193: 3 | X193: Ｋ | Y193: - | Z193: 7 | AA193: =COUNTIF(C193:Z194,"○") -> 3 | AB193: =COUNTIF(C193:Z194,"●") -> 2 | AC193: =COUNTIF(C193:Z194,"△") -> 0 | AD193: =+AA193*3+AC193*1 -> 9 | AE193: =+H194+K194+N194+Q194+T194+W194+Z194 -> 28 | AF193: =+F194+I194+L194+O194+R194+U194+X194 -> 31 | AG193: =+RANK(AD193,$AD$193:$AD$208,0)*100+RANK(AE193,$AE$193:$AE$208,1)*10+RANK(AF193,$AF$193:$AF$208,0) -> 262 | AH193: =+RANK(AG193,$AG$193:$AG$208,1) -> 3
F194: 12 | G194: ○ | H194: 1 | I194: 0 | J194: ● | K194: 11 | M194: - | O194: 2 | P194: ● | Q194: 13 | R194: 11 | S194: ○ | T194: 2 | U194: 6 | V194: ○ | W194: 1 | Y194: -
A195: 82 | B195: =IF(データ２!B164="","",VLOOKUP(A195,データ２!$A$2:$B$224,2)) -> 東伊興シャインズ | F195: ＊ | L195: Ｋ | M195: - | N195: 9 | R195: Ｋ | S195: - | T195: 11 | AA195: =COUNTIF(C195:Z196,"○") -> 0 | AB195: =COUNTIF(C195:Z196,"●") -> 5 | AC195: =COUNTIF(C195:Z196,"△") -> 0 | AD195: =+AA195*3+AC195*1 -> 0 | AE195: =+E196+K196+N196+Q196+T196+W196+Z196 -> 58 | AF195: =+C196+I196+L196+O196+R196+U196+X196 -> 8 | AG195: =+RANK(AD195,$AD$193:$AD$208,0)*100+RANK(AE195,$AE$193:$AE$208,1)*10+RANK(AF195,$AF$193:$AF$208,0) -> 786 | AH195: =+RANK(AG195,$AG$193:$AG$208,1) -> 8
C196: 1 | D196: ● | E196: 12 | I196: 3 | J196: ● | K196: 7 | M196: - | O196: 1 | P196: ● | Q196: 17 | S196: - | U196: 3 | V196: ● | W196: 5 | X196: 0 | Y196: ● | Z196: 17
A197: 83 | B197: =IF(データ２!B166="","",VLOOKUP(A197,データ２!$A$2:$B$224,2)) -> 船橋フェニックス | I197: ＊ | R197: Ｋ | S197: - | T197: 16 | U197: Ｋ | V197: - | W197: 17 | X197: Ｋ | Y197: - | Z197: 18 | AA197: =COUNTIF(C197:Z198,"○") -> 3 | AB197: =COUNTIF(C197:Z198,"●") -> 1 | AC197: =COUNTIF(C197:Z198,"△") -> 0 | AD197: =+AA197*3+AC197*1 -> 9 | AE197: =+E198+H198+N198+Q198+T198+W198+Z198 -> 12 | AF197: =C198+F198+L198+O198+R198+U198+X198 -> 30 | AG197: =+RANK(AD197,$AD$193:$AD$208,0)*100+RANK(AE197,$AE$193:$AE$208,1)*10+RANK(AF197,$AF$193:$AF$208,0) -> 223 | AH197: =+RANK(AG197,$AG$193:$AG$208,1) -> 2
C198: 11 | D198: ○ | E198: 0 | F198: 7 | G198: ○ | H198: 3 | L198: 8 | M198: ○ | N198: 2 | O198: 4 | P198: ● | Q198: 7 | S198: - | V198: - | Y198: -
A199: 84 | B199: =IF(データ２!B168="","",VLOOKUP(A199,データ２!$A$2:$B$224,2)) -> 城北メッツ | C199: Ｋ | D199: - | E199: 3 | F199: Ｋ | G199: - | H199: 9 | L199: ＊ | O199: Ｋ | P199: - | Q199: 19 | U199: Ｋ | V199: - | W199: 21 | X199: Ｋ | Y199: - | Z199: 22 | AA199: =COUNTIF(C199:Z200,"○") -> 0 | AB199: =COUNTIF(C199:Z200,"●") -> 2 | AC199: =COUNTIF(C199:Z200,"△") -> 0 | AD199: =+AA199*3+AC199*1 -> 0 | AE199: =+E200+H200+K200+Q200+T200+W200+Z200 -> 15 | AF199: =C200+F200+I200+O200+R200+U200+X200 -> 7 | AG199: =+RANK(AD199,$AD$193:$AD$208,0)*100+RANK(AE199,$AE$193:$AE$208,1)*10+RANK(AF199,$AF$193:$AF$208,0) -> 747 | AH199: =+RANK(AG199,$AG$193:$AG$208,1) -> 7
D200: - | G200: - | I200: 2 | J200: ● | K200: 8 | P200: - | R200: 5 | S200: ● | T200: 7 | V200: - | Y200: -
... 67 more rows

Sheet データ１
A2: 作成日 | B2: 2023/2/25 | C2: 作成日 | D2: 20１７/2/1 | E2: 作成日 | F2: 20１７/2/1 | G2: 作成日 | H2: 20１７/2/1 | I2: 作成日 | J2: 20１７/2/1 | K2: 作成日 | L2: 20１７/2/1 | M2: 作成日 | N2: 20１７/2/1 | O2: 作成日 | P2: 20１７/2/1 | Q2: 作成日 | R2: 20１７/2/1 | S2: 作成日 | T2: 20１７/2/1 | U2: 作成日 | V2: 20１７/2/1 | W2: 作成日 | X2: 20１７/2/1 | Y2: 作成日 | Z2: 20１７/2/1 | AA2: 作成日 | AB2: 20１７/2/1 | AC2: 作成日 | AD2: 20１７/2/1 | AE2: 作成日 | AF2: 20１７/2/1 | AG2: 作成日 | AH2: 20１７/2/1 | AI2: 作成日 | AJ2: 20１７/2/1 | AK2: 作成日 | AL2: 20１７/2/1 | AM2: 作成日 | AN2: 20１７/2/1 | AO2: 作成日 | AP2: 20１７/2/1 | AQ2: 作成日 | AR2: 20１７/2/1 | AS2: 作成日 | AT2: 20１７/2/1 | AU2: 作成日 | AV2: 20１７/2/1 | AW2: 作成日 | AX2: 20１７/2/1 | AY2: 作成日 | AZ2: 20１７/2/1 | BA2: 作成日 | BB2: 20１７/2/1 | BC2: 作成日 | BD2: 20１７/2/1 | BE2: 作成日 | BF2: 20１７/2/1 | BG2: 作成日 | BH2: 20１７/2/1 | BI2: 作成日 | BJ2: 20１７/2/1 | BK2: 作成日 | BL2: 20１７/2/1 | BM2: 作成日 | BN2: 20１７/2/1 | BO2: 作成日 | BP2: 20１７/2/1 | BQ2: 作成日 | BR2: 20１７/2/1 | BS2: 作成日 | BT2: 20１７/2/1 | BU2: 作成日 | BV2: 20１７/2/1 | BW2: 作成日 | BX2: 20１７/2/1 | BY2: 作成日 | BZ2: 20１７/2/1 | CA2: 作成日 | CB2: 20１７/2/1 | CC2: 作成日 | CD2: 20１７/2/1 | CE2: 作成日 | CF2: 20１７/2/1 | CG2: 作成日 | CH2: 20１７/2/1 | CI2: 作成日 | CJ2: 20１７/2/1 | CK2: 作成日 | CL2: 20１７/2/1 | CM2: 作成日 | CN2: 20１７/2/1 | CO2: 作成日 | CP2: 20１７/2/1 | CQ2: 作成日 | CR2: 20１７/2/1 | CS2: 作成日 | CT2: 20１７/2/1 | CU2: 作成日 | CV2: 20１７/2/1 | CW2: 作成日 | CX2: 20１７/2/1 | CY2: 作成日 | CZ2: 20１７/2/1 | DA2: 作成日 | DB2: 20１７/2/1 | DC2: 作成日 | DD2: 20１７/2/1 | DE2: 作成日 | DF2: 20１７/2/1 | DG2: 作成日 | DH2: 20１７/2/1 | DI2: 作成日 | DJ2: 20１７/2/1 | DK2: 作成日 | DL2: 20１７/2/1 | DM2: 作成日 | DN2: 20１７/2/1 | DO2: 作成日 | DP2: 20１７/2/1 | DQ2: 作成日 | DR2: 20１７/2/1 | DS2: 作成日 | DT2: 20１７/2/1 | DU2: 作成日 | DV2: 20１７/2/1 | DW2: 作成日 | DX2: 20１７/2/1 | DY2: 作成日 | DZ2: 20１７/2/1 | EA2: 作成日 | EB2: 20１７/2/1 | EC2: 作成日 | ED2: 20１７/2/1 | EE2: 作成日 | EF2: 20１７/2/1 | EG2: 作成日 | EH2: 20１７/2/1 | EI2: 作成日 | EJ2: 20１７/2/1 | EK2: 作成日 | EL2: 20１７/2/1 | EM2: 作成日 | EN2: 20１７/2/1 | EO2: 作成日 | EP2: 20１７/2/1 | EQ2: 作成日 | ER2: 20１７/2/1 | ES2: 作成日 | ET2: 20１７/2/1 | EU2: 作成日 | EV2: 20１７/2/1 | EW2: 作成日 | EX2: 20１７/2/1 | EY2: 作成日 | EZ2: 20１７/2/1 | FA2: 作成日 | FB2: 20１７/2/1 | FC2: 作成日 | FD2: 20１７/2/1 | FE2: 作成日 | FF2: 20１７/2/1 | FG2: 作成日 | FH2: 20１７/2/1 | FI2: 作成日 | FJ2: 20１７/2/1 | FK2: 作成日 | FL2: 20１７/2/1 | FM2: 作成日 | FN2: 20１７/2/1 | FO2: 作成日 | FP2: 20１７/2/1 | FQ2: 作成日 | FR2: 20１７/2/1 | FS2: 作成日 | FT2: 20１７/2/1 | FU2: 作成日 | FV2: 20１７/2/1 | FW2: 作成日 | FX2: 20１７/2/1 | FY2: 作成日 | FZ2: 20１７/2/1 | GA2: 作成日 | GB2: 20１７/2/1 | GC2: 作成日 | GD2: 20１７/2/1 | GE2: 作成日 | GF2: 20１７/2/1 | GG2: 作成日 | GH2: 20１７/2/1 | GI2: 作成日 | GJ2: 20１７/2/1 | GK2: 作成日 | GL2: 20１７/2/1 | GM2: 作成日 | GN2: 20１７/2/1 | GO2: 作成日 | GP2: 20１７/2/1 | GQ2: 作成日 | GR2: 20１７/2/1 | GS2: 作成日 | GT2: 20１７/2/1 | GU2: 作成日 | GV2: 20１７/2/1 | GW2: 作成日 | GX2: 20１７/2/1 | GY2: 作成日 | GZ2: 20１７/2/1 | HA2: 作成日 | HB2: 20１７/2/1 | HC2: 作成日 | HD2: 20１７/2/1 | HE2: 作成日 | HF2: 20１７/2/1 | HG2: 作成日 | HH2: 20１７/2/1 | HI2: 作成日 | HJ2: 20１７/2/1 | HK2: 作成日 | HL2: 20１７/2/1 | HM2: 作成日 | HN2: 20１７/2/1 | HO2: 作成日 | HP2: 20１７/2/1 | HQ2: 作成日 | HR2: 20１７/2/1 | HS2: 作成日 | HT2: 20１７/2/1 | HU2: 作成日 | HV2: 20１７/2/1 | HW2: 作成日 | HX2: 20１７/2/1 | HY2: 作成日 | HZ2: 20１７/2/1 | IA2: 作成日 | IB2: 20１７/2/1 | IC2: 作成日 | ID2: 20１７/2/1 | IE2: 作成日 | IF2: 20１７/2/1 | IG2: 作成日 | IH2: 20１７/2/1 | II2: 作成日 | IJ2: 20１７/2/1 | IK2: 作成日 | IL2: 20１７/2/1 | IM2: 作成日 | IN2: 20１７/2/1 | IO2: 作成日 | IP2: 20１７/2/1 | IQ2: 作成日 | IR2: 20１７/2/1 | IS2: 作成日 | IT2: 20１７/2/1 | IU2: 作成日 | IV2: 20１７/2/1
A4: 年度 | B4: ２０２３年 | C4: 年度 | D4: ２０１７年 | E4: 年度 | F4: ２０１７年 | G4: 年度 | H4: ２０１７年 | I4: 年度 | J4: ２０１７年 | K4: 年度 | L4: ２０１７年 | M4: 年度 | N4: ２０１７年 | O4: 年度 | P4: ２０１７年 | Q4: 年度 | R4: ２０１７年 | S4: 年度 | T4: ２０１７年 | U4: 年度 | V4: ２０１７年 | W4: 年度 | X4: ２０１７年 | Y4: 年度 | Z4: ２０１７年 | AA4: 年度 | AB4: ２０１７年 | AC4: 年度 | AD4: ２０１７年 | AE4: 年度 | AF4: ２０１７年 | AG4: 年度 | AH4: ２０１７年 | AI4: 年度 | AJ4: ２０１７年 | AK4: 年度 | AL4: ２０１７年 | AM4: 年度 | AN4: ２０１７年 | AO4: 年度 | AP4: ２０１７年 | AQ4: 年度 | AR4: ２０１７年 | AS4: 年度 | AT4: ２０１７年 | AU4: 年度 | AV4: ２０１７年 | AW4: 年度 | AX4: ２０１７年 | AY4: 年度 | AZ4: ２０１７年 | BA4: 年度 | BB4: ２０１７年 | BC4: 年度 | BD4: ２０１７年 | BE4: 年度 | BF4: ２０１７年 | BG4: 年度 | BH4: ２０１７年 | BI4: 年度 | BJ4: ２０１７年 | BK4: 年度 | BL4: ２０１７年 | BM4: 年度 | BN4: ２０１７年 | BO4: 年度 | BP4: ２０１７年 | BQ4: 年度 | BR4: ２０１７年 | BS4: 年度 | BT4: ２０１７年 | BU4: 年度 | BV4: ２０１７年 | BW4: 年度 | BX4: ２０１７年 | BY4: 年度 | BZ4: ２０１７年 | CA4: 年度 | CB4: ２０１７年 | CC4: 年度 | CD4: ２０１７年 | CE4: 年度 | CF4: ２０１７年 | CG4: 年度 | CH4: ２０１７年 | CI4: 年度 | CJ4: ２０１７年 | CK4: 年度 | CL4: ２０１７年 | CM4: 年度 | CN4: ２０１７年 | CO4: 年度 | CP4: ２０１７年 | CQ4: 年度 | CR4: ２０１７年 | CS4: 年度 | CT4: ２０１７年 | CU4: 年度 | CV4: ２０１７年 | CW4: 年度 | CX4: ２０１７年 | CY4: 年度 | CZ4: ２０１７年 | DA4: 年度 | DB4: ２０１７年 | DC4: 年度 | DD4: ２０１７年 | DE4: 年度 | DF4: ２０１７年 | DG4: 年度 | DH4: ２０１７年 | DI4: 年度 | DJ4: ２０１７年 | DK4: 年度 | DL4: ２０１７年 | DM4: 年度 | DN4: ２０１７年 | DO4: 年度 | DP4: ２０１７年 | DQ4: 年度 | DR4: ２０１７年 | DS4: 年度 | DT4: ２０１７年 | DU4: 年度 | DV4: ２０１７年 | DW4: 年度 | DX4: ２０１７年 | DY4: 年度 | DZ4: ２０１７年 | EA4: 年度 | EB4: ２０１７年 | EC4: 年度 | ED4: ２０１７年 | EE4: 年度 | EF4: ２０１７年 | EG4: 年度 | EH4: ２０１７年 | EI4: 年度 | EJ4: ２０１７年 | EK4: 年度 | EL4: ２０１７年 | EM4: 年度 | EN4: ２０１７年 | EO4: 年度 | EP4: ２０１７年 | EQ4: 年度 | ER4: ２０１７年 | ES4: 年度 | ET4: ２０１７年 | EU4: 年度 | EV4: ２０１７年 | EW4: 年度 | EX4: ２０１７年 | EY4: 年度 | EZ4: ２０１７年 | FA4: 年度 | FB4: ２０１７年 | FC4: 年度 | FD4: ２０１７年 | FE4: 年度 | FF4: ２０１７年 | FG4: 年度 | FH4: ２０１７年 | FI4: 年度 | FJ4: ２０１７年 | FK4: 年度 | FL4: ２０１７年 | FM4: 年度 | FN4: ２０１７年 | FO4: 年度 | FP4: ２０１７年 | FQ4: 年度 | FR4: ２０１７年 | FS4: 年度 | FT4: ２０１７年 | FU4: 年度 | FV4: ２０１７年 | FW4: 年度 | FX4: ２０１７年 | FY4: 年度 | FZ4: ２０１７年 | GA4: 年度 | GB4: ２０１７年 | GC4: 年度 | GD4: ２０１７年 | GE4: 年度 | GF4: ２０１７年 | GG4: 年度 | GH4: ２０１７年 | GI4: 年度 | GJ4: ２０１７年 | GK4: 年度 | GL4: ２０１７年 | GM4: 年度 | GN4: ２０１７年 | GO4: 年度 | GP4: ２０１７年 | GQ4: 年度 | GR4: ２０１７年 | GS4: 年度 | GT4: ２０１７年 | GU4: 年度 | GV4: ２０１７年 | GW4: 年度 | GX4: ２０１７年 | GY4: 年度 | GZ4: ２０１７年 | HA4: 年度 | HB4: ２０１７年 | HC4: 年度 | HD4: ２０１７年 | HE4: 年度 | HF4: ２０１７年 | HG4: 年度 | HH4: ２０１７年 | HI4: 年度 | HJ4: ２０１７年 | HK4: 年度 | HL4: ２０１７年 | HM4: 年度 | HN4: ２０１７年 | HO4: 年度 | HP4: ２０１７年 | HQ4: 年度 | HR4: ２０１７年 | HS4: 年度 | HT4: ２０１７年 | HU4: 年度 | HV4: ２０１７年 | HW4: 年度 | HX4: ２０１７年 | HY4: 年度 | HZ4: ２０１７年 | IA4: 年度 | IB4: ２０１７年 | IC4: 年度 | ID4: ２０１７年 | IE4: 年度 | IF4: ２０１７年 | IG4: 年度 | IH4: ２０１７年 | II4: 年度 | IJ4: ２０１７年 | IK4: 年度 | IL4: ２０１７年 | IM4: 年度 | IN4: ２０１７年 | IO4: 年度 | IP4: ２０１７年 | IQ4: 年度 | IR4: ２０１７年 | IS4: 年度 | IT4: ２０１７年 | IU4: 年度 | IV4: ２０１７年
A6: 表題１ | B6: スーパーリ－グ 第１７回大会 Aブロック ２０２３ | C6: 表題１ | D6: スーパーリ－グ 第１０回大会 Aブロック ２０１７ | E6: 表題１ | F6: スーパーリ－グ 第１０回大会 Aブロック ２０１７ | G6: 表題１ | H6: スーパーリ－グ 第１０回大会 Aブロック ２０１７ | I6: 表題１ | J6: スーパーリ－グ 第１０回大会 Aブロック ２０１７ | K6: 表題１ | L6: スーパーリ－グ 第１０回大会 Aブロック ２０１７ | M6: 表題１ | N6: スーパーリ－グ 第１０回大会 Aブロック ２０１７ | O6: 表題１ | P6: スーパーリ－グ 第１０回大会 Aブロック ２０１７ | Q6: 表題１ | R6: スーパーリ－グ 第１０回大会 Aブロック ２０１７ | S6: 表題１ | T6: スーパーリ－グ 第１０回大会 Aブロック ２０１７ | U6: 表題１ | V6: スーパーリ－グ 第１０回大会 Aブロック ２０１７ | W6: 表題１ | X6: スーパーリ－グ 第１０回大会 Aブロック ２０１７ | Y6: 表題１ | Z6: スーパーリ－グ 第１０回大会 Aブロック ２０１７ | AA6: 表題１ | AB6: スーパーリ－グ 第１０回大会 Aブロック ２０１７ | AC6: 表題１ | AD6: スーパーリ－グ 第１０回大会 Aブロック ２０１７ | AE6: 表題１ | AF6: スーパーリ－グ 第１０回大会 Aブロック ２０１７ | AG6: 表題１ | AH6: スーパーリ－グ 第１０回大会 Aブロック ２０１７ | AI6: 表題１ | AJ6: スーパーリ－グ 第１０回大会 Aブロック ２０１７ | AK6: 表題１ | AL6: スーパーリ－グ 第１０回大会 Aブロック ２０１７ | AM6: 表題１ | AN6: スーパーリ－グ 第１０回大会 Aブロック ２０１７ | AO6: 表題１ | AP6: スーパーリ－グ 第１０回大会 Aブロック ２０１７ | AQ6: 表題１ | AR6: スーパーリ－グ 第１０回大会 Aブロック ２０１７ | AS6: 表題１ | AT6: スーパーリ－グ 第１０回大会 Aブロック ２０１７ | AU6: 表題１ | AV6: スーパーリ－グ 第１０回大会 Aブロック ２０１７ | AW6: 表題１ | AX6: スーパーリ－グ 第１０回大会 Aブロック ２０１７ | AY6: 表題１ | AZ6: スーパーリ－グ 第１０回大会 Aブロック ２０１７ | BA6: 表題１ | BB6: スーパーリ－グ 第１０回大会 Aブロック ２０１７ | BC6: 表題１ | BD6: スーパーリ－グ 第１０回大会 Aブロック ２０１７ | BE6: 表題１ | BF6: スーパーリ－グ 第１０回大会 Aブロック ２０１７ | BG6: 表題１ | BH6: スーパーリ－グ 第１０回大会 Aブロック ２０１７ | BI6: 表題１ | BJ6: スーパーリ－グ 第１０回大会 Aブロック ２０１７ | BK6: 表題１ | BL6: スーパーリ－グ 第１０回大会 Aブロック ２０１７ | BM6: 表題１ | BN6: スーパーリ－グ 第１０回大会 Aブロック ２０１７ | BO6: 表題１ | BP6: スーパーリ－グ 第１０回大会 Aブロック ２０１７ | BQ6: 表題１ | BR6: スーパーリ－グ 第１０回大会 Aブロック ２０１７ | BS6: 表題１ | BT6: スーパーリ－グ 第１０回大会 Aブロック ２０１７ | BU6: 表題１ | BV6: スーパーリ－グ 第１０回大会 Aブロック ２０１７ | BW6: 表題１ | BX6: スーパーリ－グ 第１０回大会 Aブロック ２０１７ | BY6: 表題１ | BZ6: スーパーリ－グ 第１０回大会 Aブロック ２０１７ | CA6: 表題１ | CB6: スーパーリ－グ 第１０回大会 Aブロック ２０１７ | CC6: 表題１ | CD6: スーパーリ－グ 第１０回大会 Aブロック ２０１７ | CE6: 表題１ | CF6: スーパーリ－グ 第１０回大会 Aブロック ２０１７ | CG6: 表題１ | CH6: スーパーリ－グ 第１０回大会 Aブロック ２０１７ | CI6: 表題１ | CJ6: スーパーリ－グ 第１０回大会 Aブロック ２０１７ | CK6: 表題１ | CL6: スーパーリ－グ 第１０回大会 Aブロック ２０１７ | CM6: 表題１ | CN6: スーパーリ－グ 第１０回大会 Aブロック ２０１７ | CO6: 表題１ | CP6: スーパーリ－グ 第１０回大会 Aブロック ２０１７ | CQ6: 表題１ | CR6: スーパーリ－グ 第１０回大会 Aブロック ２０１７ | CS6: 表題１ | CT6: スーパーリ－グ 第１０回大会 Aブロック ２０１７ | CU6: 表題１ | CV6: スーパーリ－グ 第１０回大会 Aブロック ２０１７ | CW6: 表題１ | CX6: スーパーリ－グ 第１０回大会 Aブロック ２０１７ | CY6: 表題１ | CZ6: スーパーリ－グ 第１０回大会 Aブロック ２０１７ | DA6: 表題１ | DB6: スーパーリ－グ 第１０回大会 Aブロック ２０１７ | DC6: 表題１ | DD6: スーパーリ－グ 第１０回大会 Aブロック ２０１７ | DE6: 表題１ | DF6: スーパーリ－グ 第１０回大会 Aブロック ２０１７ | DG6: 表題１ | DH6: スーパーリ－グ 第１０回大会 Aブロック ２０１７ | DI6: 表題１ | DJ6: スーパーリ－グ 第１０回大会 Aブロック ２０１７ | DK6: 表題１ | DL6: スーパーリ－グ 第１０回大会 Aブロック ２０１７ | DM6: 表題１ | DN6: スーパーリ－グ 第１０回大会 Aブロック ２０１７ | DO6: 表題１ | DP6: スーパーリ－グ 第１０回大会 Aブロック ２０１７ | DQ6: 表題１ | DR6: スーパーリ－グ 第１０回大会 Aブロック ２０１７ | DS6: 表題１ | DT6: スーパーリ－グ 第１０回大会 Aブロック ２０１７ | DU6: 表題１ | DV6: スーパーリ－グ 第１０回大会 Aブロック ２０１７ | DW6: 表題１ | DX6: スーパーリ－グ 第１０回大会 Aブロック ２０１７ | DY6: 表題１ | DZ6: スーパーリ－グ 第１０回大会 Aブロック ２０１７ | EA6: 表題１ | EB6: スーパーリ－グ 第１０回大会 Aブロック ２０１７ | EC6: 表題１ | ED6: スーパーリ－グ 第１０回大会 Aブロック ２０１７ | EE6: 表題１ | EF6: スーパーリ－グ 第１０回大会 Aブロック ２０１７ | EG6: 表題１ | EH6: スーパーリ－グ 第１０回大会 Aブロック ２０１７ | EI6: 表題１ | EJ6: スーパーリ－グ 第１０回大会 Aブロック ２０１７ | EK6: 表題１ | EL6: スーパーリ－グ 第１０回大会 Aブロック ２０１７ | EM6: 表題１ | EN6: スーパーリ－グ 第１０回大会 Aブロック ２０１７ | EO6: 表題１ | EP6: スーパーリ－グ 第１０回大会 Aブロック ２０１７ | EQ6: 表題１ | ER6: スーパーリ－グ 第１０回大会 Aブロック ２０１７ | ES6: 表題１ | ET6: スーパーリ－グ 第１０回大会 Aブロック ２０１７ | EU6: 表題１ | EV6: スーパーリ－グ 第１０回大会 Aブロック ２０１７ | EW6: 表題１ | EX6: スーパーリ－グ 第１０回大会 Aブロック ２０１７ | EY6: 表題１ | EZ6: スーパーリ－グ 第１０回大会 Aブロック ２０１７ | FA6: 表題１ | FB6: スーパーリ－グ 第１０回大会 Aブロック ２０１７ | FC6: 表題１ | FD6: スーパーリ－グ 第１０回大会 Aブロック ２０１７ | FE6: 表題１ | FF6: スーパーリ－グ 第１０回大会 Aブロック ２０１７ | FG6: 表題１ | FH6: スーパーリ－グ 第１０回大会 Aブロック ２０１７ | FI6: 表題１ | FJ6: スーパーリ－グ 第１０回大会 Aブロック ２０１７ | FK6: 表題１ | FL6: スーパーリ－グ 第１０回大会 Aブロック ２０１７ | FM6: 表題１ | FN6: スーパーリ－グ 第１０回大会 Aブロック ２０１７ | FO6: 表題１ | FP6: スーパーリ－グ 第１０回大会 Aブロック ２０１７ | FQ6: 表題１ | FR6: スーパーリ－グ 第１０回大会 Aブロック ２０１７ | FS6: 表題１ | FT6: スーパーリ－グ 第１０回大会 Aブロック ２０１７ | FU6: 表題１ | FV6: スーパーリ－グ 第１０回大会 Aブロック ２０１７ | FW6: 表題１ | FX6: スーパーリ－グ 第１０回大会 Aブロック ２０１７ | FY6: 表題１ | FZ6: スーパーリ－グ 第１０回大会 Aブロック ２０１７ | GA6: 表題１ | GB6: スーパーリ－グ 第１０回大会 Aブロック ２０１７ | GC6: 表題１ | GD6: スーパーリ－グ 第１０回大会 Aブロック ２０１７ | GE6: 表題１ | GF6: スーパーリ－グ 第１０回大会 Aブロック ２０１７ | GG6: 表題１ | GH6: スーパーリ－グ 第１０回大会 Aブロック ２０１７ | GI6: 表題１ | GJ6: スーパーリ－グ 第１０回大会 Aブロック ２０１７ | GK6: 表題１ | GL6: スーパーリ－グ 第１０回大会 Aブロック ２０１７ | GM6: 表題１ | GN6: スーパーリ－グ 第１０回大会 Aブロック ２０１７ | GO6: 表題１ | GP6: スーパーリ－グ 第１０回大会 Aブロック ２０１７ | GQ6: 表題１ | GR6: スーパーリ－グ 第１０回大会 Aブロック ２０１７ | GS6: 表題１ | GT6: スーパーリ－グ 第１０回大会 Aブロック ２０１７ | GU6: 表題１ | GV6: スーパーリ－グ 第１０回大会 Aブロック ２０１７ | GW6: 表題１ | GX6: スーパーリ－グ 第１０回大会 Aブロック ２０１７ | GY6: 表題１ | GZ6: スーパーリ－グ 第１０回大会 Aブロック ２０１７ | HA6: 表題１ | HB6: スーパーリ－グ 第１０回大会 Aブロック ２０１７ | HC6: 表題１ | HD6: スーパーリ－グ 第１０回大会 Aブロック ２０１７ | HE6: 表題１ | HF6: スーパーリ－グ 第１０回大会 Aブロック ２０１７ | HG6: 表題１ | HH6: スーパーリ－グ 第１０回大会 Aブロック ２０１７ | HI6: 表題１ | HJ6: スーパーリ－グ 第１０回大会 Aブロック ２０１７ | HK6: 表題１ | HL6: スーパーリ－グ 第１０回大会 Aブロック ２０１７ | HM6: 表題１ | HN6: スーパーリ－グ 第１０回大会 Aブロック ２０１７ | HO6: 表題１ | HP6: スーパーリ－グ 第１０回大会 Aブロック ２０１７ | HQ6: 表題１ | HR6: スーパーリ－グ 第１０回大会 Aブロック ２０１７ | HS6: 表題１ | HT6: スーパーリ－グ 第１０回大会 Aブロック ２０１７ | HU6: 表題１ | HV6: スーパーリ－グ 第１０回大会 Aブロック ２０１７ | HW6: 表題１ | HX6: スーパーリ－グ 第１０回大会 Aブロック ２０１７ | HY6: 表題１ | HZ6: スーパーリ－グ 第１０回大会 Aブロック ２０１７ | IA6: 表題１ | IB6: スーパーリ－グ 第１０回大会 Aブロック ２０１７ | IC6: 表題１ | ID6: スーパーリ－グ 第１０回大会 Aブロック ２０１７ | IE6: 表題１ | IF6: スーパーリ－グ 第１０回大会 Aブロック ２０１７ | IG6: 表題１ | IH6: スーパーリ－グ 第１０回大会 Aブロック ２０１７ | II6: 表題１ | IJ6: スーパーリ－グ 第１０回大会 Aブロック ２０１７ | IK6: 表題１ | IL6: スーパーリ－グ 第１０回大会 Aブロック ２０１７ | IM6: 表題１ | IN6: スーパーリ－グ 第１０回大会 Aブロック ２０１７ | IO6: 表題１ | IP6: スーパーリ－グ 第１０回大会 Aブロック ２０１７ | IQ6: 表題１ | IR6: スーパーリ－グ 第１０回大会 Aブロック ２０１７ | IS6: 表題１ | IT6: スーパーリ－グ 第１０回大会 Aブロック ２０１７ | IU6: 表題１ | IV6: スーパーリ－グ 第１０回大会 Aブロック ２０１７
A8: 表題２ | B8: スーパーリ－グ 第１７回大会 Ｂブロック ２０２３ | C8: 表題２ | D8: スーパーリ－グ 第１０回大会 Ｂブロック ２０１７ | E8: 表題２ | F8: スーパーリ－グ 第１０回大会 Ｂブロック ２０１７ | G8: 表題２ | H8: スーパーリ－グ 第１０回大会 Ｂブロック ２０１７ | I8: 表題２ | J8: スーパーリ－グ 第１０回大会 Ｂブロック ２０１７ | K8: 表題２ | L8: スーパーリ－グ 第１０回大会 Ｂブロック ２０１７ | M8: 表題２ | N8: スーパーリ－グ 第１０回大会 Ｂブロック ２０１７ | O8: 表題２ | P8: スーパーリ－グ 第１０回大会 Ｂブロック ２０１７ | Q8: 表題２ | R8: スーパーリ－グ 第１０回大会 Ｂブロック ２０１７ | S8: 表題２ | T8: スーパーリ－グ 第１０回大会 Ｂブロック ２０１７ | U8: 表題２ | V8: スーパーリ－グ 第１０回大会 Ｂブロック ２０１７ | W8: 表題２ | X8: スーパーリ－グ 第１０回大会 Ｂブロック ２０１７ | Y8: 表題２ | Z8: スーパーリ－グ 第１０回大会 Ｂブロック ２０１７ | AA8: 表題２ | AB8: スーパーリ－グ 第１０回大会 Ｂブロック ２０１７ | AC8: 表題２ | AD8: スーパーリ－グ 第１０回大会 Ｂブロック ２０１７ | AE8: 表題２ | AF8: スーパーリ－グ 第１０回大会 Ｂブロック ２０１７ | AG8: 表題２ | AH8: スーパーリ－グ 第１０回大会 Ｂブロック ２０１７ | AI8: 表題２ | AJ8: スーパーリ－グ 第１０回大会 Ｂブロック ２０１７ | AK8: 表題２ | AL8: スーパーリ－グ 第１０回大会 Ｂブロック ２０１７ | AM8: 表題２ | AN8: スーパーリ－グ 第１０回大会 Ｂブロック ２０１７ | AO8: 表題２ | AP8: スーパーリ－グ 第１０回大会 Ｂブロック ２０１７ | AQ8: 表題２ | AR8: スーパーリ－グ 第１０回大会 Ｂブロック ２０１７ | AS8: 表題２ | AT8: スーパーリ－グ 第１０回大会 Ｂブロック ２０１７ | AU8: 表題２ | AV8: スーパーリ－グ 第１０回大会 Ｂブロック ２０１７ | AW8: 表題２ | AX8: スーパーリ－グ 第１０回大会 Ｂブロック ２０１７ | AY8: 表題２ | AZ8: スーパーリ－グ 第１０回大会 Ｂブロック ２０１７ | BA8: 表題２ | BB8: スーパーリ－グ 第１０回大会 Ｂブロック ２０１７ | BC8: 表題２ | BD8: スーパーリ－グ 第１０回大会 Ｂブロック ２０１７ | BE8: 表題２ | BF8: スーパーリ－グ 第１０回大会 Ｂブロック ２０１７ | BG8: 表題２ | BH8: スーパーリ－グ 第１０回大会 Ｂブロック ２０１７ | BI8: 表題２ | BJ8: スーパーリ－グ 第１０回大会 Ｂブロック ２０１７ | BK8: 表題２ | BL8: スーパーリ－グ 第１０回大会 Ｂブロック ２０１７ | BM8: 表題２ | BN8: スーパーリ－グ 第１０回大会 Ｂブロック ２０１７ | BO8: 表題２ | BP8: スーパーリ－グ 第１０回大会 Ｂブロック ２０１７ | BQ8: 表題２ | BR8: スーパーリ－グ 第１０回大会 Ｂブロック ２０１７ | BS8: 表題２ | BT8: スーパーリ－グ 第１０回大会 Ｂブロック ２０１７ | BU8: 表題２ | BV8: スーパーリ－グ 第１０回大会 Ｂブロック ２０１７ | BW8: 表題２ | BX8: スーパーリ－グ 第１０回大会 Ｂブロック ２０１７ | BY8: 表題２ | BZ8: スーパーリ－グ 第１０回大会 Ｂブロック ２０１７ | CA8: 表題２ | CB8: スーパーリ－グ 第１０回大会 Ｂブロック ２０１７ | CC8: 表題２ | CD8: スーパーリ－グ 第１０回大会 Ｂブロック ２０１７ | CE8: 表題２ | CF8: スーパーリ－グ 第１０回大会 Ｂブロック ２０１７ | CG8: 表題２ | CH8: スーパーリ－グ 第１０回大会 Ｂブロック ２０１７ | CI8: 表題２ | CJ8: スーパーリ－グ 第１０回大会 Ｂブロック ２０１７ | CK8: 表題２ | CL8: スーパーリ－グ 第１０回大会 Ｂブロック ２０１７ | CM8: 表題２ | CN8: スーパーリ－グ 第１０回大会 Ｂブロック ２０１７ | CO8: 表題２ | CP8: スーパーリ－グ 第１０回大会 Ｂブロック ２０１７ | CQ8: 表題２ | CR8: スーパーリ－グ 第１０回大会 Ｂブロック ２０１７ | CS8: 表題２ | CT8: スーパーリ－グ 第１０回大会 Ｂブロック ２０１７ | CU8: 表題２ | CV8: スーパーリ－グ 第１０回大会 Ｂブロック ２０１７ | CW8: 表題２ | CX8: スーパーリ－グ 第１０回大会 Ｂブロック ２０１７ | CY8: 表題２ | CZ8: スーパーリ－グ 第１０回大会 Ｂブロック ２０１７ | DA8: 表題２ | DB8: スーパーリ－グ 第１０回大会 Ｂブロック ２０１７ | DC8: 表題２ | DD8: スーパーリ－グ 第１０回大会 Ｂブロック ２０１７ | DE8: 表題２ | DF8: スーパーリ－グ 第１０回大会 Ｂブロック ２０１７ | DG8: 表題２ | DH8: スーパーリ－グ 第１０回大会 Ｂブロック ２０１７ | DI8: 表題２ | DJ8: スーパーリ－グ 第１０回大会 Ｂブロック ２０１７ | DK8: 表題２ | DL8: スーパーリ－グ 第１０回大会 Ｂブロック ２０１７ | DM8: 表題２ | DN8: スーパーリ－グ 第１０回大会 Ｂブロック ２０１７ | DO8: 表題２ | DP8: スーパーリ－グ 第１０回大会 Ｂブロック ２０１７ | DQ8: 表題２ | DR8: スーパーリ－グ 第１０回大会 Ｂブロック ２０１７ | DS8: 表題２ | DT8: スーパーリ－グ 第１０回大会 Ｂブロック ２０１７ | DU8: 表題２ | DV8: スーパーリ－グ 第１０回大会 Ｂブロック ２０１７ | DW8: 表題２ | DX8: スーパーリ－グ 第１０回大会 Ｂブロック ２０１７ | DY8: 表題２ | DZ8: スーパーリ－グ 第１０回大会 Ｂブロック ２０１７ | EA8: 表題２ | EB8: スーパーリ－グ 第１０回大会 Ｂブロック ２０１７ | EC8: 表題２ | ED8: スーパーリ－グ 第１０回大会 Ｂブロック ２０１７ | EE8: 表題２ | EF8: スーパーリ－グ 第１０回大会 Ｂブロック ２０１７ | EG8: 表題２ | EH8: スーパーリ－グ 第１０回大会 Ｂブロック ２０１７ | EI8: 表題２ | EJ8: スーパーリ－グ 第１０回大会 Ｂブロック ２０１７ | EK8: 表題２ | EL8: スーパーリ－グ 第１０回大会 Ｂブロック ２０１７ | EM8: 表題２ | EN8: スーパーリ－グ 第１０回大会 Ｂブロック ２０１７ | EO8: 表題２ | EP8: スーパーリ－グ 第１０回大会 Ｂブロック ２０１７ | EQ8: 表題２ | ER8: スーパーリ－グ 第１０回大会 Ｂブロック ２０１７ | ES8: 表題２ | ET8: スーパーリ－グ 第１０回大会 Ｂブロック ２０１７ | EU8: 表題２ | EV8: スーパーリ－グ 第１０回大会 Ｂブロック ２０１７ | EW8: 表題２ | EX8: スーパーリ－グ 第１０回大会 Ｂブロック ２０１７ | EY8: 表題２ | EZ8: スーパーリ－グ 第１０回大会 Ｂブロック ２０１７ | FA8: 表題２ | FB8: スーパーリ－グ 第１０回大会 Ｂブロック ２０１７ | FC8: 表題２ | FD8: スーパーリ－グ 第１０回大会 Ｂブロック ２０１７ | FE8: 表題２ | FF8: スーパーリ－グ 第１０回大会 Ｂブロック ２０１７ | FG8: 表題２ | FH8: スーパーリ－グ 第１０回大会 Ｂブロック ２０１７ | FI8: 表題２ | FJ8: スーパーリ－グ 第１０回大会 Ｂブロック ２０１７ | FK8: 表題２ | FL8: スーパーリ－グ 第１０回大会 Ｂブロック ２０１７ | FM8: 表題２ | FN8: スーパーリ－グ 第１０回大会 Ｂブロック ２０１７ | FO8: 表題２ | FP8: スーパーリ－グ 第１０回大会 Ｂブロック ２０１７ | FQ8: 表題２ | FR8: スーパーリ－グ 第１０回大会 Ｂブロック ２０１７ | FS8: 表題２ | FT8: スーパーリ－グ 第１０回大会 Ｂブロック ２０１７ | FU8: 表題２ | FV8: スーパーリ－グ 第１０回大会 Ｂブロック ２０１７ | FW8: 表題２ | FX8: スーパーリ－グ 第１０回大会 Ｂブロック ２０１７ | FY8: 表題２ | FZ8: スーパーリ－グ 第１０回大会 Ｂブロック ２０１７ | GA8: 表題２ | GB8: スーパーリ－グ 第１０回大会 Ｂブロック ２０１７ | GC8: 表題２ | GD8: スーパーリ－グ 第１０回大会 Ｂブロック ２０１７ | GE8: 表題２ | GF8: スーパーリ－グ 第１０回大会 Ｂブロック ２０１７ | GG8: 表題２ | GH8: スーパーリ－グ 第１０回大会 Ｂブロック ２０１７ | GI8: 表題２ | GJ8: スーパーリ－グ 第１０回大会 Ｂブロック ２０１７ | GK8: 表題２ | GL8: スーパーリ－グ 第１０回大会 Ｂブロック ２０１７ | GM8: 表題２ | GN8: スーパーリ－グ 第１０回大会 Ｂブロック ２０１７ | GO8: 表題２ | GP8: スーパーリ－グ 第１０回大会 Ｂブロック ２０１７ | GQ8: 表題２ | GR8: スーパーリ－グ 第１０回大会 Ｂブロック ２０１７ | GS8: 表題２ | GT8: スーパーリ－グ 第１０回大会 Ｂブロック ２０１７ | GU8: 表題２ | GV8: スーパーリ－グ 第１０回大会 Ｂブロック ２０１７ | GW8: 表題２ | GX8: スーパーリ－グ 第１０回大会 Ｂブロック ２０１７ | GY8: 表題２ | GZ8: スーパーリ－グ 第１０回大会 Ｂブロック ２０１７ | HA8: 表題２ | HB8: スーパーリ－グ 第１０回大会 Ｂブロック ２０１７ | HC8: 表題２ | HD8: スーパーリ－グ 第１０回大会 Ｂブロック ２０１７ | HE8: 表題２ | HF8: スーパーリ－グ 第１０回大会 Ｂブロック ２０１７ | HG8: 表題２ | HH8: スーパーリ－グ 第１０回大会 Ｂブロック ２０１７ | HI8: 表題２ | HJ8: スーパーリ－グ 第１０回大会 Ｂブロック ２０１７ | HK8: 表題２ | HL8: スーパーリ－グ 第１０回大会 Ｂブロック ２０１７ | HM8: 表題２ | HN8: スーパーリ－グ 第１０回大会 Ｂブロック ２０１７ | HO8: 表題２ | HP8: スーパーリ－グ 第１０回大会 Ｂブロック ２０１７ | HQ8: 表題２ | HR8: スーパーリ－グ 第１０回大会 Ｂブロック ２０１７ | HS8: 表題２ | HT8: スーパーリ－グ 第１０回大会 Ｂブロック ２０１７ | HU8: 表題２ | HV8: スーパーリ－グ 第１０回大会 Ｂブロック ２０１７ | HW8: 表題２ | HX8: スーパーリ－グ 第１０回大会 Ｂブロック ２０１７ | HY8: 表題２ | HZ8: スーパーリ－グ 第１０回大会 Ｂブロック ２０１７ | IA8: 表題２ | IB8: スーパーリ－グ 第１０回大会 Ｂブロック ２０１７ | IC8: 表題２ | ID8: スーパーリ－グ 第１０回大会 Ｂブロック ２０１７ | IE8: 表題２ | IF8: スーパーリ－グ 第１０回大会 Ｂブロック ２０１７ | IG8: 表題２ | IH8: スーパーリ－グ 第１０回大会 Ｂブロック ２０１７ | II8: 表題２ | IJ8: スーパーリ－グ 第１０回大会 Ｂブロック ２０１７ | IK8: 表題２ | IL8: スーパーリ－グ 第１０回大会 Ｂブロック ２０１７ | IM8: 表題２ | IN8: スーパーリ－グ 第１０回大会 Ｂブロック ２０１７ | IO8: 表題２ | IP8: スーパーリ－グ 第１０回大会 Ｂブロック ２０１７ | IQ8: 表題２ | IR8: スーパーリ－グ 第１０回大会 Ｂブロック ２０１７ | IS8: 表題２ | IT8: スーパーリ－グ 第１０回大会 Ｂブロック ２０１７ | IU8: 表題２ | IV8: スーパーリ－グ 第１０回大会 Ｂブロック ２０１７
A10: 表題３ | B10: スーパーリ－グ 第１７回大会 Ｃブロック ２０２３ | C10: 表題３ | D10: スーパーリ－グ 第１０回大会 Ｃブロック ２０１７ | E10: 表題３ | F10: スーパーリ－グ 第１０回大会 Ｃブロック ２０１７ | G10: 表題３ | H10: スーパーリ－グ 第１０回大会 Ｃブロック ２０１７ | I10: 表題３ | J10: スーパーリ－グ 第１０回大会 Ｃブロック ２０１７ | K10: 表題３ | L10: スーパーリ－グ 第１０回大会 Ｃブロック ２０１７ | M10: 表題３ | N10: スーパーリ－グ 第１０回大会 Ｃブロック ２０１７ | O10: 表題３ | P10: スーパーリ－グ 第１０回大会 Ｃブロック ２０１７ | Q10: 表題３ | R10: スーパーリ－グ 第１０回大会 Ｃブロック ２０１７ | S10: 表題３ | T10: スーパーリ－グ 第１０回大会 Ｃブロック ２０１７ | U10: 表題３ | V10: スーパーリ－グ 第１０回大会 Ｃブロック ２０１７ | W10: 表題３ | X10: スーパーリ－グ 第１０回大会 Ｃブロック ２０１７ | Y10: 表題３ | Z10: スーパーリ－グ 第１０回大会 Ｃブロック ２０１７ | AA10: 表題３ | AB10: スーパーリ－グ 第１０回大会 Ｃブロック ２０１７ | AC10: 表題３ | AD10: スーパーリ－グ 第１０回大会 Ｃブロック ２０１７ | AE10: 表題３ | AF10: スーパーリ－グ 第１０回大会 Ｃブロック ２０１７ | AG10: 表題３ | AH10: スーパーリ－グ 第１０回大会 Ｃブロック ２０１７ | AI10: 表題３ | AJ10: スーパーリ－グ 第１０回大会 Ｃブロック ２０１７ | AK10: 表題３ | AL10: スーパーリ－グ 第１０回大会 Ｃブロック ２０１７ | AM10: 表題３ | AN10: スーパーリ－グ 第１０回大会 Ｃブロック ２０１７ | AO10: 表題３ | AP10: スーパーリ－グ 第１０回大会 Ｃブロック ２０１７ | AQ10: 表題３ | AR10: スーパーリ－グ 第１０回大会 Ｃブロック ２０１７ | AS10: 表題３ | AT10: スーパーリ－グ 第１０回大会 Ｃブロック ２０１７ | AU10: 表題３ | AV10: スーパーリ－グ 第１０回大会 Ｃブロック ２０１７ | AW10: 表題３ | AX10: スーパーリ－グ 第１０回大会 Ｃブロック ２０１７ | AY10: 表題３ | AZ10: スーパーリ－グ 第１０回大会 Ｃブロック ２０１７ | BA10: 表題３ | BB10: スーパーリ－グ 第１０回大会 Ｃブロック ２０１７ | BC10: 表題３ | BD10: スーパーリ－グ 第１０回大会 Ｃブロック ２０１７ | BE10: 表題３ | BF10: スーパーリ－グ 第１０回大会 Ｃブロック ２０１７ | BG10: 表題３ | BH10: スーパーリ－グ 第１０回大会 Ｃブロック ２０１７ | BI10: 表題３ | BJ10: スーパーリ－グ 第１０回大会 Ｃブロック ２０１７ | BK10: 表題３ | BL10: スーパーリ－グ 第１０回大会 Ｃブロック ２０１７ | BM10: 表題３ | BN10: スーパーリ－グ 第１０回大会 Ｃブロック ２０１７ | BO10: 表題３ | BP10: スーパーリ－グ 第１０回大会 Ｃブロック ２０１７ | BQ10: 表題３ | BR10: スーパーリ－グ 第１０回大会 Ｃブロック ２０１７ | BS10: 表題３ | BT10: スーパーリ－グ 第１０回大会 Ｃブロック ２０１７ | BU10: 表題３ | BV10: スーパーリ－グ 第１０回大会 Ｃブロック ２０１７ | BW10: 表題３ | BX10: スーパーリ－グ 第１０回大会 Ｃブロック ２０１７ | BY10: 表題３ | BZ10: スーパーリ－グ 第１０回大会 Ｃブロック ２０１７ | CA10: 表題３ | CB10: スーパーリ－グ 第１０回大会 Ｃブロック ２０１７ | CC10: 表題３ | CD10: スーパーリ－グ 第１０回大会 Ｃブロック ２０１７ | CE10: 表題３ | CF10: スーパーリ－グ 第１０回大会 Ｃブロック ２０１７ | CG10: 表題３ | CH10: スーパーリ－グ 第１０回大会 Ｃブロック ２０１７ | CI10: 表題３ | CJ10: スーパーリ－グ 第１０回大会 Ｃブロック ２０１７ | CK10: 表題３ | CL10: スーパーリ－グ 第１０回大会 Ｃブロック ２０１７ | CM10: 表題３ | CN10: スーパーリ－グ 第１０回大会 Ｃブロック ２０１７ | CO10: 表題３ | CP10: スーパーリ－グ 第１０回大会 Ｃブロック ２０１７ | CQ10: 表題３ | CR10: スーパーリ－グ 第１０回大会 Ｃブロック ２０１７ | CS10: 表題３ | CT10: スーパーリ－グ 第１０回大会 Ｃブロック ２０１７ | CU10: 表題３ | CV10: スーパーリ－グ 第１０回大会 Ｃブロック ２０１７ | CW10: 表題３ | CX10: スーパーリ－グ 第１０回大会 Ｃブロック ２０１７ | CY10: 表題３ | CZ10: スーパーリ－グ 第１０回大会 Ｃブロック ２０１７ | DA10: 表題３ | DB10: スーパーリ－グ 第１０回大会 Ｃブロック ２０１７ | DC10: 表題３ | DD10: スーパーリ－グ 第１０回大会 Ｃブロック ２０１７ | DE10: 表題３ | DF10: スーパーリ－グ 第１０回大会 Ｃブロック ２０１７ | DG10: 表題３ | DH10: スーパーリ－グ 第１０回大会 Ｃブロック ２０１７ | DI10: 表題３ | DJ10: スーパーリ－グ 第１０回大会 Ｃブロック ２０１７ | DK10: 表題３ | DL10: スーパーリ－グ 第１０回大会 Ｃブロック ２０１７ | DM10: 表題３ | DN10: スーパーリ－グ 第１０回大会 Ｃブロック ２０１７ | DO10: 表題３ | DP10: スーパーリ－グ 第１０回大会 Ｃブロック ２０１７ | DQ10: 表題３ | DR10: スーパーリ－グ 第１０回大会 Ｃブロック ２０１７ | DS10: 表題３ | DT10: スーパーリ－グ 第１０回大会 Ｃブロック ２０１７ | DU10: 表題３ | DV10: スーパーリ－グ 第１０回大会 Ｃブロック ２０１７ | DW10: 表題３ | DX10: スーパーリ－グ 第１０回大会 Ｃブロック ２０１７ | DY10: 表題３ | DZ10: スーパーリ－グ 第１０回大会 Ｃブロック ２０１７ | EA10: 表題３ | EB10: スーパーリ－グ 第１０回大会 Ｃブロック ２０１７ | EC10: 表題３ | ED10: スーパーリ－グ 第１０回大会 Ｃブロック ２０１７ | EE10: 表題３ | EF10: スーパーリ－グ 第１０回大会 Ｃブロック ２０１７ | EG10: 表題３ | EH10: スーパーリ－グ 第１０回大会 Ｃブロック ２０１７ | EI10: 表題３ | EJ10: スーパーリ－グ 第１０回大会 Ｃブロック ２０１７ | EK10: 表題３ | EL10: スーパーリ－グ 第１０回大会 Ｃブロック ２０１７ | EM10: 表題３ | EN10: スーパーリ－グ 第１０回大会 Ｃブロック ２０１７ | EO10: 表題３ | EP10: スーパーリ－グ 第１０回大会 Ｃブロック ２０１７ | EQ10: 表題３ | ER10: スーパーリ－グ 第１０回大会 Ｃブロック ２０１７ | ES10: 表題３ | ET10: スーパーリ－グ 第１０回大会 Ｃブロック ２０１７ | EU10: 表題３ | EV10: スーパーリ－グ 第１０回大会 Ｃブロック ２０１７ | EW10: 表題３ | EX10: スーパーリ－グ 第１０回大会 Ｃブロック ２０１７ | EY10: 表題３ | EZ10: スーパーリ－グ 第１０回大会 Ｃブロック ２０１７ | FA10: 表題３ | FB10: スーパーリ－グ 第１０回大会 Ｃブロック ２０１７ | FC10: 表題３ | FD10: スーパーリ－グ 第１０回大会 Ｃブロック ２０１７ | FE10: 表題３ | FF10: スーパーリ－グ 第１０回大会 Ｃブロック ２０１７ | FG10: 表題３ | FH10: スーパーリ－グ 第１０回大会 Ｃブロック ２０１７ | FI10: 表題３ | FJ10: スーパーリ－グ 第１０回大会 Ｃブロック ２０１７ | FK10: 表題３ | FL10: スーパーリ－グ 第１０回大会 Ｃブロック ２０１７ | FM10: 表題３ | FN10: スーパーリ－グ 第１０回大会 Ｃブロック ２０１７ | FO10: 表題３ | FP10: スーパーリ－グ 第１０回大会 Ｃブロック ２０１７ | FQ10: 表題３ | FR10: スーパーリ－グ 第１０回大会 Ｃブロック ２０１７ | FS10: 表題３ | FT10: スーパーリ－グ 第１０回大会 Ｃブロック ２０１７ | FU10: 表題３ | FV10: スーパーリ－グ 第１０回大会 Ｃブロック ２０１７ | FW10: 表題３ | FX10: スーパーリ－グ 第１０回大会 Ｃブロック ２０１７ | FY10: 表題３ | FZ10: スーパーリ－グ 第１０回大会 Ｃブロック ２０１７ | GA10: 表題３ | GB10: スーパーリ－グ 第１０回大会 Ｃブロック ２０１７ | GC10: 表題３ | GD10: スーパーリ－グ 第１０回大会 Ｃブロック ２０１７ | GE10: 表題３ | GF10: スーパーリ－グ 第１０回大会 Ｃブロック ２０１７ | GG10: 表題３ | GH10: スーパーリ－グ 第１０回大会 Ｃブロック ２０１７ | GI10: 表題３ | GJ10: スーパーリ－グ 第１０回大会 Ｃブロック ２０１７ | GK10: 表題３ | GL10: スーパーリ－グ 第１０回大会 Ｃブロック ２０１７ | GM10: 表題３ | GN10: スーパーリ－グ 第１０回大会 Ｃブロック ２０１７ | GO10: 表題３ | GP10: スーパーリ－グ 第１０回大会 Ｃブロック ２０１７ | GQ10: 表題３ | GR10: スーパーリ－グ 第１０回大会 Ｃブロック ２０１７ | GS10: 表題３ | GT10: スーパーリ－グ 第１０回大会 Ｃブロック ２０１７ | GU10: 表題３ | GV10: スーパーリ－グ 第１０回大会 Ｃブロック ２０１７ | GW10: 表題３ | GX10: スーパーリ－グ 第１０回大会 Ｃブロック ２０１７ | GY10: 表題３ | GZ10: スーパーリ－グ 第１０回大会 Ｃブロック ２０１７ | HA10: 表題３ | HB10: スーパーリ－グ 第１０回大会 Ｃブロック ２０１７ | HC10: 表題３ | HD10: スーパーリ－グ 第１０回大会 Ｃブロック ２０１７ | HE10: 表題３ | HF10: スーパーリ－グ 第１０回大会 Ｃブロック ２０１７ | HG10: 表題３ | HH10: スーパーリ－グ 第１０回大会 Ｃブロック ２０１７ | HI10: 表題３ | HJ10: スーパーリ－グ 第１０回大会 Ｃブロック ２０１７ | HK10: 表題３ | HL10: スーパーリ－グ 第１０回大会 Ｃブロック ２０１７ | HM10: 表題３ | HN10: スーパーリ－グ 第１０回大会 Ｃブロック ２０１７ | HO10: 表題３ | HP10: スーパーリ－グ 第１０回大会 Ｃブロック ２０１７ | HQ10: 表題３ | HR10: スーパーリ－グ 第１０回大会 Ｃブロック ２０１７ | HS10: 表題３ | HT10: スーパーリ－グ 第１０回大会 Ｃブロック ２０１７ | HU10: 表題３ | HV10: スーパーリ－グ 第１０回大会 Ｃブロック ２０１７ | HW10: 表題３ | HX10: スーパーリ－グ 第１０回大会 Ｃブロック ２０１７ | HY10: 表題３ | HZ10: スーパーリ－グ 第１０回大会 Ｃブロック ２０１７ | IA10: 表題３ | IB10: スーパーリ－グ 第１０回大会 Ｃブロック ２０１７ | IC10: 表題３ | ID10: スーパーリ－グ 第１０回大会 Ｃブロック ２０１７ | IE10: 表題３ | IF10: スーパーリ－グ 第１０回大会 Ｃブロック ２０１７ | IG10: 表題３ | IH10: スーパーリ－グ 第１０回大会 Ｃブロック ２０１７ | II10: 表題３ | IJ10: スーパーリ－グ 第１０回大会 Ｃブロック ２０１７ | IK10: 表題３ | IL10: スーパーリ－グ 第１０回大会 Ｃブロック ２０１７ | IM10: 表題３ | IN10: スーパーリ－グ 第１０回大会 Ｃブロック ２０１７ | IO10: 表題３ | IP10: スーパーリ－グ 第１０回大会 Ｃブロック ２０１７ | IQ10: 表題３ | IR10: スーパーリ－グ 第１０回大会 Ｃブロック ２０１７ | IS10: 表題３ | IT10: スーパーリ－グ 第１０回大会 Ｃブロック ２０１７ | IU10: 表題３ | IV10: スーパーリ－グ 第１０回大会 Ｃブロック ２０１７
A12: 表題４ | B12: スーパーリ－グ 第１７回大会 Ｄブロック ２０２３ | C12: 表題４ | D12: スーパーリ－グ 第１０回大会 Ｄブロック ２０１７ | E12: 表題４ | F12: スーパーリ－グ 第１０回大会 Ｄブロック ２０１７ | G12: 表題４ | H12: スーパーリ－グ 第１０回大会 Ｄブロック ２０１７ | I12: 表題４ | J12: スーパーリ－グ 第１０回大会 Ｄブロック ２０１７ | K12: 表題４ | L12: スーパーリ－グ 第１０回大会 Ｄブロック ２０１７ | M12: 表題４ | N12: スーパーリ－グ 第１０回大会 Ｄブロック ２０１７ | O12: 表題４ | P12: スーパーリ－グ 第１０回大会 Ｄブロック ２０１７ | Q12: 表題４ | R12: スーパーリ－グ 第１０回大会 Ｄブロック ２０１７ | S12: 表題４ | T12: スーパーリ－グ 第１０回大会 Ｄブロック ２０１７ | U12: 表題４ | V12: スーパーリ－グ 第１０回大会 Ｄブロック ２０１７ | W12: 表題４ | X12: スーパーリ－グ 第１０回大会 Ｄブロック ２０１７ | Y12: 表題４ | Z12: スーパーリ－グ 第１０回大会 Ｄブロック ２０１７ | AA12: 表題４ | AB12: スーパーリ－グ 第１０回大会 Ｄブロック ２０１７ | AC12: 表題４ | AD12: スーパーリ－グ 第１０回大会 Ｄブロック ２０１７ | AE12: 表題４ | AF12: スーパーリ－グ 第１０回大会 Ｄブロック ２０１７ | AG12: 表題４ | AH12: スーパーリ－グ 第１０回大会 Ｄブロック ２０１７ | AI12: 表題４ | AJ12: スーパーリ－グ 第１０回大会 Ｄブロック ２０１７ | AK12: 表題４ | AL12: スーパーリ－グ 第１０回大会 Ｄブロック ２０１７ | AM12: 表題４ | AN12: スーパーリ－グ 第１０回大会 Ｄブロック ２０１７ | AO12: 表題４ | AP12: スーパーリ－グ 第１０回大会 Ｄブロック ２０１７ | AQ12: 表題４ | AR12: スーパーリ－グ 第１０回大会 Ｄブロック ２０１７ | AS12: 表題４ | AT12: スーパーリ－グ 第１０回大会 Ｄブロック ２０１７ | AU12: 表題４ | AV12: スーパーリ－グ 第１０回大会 Ｄブロック ２０１７ | AW12: 表題４ | AX12: スーパーリ－グ 第１０回大会 Ｄブロック ２０１７ | AY12: 表題４ | AZ12: スーパーリ－グ 第１０回大会 Ｄブロック ２０１７ | BA12: 表題４ | BB12: スーパーリ－グ 第１０回大会 Ｄブロック ２０１７ | BC12: 表題４ | BD12: スーパーリ－グ 第１０回大会 Ｄブロック ２０１７ | BE12: 表題４ | BF12: スーパーリ－グ 第１０回大会 Ｄブロック ２０１７ | BG12: 表題４ | BH12: スーパーリ－グ 第１０回大会 Ｄブロック ２０１７ | BI12: 表題４ | BJ12: スーパーリ－グ 第１０回大会 Ｄブロック ２０１７ | BK12: 表題４ | BL12: スーパーリ－グ 第１０回大会 Ｄブロック ２０１７ | BM12: 表題４ | BN12: スーパーリ－グ 第１０回大会 Ｄブロック ２０１７ | BO12: 表題４ | BP12: スーパーリ－グ 第１０回大会 Ｄブロック ２０１７ | BQ12: 表題４ | BR12: スーパーリ－グ 第１０回大会 Ｄブロック ２０１７ | BS12: 表題４ | BT12: スーパーリ－グ 第１０回大会 Ｄブロック ２０１７ | BU12: 表題４ | BV12: スーパーリ－グ 第１０回大会 Ｄブロック ２０１７ | BW12: 表題４ | BX12: スーパーリ－グ 第１０回大会 Ｄブロック ２０１７ | BY12: 表題４ | BZ12: スーパーリ－グ 第１０回大会 Ｄブロック ２０１７ | CA12: 表題４ | CB12: スーパーリ－グ 第１０回大会 Ｄブロック ２０１７ | CC12: 表題４ | CD12: スーパーリ－グ 第１０回大会 Ｄブロック ２０１７ | CE12: 表題４ | CF12: スーパーリ－グ 第１０回大会 Ｄブロック ２０１７ | CG12: 表題４ | CH12: スーパーリ－グ 第１０回大会 Ｄブロック ２０１７ | CI12: 表題４ | CJ12: スーパーリ－グ 第１０回大会 Ｄブロック ２０１７ | CK12: 表題４ | CL12: スーパーリ－グ 第１０回大会 Ｄブロック ２０１７ | CM12: 表題４ | CN12: スーパーリ－グ 第１０回大会 Ｄブロック ２０１７ | CO12: 表題４ | CP12: スーパーリ－グ 第１０回大会 Ｄブロック ２０１７ | CQ12: 表題４ | CR12: スーパーリ－グ 第１０回大会 Ｄブロック ２０１７ | CS12: 表題４ | CT12: スーパーリ－グ 第１０回大会 Ｄブロック ２０１７ | CU12: 表題４ | CV12: スーパーリ－グ 第１０回大会 Ｄブロック ２０１７ | CW12: 表題４ | CX12: スーパーリ－グ 第１０回大会 Ｄブロック ２０１７ | CY12: 表題４ | CZ12: スーパーリ－グ 第１０回大会 Ｄブロック ２０１７ | DA12: 表題４ | DB12: スーパーリ－グ 第１０回大会 Ｄブロック ２０１７ | DC12: 表題４ | DD12: スーパーリ－グ 第１０回大会 Ｄブロック ２０１７ | DE12: 表題４ | DF12: スーパーリ－グ 第１０回大会 Ｄブロック ２０１７ | DG12: 表題４ | DH12: スーパーリ－グ 第１０回大会 Ｄブロック ２０１７ | DI12: 表題４ | DJ12: スーパーリ－グ 第１０回大会 Ｄブロック ２０１７ | DK12: 表題４ | DL12: スーパーリ－グ 第１０回大会 Ｄブロック ２０１７ | DM12: 表題４ | DN12: スーパーリ－グ 第１０回大会 Ｄブロック ２０１７ | DO12: 表題４ | DP12: スーパーリ－グ 第１０回大会 Ｄブロック ２０１７ | DQ12: 表題４ | DR12: スーパーリ－グ 第１０回大会 Ｄブロック ２０１７ | DS12: 表題４ | DT12: スーパーリ－グ 第１０回大会 Ｄブロック ２０１７ | DU12: 表題４ | DV12: スーパーリ－グ 第１０回大会 Ｄブロック ２０１７ | DW12: 表題４ | DX12: スーパーリ－グ 第１０回大会 Ｄブロック ２０１７ | DY12: 表題４ | DZ12: スーパーリ－グ 第１０回大会 Ｄブロック ２０１７ | EA12: 表題４ | EB12: スーパーリ－グ 第１０回大会 Ｄブロック ２０１７ | EC12: 表題４ | ED12: スーパーリ－グ 第１０回大会 Ｄブロック ２０１７ | EE12: 表題４ | EF12: スーパーリ－グ 第１０回大会 Ｄブロック ２０１７ | EG12: 表題４ | EH12: スーパーリ－グ 第１０回大会 Ｄブロック ２０１７ | EI12: 表題４ | EJ12: スーパーリ－グ 第１０回大会 Ｄブロック ２０１７ | EK12: 表題４ | EL12: スーパーリ－グ 第１０回大会 Ｄブロック ２０１７ | EM12: 表題４ | EN12: スーパーリ－グ 第１０回大会 Ｄブロック ２０１７ | EO12: 表題４ | EP12: スーパーリ－グ 第１０回大会 Ｄブロック ２０１７ | EQ12: 表題４ | ER12: スーパーリ－グ 第１０回大会 Ｄブロック ２０１７ | ES12: 表題４ | ET12: スーパーリ－グ 第１０回大会 Ｄブロック ２０１７ | EU12: 表題４ | EV12: スーパーリ－グ 第１０回大会 Ｄブロック ２０１７ | EW12: 表題４ | EX12: スーパーリ－グ 第１０回大会 Ｄブロック ２０１７ | EY12: 表題４ | EZ12: スーパーリ－グ 第１０回大会 Ｄブロック ２０１７ | FA12: 表題４ | FB12: スーパーリ－グ 第１０回大会 Ｄブロック ２０１７ | FC12: 表題４ | FD12: スーパーリ－グ 第１０回大会 Ｄブロック ２０１７ | FE12: 表題４ | FF12: スーパーリ－グ 第１０回大会 Ｄブロック ２０１７ | FG12: 表題４ | FH12: スーパーリ－グ 第１０回大会 Ｄブロック ２０１７ | FI12: 表題４ | FJ12: スーパーリ－グ 第１０回大会 Ｄブロック ２０１７ | FK12: 表題４ | FL12: スーパーリ－グ 第１０回大会 Ｄブロック ２０１７ | FM12: 表題４ | FN12: スーパーリ－グ 第１０回大会 Ｄブロック ２０１７ | FO12: 表題４ | FP12: スーパーリ－グ 第１０回大会 Ｄブロック ２０１７ | FQ12: 表題４ | FR12: スーパーリ－グ 第１０回大会 Ｄブロック ２０１７ | FS12: 表題４ | FT12: スーパーリ－グ 第１０回大会 Ｄブロック ２０１７ | FU12: 表題４ | FV12: スーパーリ－グ 第１０回大会 Ｄブロック ２０１７ | FW12: 表題４ | FX12: スーパーリ－グ 第１０回大会 Ｄブロック ２０１７ | FY12: 表題４ | FZ12: スーパーリ－グ 第１０回大会 Ｄブロック ２０１７ | GA12: 表題４ | GB12: スーパーリ－グ 第１０回大会 Ｄブロック ２０１７ | GC12: 表題４ | GD12: スーパーリ－グ 第１０回大会 Ｄブロック ２０１７ | GE12: 表題４ | GF12: スーパーリ－グ 第１０回大会 Ｄブロック ２０１７ | GG12: 表題４ | GH12: スーパーリ－グ 第１０回大会 Ｄブロック ２０１７ | GI12: 表題４ | GJ12: スーパーリ－グ 第１０回大会 Ｄブロック ２０１７ | GK12: 表題４ | GL12: スーパーリ－グ 第１０回大会 Ｄブロック ２０１７ | GM12: 表題４ | GN12: スーパーリ－グ 第１０回大会 Ｄブロック ２０１７ | GO12: 表題４ | GP12: スーパーリ－グ 第１０回大会 Ｄブロック ２０１７ | GQ12: 表題４ | GR12: スーパーリ－グ 第１０回大会 Ｄブロック ２０１７ | GS12: 表題４ | GT12: スーパーリ－グ 第１０回大会 Ｄブロック ２０１７ | GU12: 表題４ | GV12: スーパーリ－グ 第１０回大会 Ｄブロック ２０１７ | GW12: 表題４ | GX12: スーパーリ－グ 第１０回大会 Ｄブロック ２０１７ | GY12: 表題４ | GZ12: スーパーリ－グ 第１０回大会 Ｄブロック ２０１７ | HA12: 表題４ | HB12: スーパーリ－グ 第１０回大会 Ｄブロック ２０１７ | HC12: 表題４ | HD12: スーパーリ－グ 第１０回大会 Ｄブロック ２０１７ | HE12: 表題４ | HF12: スーパーリ－グ 第１０回大会 Ｄブロック ２０１７ | HG12: 表題４ | HH12: スーパーリ－グ 第１０回大会 Ｄブロック ２０１７ | HI12: 表題４ | HJ12: スーパーリ－グ 第１０回大会 Ｄブロック ２０１７ | HK12: 表題４ | HL12: スーパーリ－グ 第１０回大会 Ｄブロック ２０１７ | HM12: 表題４ | HN12: スーパーリ－グ 第１０回大会 Ｄブロック ２０１７ | HO12: 表題４ | HP12: スーパーリ－グ 第１０回大会 Ｄブロック ２０１７ | HQ12: 表題４ | HR12: スーパーリ－グ 第１０回大会 Ｄブロック ２０１７ | HS12: 表題４ | HT12: スーパーリ－グ 第１０回大会 Ｄブロック ２０１７ | HU12: 表題４ | HV12: スーパーリ－グ 第１０回大会 Ｄブロック ２０１７ | HW12: 表題４ | HX12: スーパーリ－グ 第１０回大会 Ｄブロック ２０１７ | HY12: 表題４ | HZ12: スーパーリ－グ 第１０回大会 Ｄブロック ２０１７ | IA12: 表題４ | IB12: スーパーリ－グ 第１０回大会 Ｄブロック ２０１７ | IC12: 表題４ | ID12: スーパーリ－グ 第１０回大会 Ｄブロック ２０１７ | IE12: 表題４ | IF12: スーパーリ－グ 第１０回大会 Ｄブロック ２０１７ | IG12: 表題４ | IH12: スーパーリ－グ 第１０回大会 Ｄブロック ２０１７ | II12: 表題４ | IJ12: スーパーリ－グ 第１０回大会 Ｄブロック ２０１７ | IK12: 表題４ | IL12: スーパーリ－グ 第１０回大会 Ｄブロック ２０１７ | IM12: 表題４ | IN12: スーパーリ－グ 第１０回大会 Ｄブロック ２０１７ | IO12: 表題４ | IP12: スーパーリ－グ 第１０回大会 Ｄブロック ２０１７ | IQ12: 表題４ | IR12: スーパーリ－グ 第１０回大会 Ｄブロック ２０１７ | IS12: 表題４ | IT12: スーパーリ－グ 第１０回大会 Ｄブロック ２０１７ | IU12: 表題４ | IV12: スーパーリ－グ 第１０回大会 Ｄブロック ２０１７
A14: 表題５ | B14: スーパーリ－グ 第１７回大会 Ｅブロック ２０２３ | C14: 表題５ | D14: スーパーリ－グ 第１０回大会 Ｅブロック ２０１７ | E14: 表題５ | F14: スーパーリ－グ 第１０回大会 Ｅブロック ２０１７ | G14: 表題５ | H14: スーパーリ－グ 第１０回大会 Ｅブロック ２０１７ | I14: 表題５ | J14: スーパーリ－グ 第１０回大会 Ｅブロック ２０１７ | K14: 表題５ | L14: スーパーリ－グ 第１０回大会 Ｅブロック ２０１７ | M14: 表題５ | N14: スーパーリ－グ 第１０回大会 Ｅブロック ２０１７ | O14: 表題５ | P14: スーパーリ－グ 第１０回大会 Ｅブロック ２０１７ | Q14: 表題５ | R14: スーパーリ－グ 第１０回大会 Ｅブロック ２０１７ | S14: 表題５ | T14: スーパーリ－グ 第１０回大会 Ｅブロック ２０１７ | U14: 表題５ | V14: スーパーリ－グ 第１０回大会 Ｅブロック ２０１７ | W14: 表題５ | X14: スーパーリ－グ 第１０回大会 Ｅブロック ２０１７ | Y14: 表題５ | Z14: スーパーリ－グ 第１０回大会 Ｅブロック ２０１７ | AA14: 表題５ | AB14: スーパーリ－グ 第１０回大会 Ｅブロック ２０１７ | AC14: 表題５ | AD14: スーパーリ－グ 第１０回大会 Ｅブロック ２０１７ | AE14: 表題５ | AF14: スーパーリ－グ 第１０回大会 Ｅブロック ２０１７ | AG14: 表題５ | AH14: スーパーリ－グ 第１０回大会 Ｅブロック ２０１７ | AI14: 表題５ | AJ14: スーパーリ－グ 第１０回大会 Ｅブロック ２０１７ | AK14: 表題５ | AL14: スーパーリ－グ 第１０回大会 Ｅブロック ２０１７ | AM14: 表題５ | AN14: スーパーリ－グ 第１０回大会 Ｅブロック ２０１７ | AO14: 表題５ | AP14: スーパーリ－グ 第１０回大会 Ｅブロック ２０１７ | AQ14: 表題５ | AR14: スーパーリ－グ 第１０回大会 Ｅブロック ２０１７ | AS14: 表題５ | AT14: スーパーリ－グ 第１０回大会 Ｅブロック ２０１７ | AU14: 表題５ | AV14: スーパーリ－グ 第１０回大会 Ｅブロック ２０１７ | AW14: 表題５ | AX14: スーパーリ－グ 第１０回大会 Ｅブロック ２０１７ | AY14: 表題５ | AZ14: スーパーリ－グ 第１０回大会 Ｅブロック ２０１７ | BA14: 表題５ | BB14: スーパーリ－グ 第１０回大会 Ｅブロック ２０１７ | BC14: 表題５ | BD14: スーパーリ－グ 第１０回大会 Ｅブロック ２０１７ | BE14: 表題５ | BF14: スーパーリ－グ 第１０回大会 Ｅブロック ２０１７ | BG14: 表題５ | BH14: スーパーリ－グ 第１０回大会 Ｅブロック ２０１７ | BI14: 表題５ | BJ14: スーパーリ－グ 第１０回大会 Ｅブロック ２０１７ | BK14: 表題５ | BL14: スーパーリ－グ 第１０回大会 Ｅブロック ２０１７ | BM14: 表題５ | BN14: スーパーリ－グ 第１０回大会 Ｅブロック ２０１７ | BO14: 表題５ | BP14: スーパーリ－グ 第１０回大会 Ｅブロック ２０１７ | BQ14: 表題５ | BR14: スーパーリ－グ 第１０回大会 Ｅブロック ２０１７ | BS14: 表題５ | BT14: スーパーリ－グ 第１０回大会 Ｅブロック ２０１７ | BU14: 表題５ | BV14: スーパーリ－グ 第１０回大会 Ｅブロック ２０１７ | BW14: 表題５ | BX14: スーパーリ－グ 第１０回大会 Ｅブロック ２０１７ | BY14: 表題５ | BZ14: スーパーリ－グ 第１０回大会 Ｅブロック ２０１７ | CA14: 表題５ | CB14: スーパーリ－グ 第１０回大会 Ｅブロック ２０１７ | CC14: 表題５ | CD14: スーパーリ－グ 第１０回大会 Ｅブロック ２０１７ | CE14: 表題５ | CF14: スーパーリ－グ 第１０回大会 Ｅブロック ２０１７ | CG14: 表題５ | CH14: スーパーリ－グ 第１０回大会 Ｅブロック ２０１７ | CI14: 表題５ | CJ14: スーパーリ－グ 第１０回大会 Ｅブロック ２０１７ | CK14: 表題５ | CL14: スーパーリ－グ 第１０回大会 Ｅブロック ２０１７ | CM14: 表題５ | CN14: スーパーリ－グ 第１０回大会 Ｅブロック ２０１７ | CO14: 表題５ | CP14: スーパーリ－グ 第１０回大会 Ｅブロック ２０１７ | CQ14: 表題５ | CR14: スーパーリ－グ 第１０回大会 Ｅブロック ２０１７ | CS14: 表題５ | CT14: スーパーリ－グ 第１０回大会 Ｅブロック ２０１７ | CU14: 表題５ | CV14: スーパーリ－グ 第１０回大会 Ｅブロック ２０１７ | CW14: 表題５ | CX14: スーパーリ－グ 第１０回大会 Ｅブロック ２０１７ | CY14: 表題５ | CZ14: スーパーリ－グ 第１０回大会 Ｅブロック ２０１７ | DA14: 表題５ | DB14: スーパーリ－グ 第１０回大会 Ｅブロック ２０１７ | DC14: 表題５ | DD14: スーパーリ－グ 第１０回大会 Ｅブロック ２０１７ | DE14: 表題５ | DF14: スーパーリ－グ 第１０回大会 Ｅブロック ２０１７ | DG14: 表題５ | DH14: スーパーリ－グ 第１０回大会 Ｅブロック ２０１７ | DI14: 表題５ | DJ14: スーパーリ－グ 第１０回大会 Ｅブロック ２０１７ | DK14: 表題５ | DL14: スーパーリ－グ 第１０回大会 Ｅブロック ２０１７ | DM14: 表題５ | DN14: スーパーリ－グ 第１０回大会 Ｅブロック ２０１７ | DO14: 表題５ | DP14: スーパーリ－グ 第１０回大会 Ｅブロック ２０１７ | DQ14: 表題５ | DR14: スーパーリ－グ 第１０回大会 Ｅブロック ２０１７ | DS14: 表題５ | DT14: スーパーリ－グ 第１０回大会 Ｅブロック ２０１７ | DU14: 表題５ | DV14: スーパーリ－グ 第１０回大会 Ｅブロック ２０１７ | DW14: 表題５ | DX14: スーパーリ－グ 第１０回大会 Ｅブロック ２０１７ | DY14: 表題５ | DZ14: スーパーリ－グ 第１０回大会 Ｅブロック ２０１７ | EA14: 表題５ | EB14: スーパーリ－グ 第１０回大会 Ｅブロック ２０１７ | EC14: 表題５ | ED14: スーパーリ－グ 第１０回大会 Ｅブロック ２０１７ | EE14: 表題５ | EF14: スーパーリ－グ 第１０回大会 Ｅブロック ２０１７ | EG14: 表題５ | EH14: スーパーリ－グ 第１０回大会 Ｅブロック ２０１７ | EI14: 表題５ | EJ14: スーパーリ－グ 第１０回大会 Ｅブロック ２０１７ | EK14: 表題５ | EL14: スーパーリ－グ 第１０回大会 Ｅブロック ２０１７ | EM14: 表題５ | EN14: スーパーリ－グ 第１０回大会 Ｅブロック ２０１７ | EO14: 表題５ | EP14: スーパーリ－グ 第１０回大会 Ｅブロック ２０１７ | EQ14: 表題５ | ER14: スーパーリ－グ 第１０回大会 Ｅブロック ２０１７ | ES14: 表題５ | ET14: スーパーリ－グ 第１０回大会 Ｅブロック ２０１７ | EU14: 表題５ | EV14: スーパーリ－グ 第１０回大会 Ｅブロック ２０１７ | EW14: 表題５ | EX14: スーパーリ－グ 第１０回大会 Ｅブロック ２０１７ | EY14: 表題５ | EZ14: スーパーリ－グ 第１０回大会 Ｅブロック ２０１７ | FA14: 表題５ | FB14: スーパーリ－グ 第１０回大会 Ｅブロック ２０１７ | FC14: 表題５ | FD14: スーパーリ－グ 第１０回大会 Ｅブロック ２０１７ | FE14: 表題５ | FF14: スーパーリ－グ 第１０回大会 Ｅブロック ２０１７ | FG14: 表題５ | FH14: スーパーリ－グ 第１０回大会 Ｅブロック ２０１７ | FI14: 表題５ | FJ14: スーパーリ－グ 第１０回大会 Ｅブロック ２０１７ | FK14: 表題５ | FL14: スーパーリ－グ 第１０回大会 Ｅブロック ２０１７ | FM14: 表題５ | FN14: スーパーリ－グ 第１０回大会 Ｅブロック ２０１７ | FO14: 表題５ | FP14: スーパーリ－グ 第１０回大会 Ｅブロック ２０１７ | FQ14: 表題５ | FR14: スーパーリ－グ 第１０回大会 Ｅブロック ２０１７ | FS14: 表題５ | FT14: スーパーリ－グ 第１０回大会 Ｅブロック ２０１７ | FU14: 表題５ | FV14: スーパーリ－グ 第１０回大会 Ｅブロック ２０１７ | FW14: 表題５ | FX14: スーパーリ－グ 第１０回大会 Ｅブロック ２０１７ | FY14: 表題５ | FZ14: スーパーリ－グ 第１０回大会 Ｅブロック ２０１７ | GA14: 表題５ | GB14: スーパーリ－グ 第１０回大会 Ｅブロック ２０１７ | GC14: 表題５ | GD14: スーパーリ－グ 第１０回大会 Ｅブロック ２０１７ | GE14: 表題５ | GF14: スーパーリ－グ 第１０回大会 Ｅブロック ２０１７ | GG14: 表題５ | GH14: スーパーリ－グ 第１０回大会 Ｅブロック ２０１７ | GI14: 表題５ | GJ14: スーパーリ－グ 第１０回大会 Ｅブロック ２０１７ | GK14: 表題５ | GL14: スーパーリ－グ 第１０回大会 Ｅブロック ２０１７ | GM14: 表題５ | GN14: スーパーリ－グ 第１０回大会 Ｅブロック ２０１７ | GO14: 表題５ | GP14: スーパーリ－グ 第１０回大会 Ｅブロック ２０１７ | GQ14: 表題５ | GR14: スーパーリ－グ 第１０回大会 Ｅブロック ２０１７ | GS14: 表題５ | GT14: スーパーリ－グ 第１０回大会 Ｅブロック ２０１７ | GU14: 表題５ | GV14: スーパーリ－グ 第１０回大会 Ｅブロック ２０１７ | GW14: 表題５ | GX14: スーパーリ－グ 第１０回大会 Ｅブロック ２０１７ | GY14: 表題５ | GZ14: スーパーリ－グ 第１０回大会 Ｅブロック ２０１７ | HA14: 表題５ | HB14: スーパーリ－グ 第１０回大会 Ｅブロック ２０１７ | HC14: 表題５ | HD14: スーパーリ－グ 第１０回大会 Ｅブロック ２０１７ | HE14: 表題５ | HF14: スーパーリ－グ 第１０回大会 Ｅブロック ２０１７ | HG14: 表題５ | HH14: スーパーリ－グ 第１０回大会 Ｅブロック ２０１７ | HI14: 表題５ | HJ14: スーパーリ－グ 第１０回大会 Ｅブロック ２０１７ | HK14: 表題５ | HL14: スーパーリ－グ 第１０回大会 Ｅブロック ２０１７ | HM14: 表題５ | HN14: スーパーリ－グ 第１０回大会 Ｅブロック ２０１７ | HO14: 表題５ | HP14: スーパーリ－グ 第１０回大会 Ｅブロック ２０１７ | HQ14: 表題５ | HR14: スーパーリ－グ 第１０回大会 Ｅブロック ２０１７ | HS14: 表題５ | HT14: スーパーリ－グ 第１０回大会 Ｅブロック ２０１７ | HU14: 表題５ | HV14: スーパーリ－グ 第１０回大会 Ｅブロック ２０１７ | HW14: 表題５ | HX14: スーパーリ－グ 第１０回大会 Ｅブロック ２０１７ | HY14: 表題５ | HZ14: スーパーリ－グ 第１０回大会 Ｅブロック ２０１７ | IA14: 表題５ | IB14: スーパーリ－グ 第１０回大会 Ｅブロック ２０１７ | IC14: 表題５ | ID14: スーパーリ－グ 第１０回大会 Ｅブロック ２０１７ | IE14: 表題５ | IF14: スーパーリ－グ 第１０回大会 Ｅブロック ２０１７ | IG14: 表題５ | IH14: スーパーリ－グ 第１０回大会 Ｅブロック ２０１７ | II14: 表題５ | IJ14: スーパーリ－グ 第１０回大会 Ｅブロック ２０１７ | IK14: 表題５ | IL14: スーパーリ－グ 第１０回大会 Ｅブロック ２０１７ | IM14: 表題５ | IN14: スーパーリ－グ 第１０回大会 Ｅブロック ２０１７ | IO14: 表題５ | IP14: スーパーリ－グ 第１０回大会 Ｅブロック ２０１７ | IQ14: 表題５ | IR14: スーパーリ－グ 第１０回大会 Ｅブロック ２０１７ | IS14: 表題５ | IT14: スーパーリ－グ 第１０回大会 Ｅブロック ２０１７ | IU14: 表題５ | IV14: スーパーリ－グ 第１０回大会 Ｅブロック ２０１７
A16: 表題６ | B16: スーパーリ－グ 第１７回大会 Ｆブロック ２０２３ | C16: 表題６ | D16: スーパーリ－グ 第１０回大会 Ｆブロック ２０１７ | E16: 表題６ | F16: スーパーリ－グ 第１０回大会 Ｆブロック ２０１７ | G16: 表題６ | H16: スーパーリ－グ 第１０回大会 Ｆブロック ２０１７ | I16: 表題６ | J16: スーパーリ－グ 第１０回大会 Ｆブロック ２０１７ | K16: 表題６ | L16: スーパーリ－グ 第１０回大会 Ｆブロック ２０１７ | M16: 表題６ | N16: スーパーリ－グ 第１０回大会 Ｆブロック ２０１７ | O16: 表題６ | P16: スーパーリ－グ 第１０回大会 Ｆブロック ２０１７ | Q16: 表題６ | R16: スーパーリ－グ 第１０回大会 Ｆブロック ２０１７ | S16: 表題６ | T16: スーパーリ－グ 第１０回大会 Ｆブロック ２０１７ | U16: 表題６ | V16: スーパーリ－グ 第１０回大会 Ｆブロック ２０１７ | W16: 表題６ | X16: スーパーリ－グ 第１０回大会 Ｆブロック ２０１７ | Y16: 表題６ | Z16: スーパーリ－グ 第１０回大会 Ｆブロック ２０１７ | AA16: 表題６ | AB16: スーパーリ－グ 第１０回大会 Ｆブロック ２０１７ | AC16: 表題６ | AD16: スーパーリ－グ 第１０回大会 Ｆブロック ２０１７ | AE16: 表題６ | AF16: スーパーリ－グ 第１０回大会 Ｆブロック ２０１７ | AG16: 表題６ | AH16: スーパーリ－グ 第１０回大会 Ｆブロック ２０１７ | AI16: 表題６ | AJ16: スーパーリ－グ 第１０回大会 Ｆブロック ２０１７ | AK16: 表題６ | AL16: スーパーリ－グ 第１０回大会 Ｆブロック ２０１７ | AM16: 表題６ | AN16: スーパーリ－グ 第１０回大会 Ｆブロック ２０１７ | AO16: 表題６ | AP16: スーパーリ－グ 第１０回大会 Ｆブロック ２０１７ | AQ16: 表題６ | AR16: スーパーリ－グ 第１０回大会 Ｆブロック ２０１７ | AS16: 表題６ | AT16: スーパーリ－グ 第１０回大会 Ｆブロック ２０１７ | AU16: 表題６ | AV16: スーパーリ－グ 第１０回大会 Ｆブロック ２０１７ | AW16: 表題６ | AX16: スーパーリ－グ 第１０回大会 Ｆブロック ２０１７ | AY16: 表題６ | AZ16: スーパーリ－グ 第１０回大会 Ｆブロック ２０１７ | BA16: 表題６ | BB16: スーパーリ－グ 第１０回大会 Ｆブロック ２０１７ | BC16: 表題６ | BD16: スーパーリ－グ 第１０回大会 Ｆブロック ２０１７ | BE16: 表題６ | BF16: スーパーリ－グ 第１０回大会 Ｆブロック ２０１７ | BG16: 表題６ | BH16: スーパーリ－グ 第１０回大会 Ｆブロック ２０１７ | BI16: 表題６ | BJ16: スーパーリ－グ 第１０回大会 Ｆブロック ２０１７ | BK16: 表題６ | BL16: スーパーリ－グ 第１０回大会 Ｆブロック ２０１７ | BM16: 表題６ | BN16: スーパーリ－グ 第１０回大会 Ｆブロック ２０１７ | BO16: 表題６ | BP16: スーパーリ－グ 第１０回大会 Ｆブロック ２０１７ | BQ16: 表題６ | BR16: スーパーリ－グ 第１０回大会 Ｆブロック ２０１７ | BS16: 表題６ | BT16: スーパーリ－グ 第１０回大会 Ｆブロック ２０１７ | BU16: 表題６ | BV16: スーパーリ－グ 第１０回大会 Ｆブロック ２０１７ | BW16: 表題６ | BX16: スーパーリ－グ 第１０回大会 Ｆブロック ２０１７ | BY16: 表題６ | BZ16: スーパーリ－グ 第１０回大会 Ｆブロック ２０１７ | CA16: 表題６ | CB16: スーパーリ－グ 第１０回大会 Ｆブロック ２０１７ | CC16: 表題６ | CD16: スーパーリ－グ 第１０回大会 Ｆブロック ２０１７ | CE16: 表題６ | CF16: スーパーリ－グ 第１０回大会 Ｆブロック ２０１７ | CG16: 表題６ | CH16: スーパーリ－グ 第１０回大会 Ｆブロック ２０１７ | CI16: 表題６ | CJ16: スーパーリ－グ 第１０回大会 Ｆブロック ２０１７ | CK16: 表題６ | CL16: スーパーリ－グ 第１０回大会 Ｆブロック ２０１７ | CM16: 表題６ | CN16: スーパーリ－グ 第１０回大会 Ｆブロック ２０１７ | CO16: 表題６ | CP16: スーパーリ－グ 第１０回大会 Ｆブロック ２０１７ | CQ16: 表題６ | CR16: スーパーリ－グ 第１０回大会 Ｆブロック ２０１７ | CS16: 表題６ | CT16: スーパーリ－グ 第１０回大会 Ｆブロック ２０１７ | CU16: 表題６ | CV16: スーパーリ－グ 第１０回大会 Ｆブロック ２０１７ | CW16: 表題６ | CX16: スーパーリ－グ 第１０回大会 Ｆブロック ２０１７ | CY16: 表題６ | CZ16: スーパーリ－グ 第１０回大会 Ｆブロック ２０１７ | DA16: 表題６ | DB16: スーパーリ－グ 第１０回大会 Ｆブロック ２０１７ | DC16: 表題６ | DD16: スーパーリ－グ 第１０回大会 Ｆブロック ２０１７ | DE16: 表題６ | DF16: スーパーリ－グ 第１０回大会 Ｆブロック ２０１７ | DG16: 表題６ | DH16: スーパーリ－グ 第１０回大会 Ｆブロック ２０１７ | DI16: 表題６ | DJ16: スーパーリ－グ 第１０回大会 Ｆブロック ２０１７ | DK16: 表題６ | DL16: スーパーリ－グ 第１０回大会 Ｆブロック ２０１７ | DM16: 表題６ | DN16: スーパーリ－グ 第１０回大会 Ｆブロック ２０１７ | DO16: 表題６ | DP16: スーパーリ－グ 第１０回大会 Ｆブロック ２０１７ | DQ16: 表題６ | DR16: スーパーリ－グ 第１０回大会 Ｆブロック ２０１７ | DS16: 表題６ | DT16: スーパーリ－グ 第１０回大会 Ｆブロック ２０１７ | DU16: 表題６ | DV16: スーパーリ－グ 第１０回大会 Ｆブロック ２０１７ | DW16: 表題６ | DX16: スーパーリ－グ 第１０回大会 Ｆブロック ２０１７ | DY16: 表題６ | DZ16: スーパーリ－グ 第１０回大会 Ｆブロック ２０１７ | EA16: 表題６ | EB16: スーパーリ－グ 第１０回大会 Ｆブロック ２０１７ | EC16: 表題６ | ED16: スーパーリ－グ 第１０回大会 Ｆブロック ２０１７ | EE16: 表題６ | EF16: スーパーリ－グ 第１０回大会 Ｆブロック ２０１７ | EG16: 表題６ | EH16: スーパーリ－グ 第１０回大会 Ｆブロック ２０１７ | EI16: 表題６ | EJ16: スーパーリ－グ 第１０回大会 Ｆブロック ２０１７ | EK16: 表題６ | EL16: スーパーリ－グ 第１０回大会 Ｆブロック ２０１７ | EM16: 表題６ | EN16: スーパーリ－グ 第１０回大会 Ｆブロック ２０１７ | EO16: 表題６ | EP16: スーパーリ－グ 第１０回大会 Ｆブロック ２０１７ | EQ16: 表題６ | ER16: スーパーリ－グ 第１０回大会 Ｆブロック ２０１７ | ES16: 表題６ | ET16: スーパーリ－グ 第１０回大会 Ｆブロック ２０１７ | EU16: 表題６ | EV16: スーパーリ－グ 第１０回大会 Ｆブロック ２０１７ | EW16: 表題６ | EX16: スーパーリ－グ 第１０回大会 Ｆブロック ２０１７ | EY16: 表題６ | EZ16: スーパーリ－グ 第１０回大会 Ｆブロック ２０１７ | FA16: 表題６ | FB16: スーパーリ－グ 第１０回大会 Ｆブロック ２０１７ | FC16: 表題６ | FD16: スーパーリ－グ 第１０回大会 Ｆブロック ２０１７ | FE16: 表題６ | FF16: スーパーリ－グ 第１０回大会 Ｆブロック ２０１７ | FG16: 表題６ | FH16: スーパーリ－グ 第１０回大会 Ｆブロック ２０１７ | FI16: 表題６ | FJ16: スーパーリ－グ 第１０回大会 Ｆブロック ２０１７ | FK16: 表題６ | FL16: スーパーリ－グ 第１０回大会 Ｆブロック ２０１７ | FM16: 表題６ | FN16: スーパーリ－グ 第１０回大会 Ｆブロック ２０１７ | FO16: 表題６ | FP16: スーパーリ－グ 第１０回大会 Ｆブロック ２０１７ | FQ16: 表題６ | FR16: スーパーリ－グ 第１０回大会 Ｆブロック ２０１７ | FS16: 表題６ | FT16: スーパーリ－グ 第１０回大会 Ｆブロック ２０１７ | FU16: 表題６ | FV16: スーパーリ－グ 第１０回大会 Ｆブロック ２０１７ | FW16: 表題６ | FX16: スーパーリ－グ 第１０回大会 Ｆブロック ２０１７ | FY16: 表題６ | FZ16: スーパーリ－グ 第１０回大会 Ｆブロック ２０１７ | GA16: 表題６ | GB16: スーパーリ－グ 第１０回大会 Ｆブロック ２０１７ | GC16: 表題６ | GD16: スーパーリ－グ 第１０回大会 Ｆブロック ２０１７ | GE16: 表題６ | GF16: スーパーリ－グ 第１０回大会 Ｆブロック ２０１７ | GG16: 表題６ | GH16: スーパーリ－グ 第１０回大会 Ｆブロック ２０１７ | GI16: 表題６ | GJ16: スーパーリ－グ 第１０回大会 Ｆブロック ２０１７ | GK16: 表題６ | GL16: スーパーリ－グ 第１０回大会 Ｆブロック ２０１７ | GM16: 表題６ | GN16: スーパーリ－グ 第１０回大会 Ｆブロック ２０１７ | GO16: 表題６ | GP16: スーパーリ－グ 第１０回大会 Ｆブロック ２０１７ | GQ16: 表題６ | GR16: スーパーリ－グ 第１０回大会 Ｆブロック ２０１７ | GS16: 表題６ | GT16: スーパーリ－グ 第１０回大会 Ｆブロック ２０１７ | GU16: 表題６ | GV16: スーパーリ－グ 第１０回大会 Ｆブロック ２０１７ | GW16: 表題６ | GX16: スーパーリ－グ 第１０回大会 Ｆブロック ２０１７ | GY16: 表題６ | GZ16: スーパーリ－グ 第１０回大会 Ｆブロック ２０１７ | HA16: 表題６ | HB16: スーパーリ－グ 第１０回大会 Ｆブロック ２０１７ | HC16: 表題６ | HD16: スーパーリ－グ 第１０回大会 Ｆブロック ２０１７ | HE16: 表題６ | HF16: スーパーリ－グ 第１０回大会 Ｆブロック ２０１７ | HG16: 表題６ | HH16: スーパーリ－グ 第１０回大会 Ｆブロック ２０１７ | HI16: 表題６ | HJ16: スーパーリ－グ 第１０回大会 Ｆブロック ２０１７ | HK16: 表題６ | HL16: スーパーリ－グ 第１０回大会 Ｆブロック ２０１７ | HM16: 表題６ | HN16: スーパーリ－グ 第１０回大会 Ｆブロック ２０１７ | HO16: 表題６ | HP16: スーパーリ－グ 第１０回大会 Ｆブロック ２０１７ | HQ16: 表題６ | HR16: スーパーリ－グ 第１０回大会 Ｆブロック ２０１７ | HS16: 表題６ | HT16: スーパーリ－グ 第１０回大会 Ｆブロック ２０１７ | HU16: 表題６ | HV16: スーパーリ－グ 第１０回大会 Ｆブロック ２０１７ | HW16: 表題６ | HX16: スーパーリ－グ 第１０回大会 Ｆブロック ２０１７ | HY16: 表題６ | HZ16: スーパーリ－グ 第１０回大会 Ｆブロック ２０１７ | IA16: 表題６ | IB16: スーパーリ－グ 第１０回大会 Ｆブロック ２０１７ | IC16: 表題６ | ID16: スーパーリ－グ 第１０回大会 Ｆブロック ２０１７ | IE16: 表題６ | IF16: スーパーリ－グ 第１０回大会 Ｆブロック ２０１７ | IG16: 表題６ | IH16: スーパーリ－グ 第１０回大会 Ｆブロック ２０１７ | II16: 表題６ | IJ16: スーパーリ－グ 第１０回大会 Ｆブロック ２０１７ | IK16: 表題６ | IL16: スーパーリ－グ 第１０回大会 Ｆブロック ２０１７ | IM16: 表題６ | IN16: スーパーリ－グ 第１０回大会 Ｆブロック ２０１７ | IO16: 表題６ | IP16: スーパーリ－グ 第１０回大会 Ｆブロック ２０１７ | IQ16: 表題６ | IR16: スーパーリ－グ 第１０回大会 Ｆブロック ２０１７ | IS16: 表題６ | IT16: スーパーリ－グ 第１０回大会 Ｆブロック ２０１７ | IU16: 表題６ | IV16: スーパーリ－グ 第１０回大会 Ｆブロック ２０１７
A18: 表題７ | B18: スーパーリ－グ 第１７回大会 Ｇブロック ２０２３ | C18: 表題７ | D18: スーパーリ－グ 第１０回大会 Ｇブロック ２０１７ | E18: 表題７ | F18: スーパーリ－グ 第１０回大会 Ｇブロック ２０１７ | G18: 表題７ | H18: スーパーリ－グ 第１０回大会 Ｇブロック ２０１７ | I18: 表題７ | J18: スーパーリ－グ 第１０回大会 Ｇブロック ２０１７ | K18: 表題７ | L18: スーパーリ－グ 第１０回大会 Ｇブロック ２０１７ | M18: 表題７ | N18: スーパーリ－グ 第１０回大会 Ｇブロック ２０１７ | O18: 表題７ | P18: スーパーリ－グ 第１０回大会 Ｇブロック ２０１７ | Q18: 表題７ | R18: スーパーリ－グ 第１０回大会 Ｇブロック ２０１７ | S18: 表題７ | T18: スーパーリ－グ 第１０回大会 Ｇブロック ２０１７ | U18: 表題７ | V18: スーパーリ－グ 第１０回大会 Ｇブロック ２０１７ | W18: 表題７ | X18: スーパーリ－グ 第１０回大会 Ｇブロック ２０１７ | Y18: 表題７ | Z18: スーパーリ－グ 第１０回大会 Ｇブロック ２０１７ | AA18: 表題７ | AB18: スーパーリ－グ 第１０回大会 Ｇブロック ２０１７ | AC18: 表題７ | AD18: スーパーリ－グ 第１０回大会 Ｇブロック ２０１７ | AE18: 表題７ | AF18: スーパーリ－グ 第１０回大会 Ｇブロック ２０１７ | AG18: 表題７ | AH18: スーパーリ－グ 第１０回大会 Ｇブロック ２０１７ | AI18: 表題７ | AJ18: スーパーリ－グ 第１０回大会 Ｇブロック ２０１７ | AK18: 表題７ | AL18: スーパーリ－グ 第１０回大会 Ｇブロック ２０１７ | AM18: 表題７ | AN18: スーパーリ－グ 第１０回大会 Ｇブロック ２０１７ | AO18: 表題７ | AP18: スーパーリ－グ 第１０回大会 Ｇブロック ２０１７ | AQ18: 表題７ | AR18: スーパーリ－グ 第１０回大会 Ｇブロック ２０１７ | AS18: 表題７ | AT18: スーパーリ－グ 第１０回大会 Ｇブロック ２０１７ | AU18: 表題７ | AV18: スーパーリ－グ 第１０回大会 Ｇブロック ２０１７ | AW18: 表題７ | AX18: スーパーリ－グ 第１０回大会 Ｇブロック ２０１７ | AY18: 表題７ | AZ18: スーパーリ－グ 第１０回大会 Ｇブロック ２０１７ | BA18: 表題７ | BB18: スーパーリ－グ 第１０回大会 Ｇブロック ２０１７ | BC18: 表題７ | BD18: スーパーリ－グ 第１０回大会 Ｇブロック ２０１７ | BE18: 表題７ | BF18: スーパーリ－グ 第１０回大会 Ｇブロック ２０１７ | BG18: 表題７ | BH18: スーパーリ－グ 第１０回大会 Ｇブロック ２０１７ | BI18: 表題７ | BJ18: スーパーリ－グ 第１０回大会 Ｇブロック ２０１７ | BK18: 表題７ | BL18: スーパーリ－グ 第１０回大会 Ｇブロック ２０１７ | BM18: 表題７ | BN18: スーパーリ－グ 第１０回大会 Ｇブロック ２０１７ | BO18: 表題７ | BP18: スーパーリ－グ 第１０回大会 Ｇブロック ２０１７ | BQ18: 表題７ | BR18: スーパーリ－グ 第１０回大会 Ｇブロック ２０１７ | BS18: 表題７ | BT18: スーパーリ－グ 第１０回大会 Ｇブロック ２０１７ | BU18: 表題７ | BV18: スーパーリ－グ 第１０回大会 Ｇブロック ２０１７ | BW18: 表題７ | BX18: スーパーリ－グ 第１０回大会 Ｇブロック ２０１７ | BY18: 表題７ | BZ18: スーパーリ－グ 第１０回大会 Ｇブロック ２０１７ | CA18: 表題７ | CB18: スーパーリ－グ 第１０回大会 Ｇブロック ２０１７ | CC18: 表題７ | CD18: スーパーリ－グ 第１０回大会 Ｇブロック ２０１７ | CE18: 表題７ | CF18: スーパーリ－グ 第１０回大会 Ｇブロック ２０１７ | CG18: 表題７ | CH18: スーパーリ－グ 第１０回大会 Ｇブロック ２０１７ | CI18: 表題７ | CJ18: スーパーリ－グ 第１０回大会 Ｇブロック ２０１７ | CK18: 表題７ | CL18: スーパーリ－グ 第１０回大会 Ｇブロック ２０１７ | CM18: 表題７ | CN18: スーパーリ－グ 第１０回大会 Ｇブロック ２０１７ | CO18: 表題７ | CP18: スーパーリ－グ 第１０回大会 Ｇブロック ２０１７ | CQ18: 表題７ | CR18: スーパーリ－グ 第１０回大会 Ｇブロック ２０１７ | CS18: 表題７ | CT18: スーパーリ－グ 第１０回大会 Ｇブロック ２０１７ | CU18: 表題７ | CV18: スーパーリ－グ 第１０回大会 Ｇブロック ２０１７ | CW18: 表題７ | CX18: スーパーリ－グ 第１０回大会 Ｇブロック ２０１７ | CY18: 表題７ | CZ18: スーパーリ－グ 第１０回大会 Ｇブロック ２０１７ | DA18: 表題７ | DB18: スーパーリ－グ 第１０回大会 Ｇブロック ２０１７ | DC18: 表題７ | DD18: スーパーリ－グ 第１０回大会 Ｇブロック ２０１７ | DE18: 表題７ | DF18: スーパーリ－グ 第１０回大会 Ｇブロック ２０１７ | DG18: 表題７ | DH18: スーパーリ－グ 第１０回大会 Ｇブロック ２０１７ | DI18: 表題７ | DJ18: スーパーリ－グ 第１０回大会 Ｇブロック ２０１７ | DK18: 表題７ | DL18: スーパーリ－グ 第１０回大会 Ｇブロック ２０１７ | DM18: 表題７ | DN18: スーパーリ－グ 第１０回大会 Ｇブロック ２０１７ | DO18: 表題７ | DP18: スーパーリ－グ 第１０回大会 Ｇブロック ２０１７ | DQ18: 表題７ | DR18: スーパーリ－グ 第１０回大会 Ｇブロック ２０１７ | DS18: 表題７ | DT18: スーパーリ－グ 第１０回大会 Ｇブロック ２０１７ | DU18: 表題７ | DV18: スーパーリ－グ 第１０回大会 Ｇブロック ２０１７ | DW18: 表題７ | DX18: スーパーリ－グ 第１０回大会 Ｇブロック ２０１７ | DY18: 表題７ | DZ18: スーパーリ－グ 第１０回大会 Ｇブロック ２０１７ | EA18: 表題７ | EB18: スーパーリ－グ 第１０回大会 Ｇブロック ２０１７ | EC18: 表題７ | ED18: スーパーリ－グ 第１０回大会 Ｇブロック ２０１７ | EE18: 表題７ | EF18: スーパーリ－グ 第１０回大会 Ｇブロック ２０１７ | EG18: 表題７ | EH18: スーパーリ－グ 第１０回大会 Ｇブロック ２０１７ | EI18: 表題７ | EJ18: スーパーリ－グ 第１０回大会 Ｇブロック ２０１７ | EK18: 表題７ | EL18: スーパーリ－グ 第１０回大会 Ｇブロック ２０１７ | EM18: 表題７ | EN18: スーパーリ－グ 第１０回大会 Ｇブロック ２０１７ | EO18: 表題７ | EP18: スーパーリ－グ 第１０回大会 Ｇブロック ２０１７ | EQ18: 表題７ | ER18: スーパーリ－グ 第１０回大会 Ｇブロック ２０１７ | ES18: 表題７ | ET18: スーパーリ－グ 第１０回大会 Ｇブロック ２０１７ | EU18: 表題７ | EV18: スーパーリ－グ 第１０回大会 Ｇブロック ２０１７ | EW18: 表題７ | EX18: スーパーリ－グ 第１０回大会 Ｇブロック ２０１７ | EY18: 表題７ | EZ18: スーパーリ－グ 第１０回大会 Ｇブロック ２０１７ | FA18: 表題７ | FB18: スーパーリ－グ 第１０回大会 Ｇブロック ２０１７ | FC18: 表題７ | FD18: スーパーリ－グ 第１０回大会 Ｇブロック ２０１７ | FE18: 表題７ | FF18: スーパーリ－グ 第１０回大会 Ｇブロック ２０１７ | FG18: 表題７ | FH18: スーパーリ－グ 第１０回大会 Ｇブロック ２０１７ | FI18: 表題７ | FJ18: スーパーリ－グ 第１０回大会 Ｇブロック ２０１７ | FK18: 表題７ | FL18: スーパーリ－グ 第１０回大会 Ｇブロック ２０１７ | FM18: 表題７ | FN18: スーパーリ－グ 第１０回大会 Ｇブロック ２０１７ | FO18: 表題７ | FP18: スーパーリ－グ 第１０回大会 Ｇブロック ２０１７ | FQ18: 表題７ | FR18: スーパーリ－グ 第１０回大会 Ｇブロック ２０１７ | FS18: 表題７ | FT18: スーパーリ－グ 第１０回大会 Ｇブロック ２０１７ | FU18: 表題７ | FV18: スーパーリ－グ 第１０回大会 Ｇブロック ２０１７ | FW18: 表題７ | FX18: スーパーリ－グ 第１０回大会 Ｇブロック ２０１７ | FY18: 表題７ | FZ18: スーパーリ－グ 第１０回大会 Ｇブロック ２０１７ | GA18: 表題７ | GB18: スーパーリ－グ 第１０回大会 Ｇブロック ２０１７ | GC18: 表題７ | GD18: スーパーリ－グ 第１０回大会 Ｇブロック ２０１７ | GE18: 表題７ | GF18: スーパーリ－グ 第１０回大会 Ｇブロック ２０１７ | GG18: 表題７ | GH18: スーパーリ－グ 第１０回大会 Ｇブロック ２０１７ | GI18: 表題７ | GJ18: スーパーリ－グ 第１０回大会 Ｇブロック ２０１７ | GK18: 表題７ | GL18: スーパーリ－グ 第１０回大会 Ｇブロック ２０１７ | GM18: 表題７ | GN18: スーパーリ－グ 第１０回大会 Ｇブロック ２０１７ | GO18: 表題７ | GP18: スーパーリ－グ 第１０回大会 Ｇブロック ２０１７ | GQ18: 表題７ | GR18: スーパーリ－グ 第１０回大会 Ｇブロック ２０１７ | GS18: 表題７ | GT18: スーパーリ－グ 第１０回大会 Ｇブロック ２０１７ | GU18: 表題７ | GV18: スーパーリ－グ 第１０回大会 Ｇブロック ２０１７ | GW18: 表題７ | GX18: スーパーリ－グ 第１０回大会 Ｇブロック ２０１７ | GY18: 表題７ | GZ18: スーパーリ－グ 第１０回大会 Ｇブロック ２０１７ | HA18: 表題７ | HB18: スーパーリ－グ 第１０回大会 Ｇブロック ２０１７ | HC18: 表題７ | HD18: スーパーリ－グ 第１０回大会 Ｇブロック ２０１７ | HE18: 表題７ | HF18: スーパーリ－グ 第１０回大会 Ｇブロック ２０１７ | HG18: 表題７ | HH18: スーパーリ－グ 第１０回大会 Ｇブロック ２０１７ | HI18: 表題７ | HJ18: スーパーリ－グ 第１０回大会 Ｇブロック ２０１７ | HK18: 表題７ | HL18: スーパーリ－グ 第１０回大会 Ｇブロック ２０１７ | HM18: 表題７ | HN18: スーパーリ－グ 第１０回大会 Ｇブロック ２０１７ | HO18: 表題７ | HP18: スーパーリ－グ 第１０回大会 Ｇブロック ２０１７ | HQ18: 表題７ | HR18: スーパーリ－グ 第１０回大会 Ｇブロック ２０１７ | HS18: 表題７ | HT18: スーパーリ－グ 第１０回大会 Ｇブロック ２０１７ | HU18: 表題７ | HV18: スーパーリ－グ 第１０回大会 Ｇブロック ２０１７ | HW18: 表題７ | HX18: スーパーリ－グ 第１０回大会 Ｇブロック ２０１７ | HY18: 表題７ | HZ18: スーパーリ－グ 第１０回大会 Ｇブロック ２０１７ | IA18: 表題７ | IB18: スーパーリ－グ 第１０回大会 Ｇブロック ２０１７ | IC18: 表題７ | ID18: スーパーリ－グ 第１０回大会 Ｇブロック ２０１７ | IE18: 表題７ | IF18: スーパーリ－グ 第１０回大会 Ｇブロック ２０１７ | IG18: 表題７ | IH18: スーパーリ－グ 第１０回大会 Ｇブロック ２０１７ | II18: 表題７ | IJ18: スーパーリ－グ 第１０回大会 Ｇブロック ２０１７ | IK18: 表題７ | IL18: スーパーリ－グ 第１０回大会 Ｇブロック ２０１７ | IM18: 表題７ | IN18: スーパーリ－グ 第１０回大会 Ｇブロック ２０１７ | IO18: 表題７ | IP18: スーパーリ－グ 第１０回大会 Ｇブロック ２０１７ | IQ18: 表題７ | IR18: スーパーリ－グ 第１０回大会 Ｇブロック ２０１７ | IS18: 表題７ | IT18: スーパーリ－グ 第１０回大会 Ｇブロック ２０１７ | IU18: 表題７ | IV18: スーパーリ－グ 第１０回大会 Ｇブロック ２０１７
A20: 表題８ | B20: スーパーリ－グ 第１７回大会 Ｈブロック ２０２３ | C20: 表題８ | D20: スーパーリ－グ 第１０回大会 Ｈブロック ２０１７ | E20: 表題８ | F20: スーパーリ－グ 第１０回大会 Ｈブロック ２０１７ | G20: 表題８ | H20: スーパーリ－グ 第１０回大会 Ｈブロック ２０１７ | I20: 表題８ | J20: スーパーリ－グ 第１０回大会 Ｈブロック ２０１７ | K20: 表題８ | L20: スーパーリ－グ 第１０回大会 Ｈブロック ２０１７ | M20: 表題８ | N20: スーパーリ－グ 第１０回大会 Ｈブロック ２０１７ | O20: 表題８ | P20: スーパーリ－グ 第１０回大会 Ｈブロック ２０１７ | Q20: 表題８ | R20: スーパーリ－グ 第１０回大会 Ｈブロック ２０１７ | S20: 表題８ | T20: スーパーリ－グ 第１０回大会 Ｈブロック ２０１７ | U20: 表題８ | V20: スーパーリ－グ 第１０回大会 Ｈブロック ２０１７ | W20: 表題８ | X20: スーパーリ－グ 第１０回大会 Ｈブロック ２０１７ | Y20: 表題８ | Z20: スーパーリ－グ 第１０回大会 Ｈブロック ２０１７ | AA20: 表題８ | AB20: スーパーリ－グ 第１０回大会 Ｈブロック ２０１７ | AC20: 表題８ | AD20: スーパーリ－グ 第１０回大会 Ｈブロック ２０１７ | AE20: 表題８ | AF20: スーパーリ－グ 第１０回大会 Ｈブロック ２０１７ | AG20: 表題８ | AH20: スーパーリ－グ 第１０回大会 Ｈブロック ２０１７ | AI20: 表題８ | AJ20: スーパーリ－グ 第１０回大会 Ｈブロック ２０１７ | AK20: 表題８ | AL20: スーパーリ－グ 第１０回大会 Ｈブロック ２０１７ | AM20: 表題８ | AN20: スーパーリ－グ 第１０回大会 Ｈブロック ２０１７ | AO20: 表題８ | AP20: スーパーリ－グ 第１０回大会 Ｈブロック ２０１７ | AQ20: 表題８ | AR20: スーパーリ－グ 第１０回大会 Ｈブロック ２０１７ | AS20: 表題８ | AT20: スーパーリ－グ 第１０回大会 Ｈブロック ２０１７ | AU20: 表題８ | AV20: スーパーリ－グ 第１０回大会 Ｈブロック ２０１７ | AW20: 表題８ | AX20: スーパーリ－グ 第１０回大会 Ｈブロック ２０１７ | AY20: 表題８ | AZ20: スーパーリ－グ 第１０回大会 Ｈブロック ２０１７ | BA20: 表題８ | BB20: スーパーリ－グ 第１０回大会 Ｈブロック ２０１７ | BC20: 表題８ | BD20: スーパーリ－グ 第１０回大会 Ｈブロック ２０１７ | BE20: 表題８ | BF20: スーパーリ－グ 第１０回大会 Ｈブロック ２０１７ | BG20: 表題８ | BH20: スーパーリ－グ 第１０回大会 Ｈブロック ２０１７ | BI20: 表題８ | BJ20: スーパーリ－グ 第１０回大会 Ｈブロック ２０１７ | BK20: 表題８ | BL20: スーパーリ－グ 第１０回大会 Ｈブロック ２０１７ | BM20: 表題８ | BN20: スーパーリ－グ 第１０回大会 Ｈブロック ２０１７ | BO20: 表題８ | BP20: スーパーリ－グ 第１０回大会 Ｈブロック ２０１７ | BQ20: 表題８ | BR20: スーパーリ－グ 第１０回大会 Ｈブロック ２０１７ | BS20: 表題８ | BT20: スーパーリ－グ 第１０回大会 Ｈブロック ２０１７ | BU20: 表題８ | BV20: スーパーリ－グ 第１０回大会 Ｈブロック ２０１７ | BW20: 表題８ | BX20: スーパーリ－グ 第１０回大会 Ｈブロック ２０１７ | BY20: 表題８ | BZ20: スーパーリ－グ 第１０回大会 Ｈブロック ２０１７ | CA20: 表題８ | CB20: スーパーリ－グ 第１０回大会 Ｈブロック ２０１７ | CC20: 表題８ | CD20: スーパーリ－グ 第１０回大会 Ｈブロック ２０１７ | CE20: 表題８ | CF20: スーパーリ－グ 第１０回大会 Ｈブロック ２０１７ | CG20: 表題８ | CH20: スーパーリ－グ 第１０回大会 Ｈブロック ２０１７ | CI20: 表題８ | CJ20: スーパーリ－グ 第１０回大会 Ｈブロック ２０１７ | CK20: 表題８ | CL20: スーパーリ－グ 第１０回大会 Ｈブロック ２０１７ | CM20: 表題８ | CN20: スーパーリ－グ 第１０回大会 Ｈブロック ２０１７ | CO20: 表題８ | CP20: スーパーリ－グ 第１０回大会 Ｈブロック ２０１７ | CQ20: 表題８ | CR20: スーパーリ－グ 第１０回大会 Ｈブロック ２０１７ | CS20: 表題８ | CT20: スーパーリ－グ 第１０回大会 Ｈブロック ２０１７ | CU20: 表題８ | CV20: スーパーリ－グ 第１０回大会 Ｈブロック ２０１７ | CW20: 表題８ | CX20: スーパーリ－グ 第１０回大会 Ｈブロック ２０１７ | CY20: 表題８ | CZ20: スーパーリ－グ 第１０回大会 Ｈブロック ２０１７ | DA20: 表題８ | DB20: スーパーリ－グ 第１０回大会 Ｈブロック ２０１７ | DC20: 表題８ | DD20: スーパーリ－グ 第１０回大会 Ｈブロック ２０１７ | DE20: 表題８ | DF20: スーパーリ－グ 第１０回大会 Ｈブロック ２０１７ | DG20: 表題８ | DH20: スーパーリ－グ 第１０回大会 Ｈブロック ２０１７ | DI20: 表題８ | DJ20: スーパーリ－グ 第１０回大会 Ｈブロック ２０１７ | DK20: 表題８ | DL20: スーパーリ－グ 第１０回大会 Ｈブロック ２０１７ | DM20: 表題８ | DN20: スーパーリ－グ 第１０回大会 Ｈブロック ２０１７ | DO20: 表題８ | DP20: スーパーリ－グ 第１０回大会 Ｈブロック ２０１７ | DQ20: 表題８ | DR20: スーパーリ－グ 第１０回大会 Ｈブロック ２０１７ | DS20: 表題８ | DT20: スーパーリ－グ 第１０回大会 Ｈブロック ２０１７ | DU20: 表題８ | DV20: スーパーリ－グ 第１０回大会 Ｈブロック ２０１７ | DW20: 表題８ | DX20: スーパーリ－グ 第１０回大会 Ｈブロック ２０１７ | DY20: 表題８ | DZ20: スーパーリ－グ 第１０回大会 Ｈブロック ２０１７ | EA20: 表題８ | EB20: スーパーリ－グ 第１０回大会 Ｈブロック ２０１７ | EC20: 表題８ | ED20: スーパーリ－グ 第１０回大会 Ｈブロック ２０１７ | EE20: 表題８ | EF20: スーパーリ－グ 第１０回大会 Ｈブロック ２０１７ | EG20: 表題８ | EH20: スーパーリ－グ 第１０回大会 Ｈブロック ２０１７ | EI20: 表題８ | EJ20: スーパーリ－グ 第１０回大会 Ｈブロック ２０１７ | EK20: 表題８ | EL20: スーパーリ－グ 第１０回大会 Ｈブロック ２０１７ | EM20: 表題８ | EN20: スーパーリ－グ 第１０回大会 Ｈブロック ２０１７ | EO20: 表題８ | EP20: スーパーリ－グ 第１０回大会 Ｈブロック ２０１７ | EQ20: 表題８ | ER20: スーパーリ－グ 第１０回大会 Ｈブロック ２０１７ | ES20: 表題８ | ET20: スーパーリ－グ 第１０回大会 Ｈブロック ２０１７ | EU20: 表題８ | EV20: スーパーリ－グ 第１０回大会 Ｈブロック ２０１７ | EW20: 表題８ | EX20: スーパーリ－グ 第１０回大会 Ｈブロック ２０１７ | EY20: 表題８ | EZ20: スーパーリ－グ 第１０回大会 Ｈブロック ２０１７ | FA20: 表題８ | FB20: スーパーリ－グ 第１０回大会 Ｈブロック ２０１７ | FC20: 表題８ | FD20: スーパーリ－グ 第１０回大会 Ｈブロック ２０１７ | FE20: 表題８ | FF20: スーパーリ－グ 第１０回大会 Ｈブロック ２０１７ | FG20: 表題８ | FH20: スーパーリ－グ 第１０回大会 Ｈブロック ２０１７ | FI20: 表題８ | FJ20: スーパーリ－グ 第１０回大会 Ｈブロック ２０１７ | FK20: 表題８ | FL20: スーパーリ－グ 第１０回大会 Ｈブロック ２０１７ | FM20: 表題８ | FN20: スーパーリ－グ 第１０回大会 Ｈブロック ２０１７ | FO20: 表題８ | FP20: スーパーリ－グ 第１０回大会 Ｈブロック ２０１７ | FQ20: 表題８ | FR20: スーパーリ－グ 第１０回大会 Ｈブロック ２０１７ | FS20: 表題８ | FT20: スーパーリ－グ 第１０回大会 Ｈブロック ２０１７ | FU20: 表題８ | FV20: スーパーリ－グ 第１０回大会 Ｈブロック ２０１７ | FW20: 表題８ | FX20: スーパーリ－グ 第１０回大会 Ｈブロック ２０１７ | FY20: 表題８ | FZ20: スーパーリ－グ 第１０回大会 Ｈブロック ２０１７ | GA20: 表題８ | GB20: スーパーリ－グ 第１０回大会 Ｈブロック ２０１７ | GC20: 表題８ | GD20: スーパーリ－グ 第１０回大会 Ｈブロック ２０１７ | GE20: 表題８ | GF20: スーパーリ－グ 第１０回大会 Ｈブロック ２０１７ | GG20: 表題８ | GH20: スーパーリ－グ 第１０回大会 Ｈブロック ２０１７ | GI20: 表題８ | GJ20: スーパーリ－グ 第１０回大会 Ｈブロック ２０１７ | GK20: 表題８ | GL20: スーパーリ－グ 第１０回大会 Ｈブロック ２０１７ | GM20: 表題８ | GN20: スーパーリ－グ 第１０回大会 Ｈブロック ２０１７ | GO20: 表題８ | GP20: スーパーリ－グ 第１０回大会 Ｈブロック ２０１７ | GQ20: 表題８ | GR20: スーパーリ－グ 第１０回大会 Ｈブロック ２０１７ | GS20: 表題８ | GT20: スーパーリ－グ 第１０回大会 Ｈブロック ２０１７ | GU20: 表題８ | GV20: スーパーリ－グ 第１０回大会 Ｈブロック ２０１７ | GW20: 表題８ | GX20: スーパーリ－グ 第１０回大会 Ｈブロック ２０１７ | GY20: 表題８ | GZ20: スーパーリ－グ 第１０回大会 Ｈブロック ２０１７ | HA20: 表題８ | HB20: スーパーリ－グ 第１０回大会 Ｈブロック ２０１７ | HC20: 表題８ | HD20: スーパーリ－グ 第１０回大会 Ｈブロック ２０１７ | HE20: 表題８ | HF20: スーパーリ－グ 第１０回大会 Ｈブロック ２０１７ | HG20: 表題８ | HH20: スーパーリ－グ 第１０回大会 Ｈブロック ２０１７ | HI20: 表題８ | HJ20: スーパーリ－グ 第１０回大会 Ｈブロック ２０１７ | HK20: 表題８ | HL20: スーパーリ－グ 第１０回大会 Ｈブロック ２０１７ | HM20: 表題８ | HN20: スーパーリ－グ 第１０回大会 Ｈブロック ２０１７ | HO20: 表題８ | HP20: スーパーリ－グ 第１０回大会 Ｈブロック ２０１７ | HQ20: 表題８ | HR20: スーパーリ－グ 第１０回大会 Ｈブロック ２０１７ | HS20: 表題８ | HT20: スーパーリ－グ 第１０回大会 Ｈブロック ２０１７ | HU20: 表題８ | HV20: スーパーリ－グ 第１０回大会 Ｈブロック ２０１７ | HW20: 表題８ | HX20: スーパーリ－グ 第１０回大会 Ｈブロック ２０１７ | HY20: 表題８ | HZ20: スーパーリ－グ 第１０回大会 Ｈブロック ２０１７ | IA20: 表題８ | IB20: スーパーリ－グ 第１０回大会 Ｈブロック ２０１７ | IC20: 表題８ | ID20: スーパーリ－グ 第１０回大会 Ｈブロック ２０１７ | IE20: 表題８ | IF20: スーパーリ－グ 第１０回大会 Ｈブロック ２０１７ | IG20: 表題８ | IH20: スーパーリ－グ 第１０回大会 Ｈブロック ２０１７ | II20: 表題８ | IJ20: スーパーリ－グ 第１０回大会 Ｈブロック ２０１７ | IK20: 表題８ | IL20: スーパーリ－グ 第１０回大会 Ｈブロック ２０１７ | IM20: 表題８ | IN20: スーパーリ－グ 第１０回大会 Ｈブロック ２０１７ | IO20: 表題８ | IP20: スーパーリ－グ 第１０回大会 Ｈブロック ２０１７ | IQ20: 表題８ | IR20: スーパーリ－グ 第１０回大会 Ｈブロック ２０１７ | IS20: 表題８ | IT20: スーパーリ－グ 第１０回大会 Ｈブロック ２０１７ | IU20: 表題８ | IV20: スーパーリ－グ 第１０回大会 Ｈブロック ２０１７
A22: 表題９ | B22: スーパーリ－グ 第１７回大会 Ｉブロック ２０２３ | C22: 表題９ | D22: スーパーリ－グ 第１０回大会 Ｉブロック ２０１７ | E22: 表題９ | F22: スーパーリ－グ 第１０回大会 Ｉブロック ２０１７ | G22: 表題９ | H22: スーパーリ－グ 第１０回大会 Ｉブロック ２０１７ | I22: 表題９ | J22: スーパーリ－グ 第１０回大会 Ｉブロック ２０１７ | K22: 表題９ | L22: スーパーリ－グ 第１０回大会 Ｉブロック ２０１７ | M22: 表題９ | N22: スーパーリ－グ 第１０回大会 Ｉブロック ２０１７ | O22: 表題９ | P22: スーパーリ－グ 第１０回大会 Ｉブロック ２０１７ | Q22: 表題９ | R22: スーパーリ－グ 第１０回大会 Ｉブロック ２０１７ | S22: 表題９ | T22: スーパーリ－グ 第１０回大会 Ｉブロック ２０１７ | U22: 表題９ | V22: スーパーリ－グ 第１０回大会 Ｉブロック ２０１７ | W22: 表題９ | X22: スーパーリ－グ 第１０回大会 Ｉブロック ２０１７ | Y22: 表題９ | Z22: スーパーリ－グ 第１０回大会 Ｉブロック ２０１７ | AA22: 表題９ | AB22: スーパーリ－グ 第１０回大会 Ｉブロック ２０１７ | AC22: 表題９ | AD22: スーパーリ－グ 第１０回大会 Ｉブロック ２０１７ | AE22: 表題９ | AF22: スーパーリ－グ 第１０回大会 Ｉブロック ２０１７ | AG22: 表題９ | AH22: スーパーリ－グ 第１０回大会 Ｉブロック ２０１７ | AI22: 表題９ | AJ22: スーパーリ－グ 第１０回大会 Ｉブロック ２０１７ | AK22: 表題９ | AL22: スーパーリ－グ 第１０回大会 Ｉブロック ２０１７ | AM22: 表題９ | AN22: スーパーリ－グ 第１０回大会 Ｉブロック ２０１７ | AO22: 表題９ | AP22: スーパーリ－グ 第１０回大会 Ｉブロック ２０１７ | AQ22: 表題９ | AR22: スーパーリ－グ 第１０回大会 Ｉブロック ２０１７ | AS22: 表題９ | AT22: スーパーリ－グ 第１０回大会 Ｉブロック ２０１７ | AU22: 表題９ | AV22: スーパーリ－グ 第１０回大会 Ｉブロック ２０１７ | AW22: 表題９ | AX22: スーパーリ－グ 第１０回大会 Ｉブロック ２０１７ | AY22: 表題９ | AZ22: スーパーリ－グ 第１０回大会 Ｉブロック ２０１７ | BA22: 表題９ | BB22: スーパーリ－グ 第１０回大会 Ｉブロック ２０１７ | BC22: 表題９ | BD22: スーパーリ－グ 第１０回大会 Ｉブロック ２０１７ | BE22: 表題９ | BF22: スーパーリ－グ 第１０回大会 Ｉブロック ２０１７ | BG22: 表題９ | BH22: スーパーリ－グ 第１０回大会 Ｉブロック ２０１７ | BI22: 表題９ | BJ22: スーパーリ－グ 第１０回大会 Ｉブロック ２０１７ | BK22: 表題９ | BL22: スーパーリ－グ 第１０回大会 Ｉブロック ２０１７ | BM22: 表題９ | BN22: スーパーリ－グ 第１０回大会 Ｉブロック ２０１７ | BO22: 表題９ | BP22: スーパーリ－グ 第１０回大会 Ｉブロック ２０１７ | BQ22: 表題９ | BR22: スーパーリ－グ 第１０回大会 Ｉブロック ２０１７ | BS22: 表題９ | BT22: スーパーリ－グ 第１０回大会 Ｉブロック ２０１７ | BU22: 表題９ | BV22: スーパーリ－グ 第１０回大会 Ｉブロック ２０１７ | BW22: 表題９ | BX22: スーパーリ－グ 第１０回大会 Ｉブロック ２０１７ | BY22: 表題９ | BZ22: スーパーリ－グ 第１０回大会 Ｉブロック ２０１７ | CA22: 表題９ | CB22: スーパーリ－グ 第１０回大会 Ｉブロック ２０１７ | CC22: 表題９ | CD22: スーパーリ－グ 第１０回大会 Ｉブロック ２０１７ | CE22: 表題９ | CF22: スーパーリ－グ 第１０回大会 Ｉブロック ２０１７ | CG22: 表題９ | CH22: スーパーリ－グ 第１０回大会 Ｉブロック ２０１７ | CI22: 表題９ | CJ22: スーパーリ－グ 第１０回大会 Ｉブロック ２０１７ | CK22: 表題９ | CL22: スーパーリ－グ 第１０回大会 Ｉブロック ２０１７ | CM22: 表題９ | CN22: スーパーリ－グ 第１０回大会 Ｉブロック ２０１７ | CO22: 表題９ | CP22: スーパーリ－グ 第１０回大会 Ｉブロック ２０１７ | CQ22: 表題９ | CR22: スーパーリ－グ 第１０回大会 Ｉブロック ２０１７ | CS22: 表題９ | CT22: スーパーリ－グ 第１０回大会 Ｉブロック ２０１７ | CU22: 表題９ | CV22: スーパーリ－グ 第１０回大会 Ｉブロック ２０１７ | CW22: 表題９ | CX22: スーパーリ－グ 第１０回大会 Ｉブロック ２０１７ | CY22: 表題９ | CZ22: スーパーリ－グ 第１０回大会 Ｉブロック ２０１７ | DA22: 表題９ | DB22: スーパーリ－グ 第１０回大会 Ｉブロック ２０１７ | DC22: 表題９ | DD22: スーパーリ－グ 第１０回大会 Ｉブロック ２０１７ | DE22: 表題９ | DF22: スーパーリ－グ 第１０回大会 Ｉブロック ２０１７ | DG22: 表題９ | DH22: スーパーリ－グ 第１０回大会 Ｉブロック ２０１７ | DI22: 表題９ | DJ22: スーパーリ－グ 第１０回大会 Ｉブロック ２０１７ | DK22: 表題９ | DL22: スーパーリ－グ 第１０回大会 Ｉブロック ２０１７ | DM22: 表題９ | DN22: スーパーリ－グ 第１０回大会 Ｉブロック ２０１７ | DO22: 表題９ | DP22: スーパーリ－グ 第１０回大会 Ｉブロック ２０１７ | DQ22: 表題９ | DR22: スーパーリ－グ 第１０回大会 Ｉブロック ２０１７ | DS22: 表題９ | DT22: スーパーリ－グ 第１０回大会 Ｉブロック ２０１７ | DU22: 表題９ | DV22: スーパーリ－グ 第１０回大会 Ｉブロック ２０１７ | DW22: 表題９ | DX22: スーパーリ－グ 第１０回大会 Ｉブロック ２０１７ | DY22: 表題９ | DZ22: スーパーリ－グ 第１０回大会 Ｉブロック ２０１７ | EA22: 表題９ | EB22: スーパーリ－グ 第１０回大会 Ｉブロック ２０１７ | EC22: 表題９ | ED22: スーパーリ－グ 第１０回大会 Ｉブロック ２０１７ | EE22: 表題９ | EF22: スーパーリ－グ 第１０回大会 Ｉブロック ２０１７ | EG22: 表題９ | EH22: スーパーリ－グ 第１０回大会 Ｉブロック ２０１７ | EI22: 表題９ | EJ22: スーパーリ－グ 第１０回大会 Ｉブロック ２０１７ | EK22: 表題９ | EL22: スーパーリ－グ 第１０回大会 Ｉブロック ２０１７ | EM22: 表題９ | EN22: スーパーリ－グ 第１０回大会 Ｉブロック ２０１７ | EO22: 表題９ | EP22: スーパーリ－グ 第１０回大会 Ｉブロック ２０１７ | EQ22: 表題９ | ER22: スーパーリ－グ 第１０回大会 Ｉブロック ２０１７ | ES22: 表題９ | ET22: スーパーリ－グ 第１０回大会 Ｉブロック ２０１７ | EU22: 表題９ | EV22: スーパーリ－グ 第１０回大会 Ｉブロック ２０１７ | EW22: 表題９ | EX22: スーパーリ－グ 第１０回大会 Ｉブロック ２０１７ | EY22: 表題９ | EZ22: スーパーリ－グ 第１０回大会 Ｉブロック ２０１７ | FA22: 表題９ | FB22: スーパーリ－グ 第１０回大会 Ｉブロック ２０１７ | FC22: 表題９ | FD22: スーパーリ－グ 第１０回大会 Ｉブロック ２０１７ | FE22: 表題９ | FF22: スーパーリ－グ 第１０回大会 Ｉブロック ２０１７ | FG22: 表題９ | FH22: スーパーリ－グ 第１０回大会 Ｉブロック ２０１７ | FI22: 表題９ | FJ22: スーパーリ－グ 第１０回大会 Ｉブロック ２０１７ | FK22: 表題９ | FL22: スーパーリ－グ 第１０回大会 Ｉブロック ２０１７ | FM22: 表題９ | FN22: スーパーリ－グ 第１０回大会 Ｉブロック ２０１７ | FO22: 表題９ | FP22: スーパーリ－グ 第１０回大会 Ｉブロック ２０１７ | FQ22: 表題９ | FR22: スーパーリ－グ 第１０回大会 Ｉブロック ２０１７ | FS22: 表題９ | FT22: スーパーリ－グ 第１０回大会 Ｉブロック ２０１７ | FU22: 表題９ | FV22: スーパーリ－グ 第１０回大会 Ｉブロック ２０１７ | FW22: 表題９ | FX22: スーパーリ－グ 第１０回大会 Ｉブロック ２０１７ | FY22: 表題９ | FZ22: スーパーリ－グ 第１０回大会 Ｉブロック ２０１７ | GA22: 表題９ | GB22: スーパーリ－グ 第１０回大会 Ｉブロック ２０１７ | GC22: 表題９ | GD22: スーパーリ－グ 第１０回大会 Ｉブロック ２０１７ | GE22: 表題９ | GF22: スーパーリ－グ 第１０回大会 Ｉブロック ２０１７ | GG22: 表題９ | GH22: スーパーリ－グ 第１０回大会 Ｉブロック ２０１７ | GI22: 表題９ | GJ22: スーパーリ－グ 第１０回大会 Ｉブロック ２０１７ | GK22: 表題９ | GL22: スーパーリ－グ 第１０回大会 Ｉブロック ２０１７ | GM22: 表題９ | GN22: スーパーリ－グ 第１０回大会 Ｉブロック ２０１７ | GO22: 表題９ | GP22: スーパーリ－グ 第１０回大会 Ｉブロック ２０１７ | GQ22: 表題９ | GR22: スーパーリ－グ 第１０回大会 Ｉブロック ２０１７ | GS22: 表題９ | GT22: スーパーリ－グ 第１０回大会 Ｉブロック ２０１７ | GU22: 表題９ | GV22: スーパーリ－グ 第１０回大会 Ｉブロック ２０１７ | GW22: 表題９ | GX22: スーパーリ－グ 第１０回大会 Ｉブロック ２０１７ | GY22: 表題９ | GZ22: スーパーリ－グ 第１０回大会 Ｉブロック ２０１７ | HA22: 表題９ | HB22: スーパーリ－グ 第１０回大会 Ｉブロック ２０１７ | HC22: 表題９ | HD22: スーパーリ－グ 第１０回大会 Ｉブロック ２０１７ | HE22: 表題９ | HF22: スーパーリ－グ 第１０回大会 Ｉブロック ２０１７ | HG22: 表題９ | HH22: スーパーリ－グ 第１０回大会 Ｉブロック ２０１７ | HI22: 表題９ | HJ22: スーパーリ－グ 第１０回大会 Ｉブロック ２０１７ | HK22: 表題９ | HL22: スーパーリ－グ 第１０回大会 Ｉブロック ２０１７ | HM22: 表題９ | HN22: スーパーリ－グ 第１０回大会 Ｉブロック ２０１７ | HO22: 表題９ | HP22: スーパーリ－グ 第１０回大会 Ｉブロック ２０１７ | HQ22: 表題９ | HR22: スーパーリ－グ 第１０回大会 Ｉブロック ２０１７ | HS22: 表題９ | HT22: スーパーリ－グ 第１０回大会 Ｉブロック ２０１７ | HU22: 表題９ | HV22: スーパーリ－グ 第１０回大会 Ｉブロック ２０１７ | HW22: 表題９ | HX22: スーパーリ－グ 第１０回大会 Ｉブロック ２０１７ | HY22: 表題９ | HZ22: スーパーリ－グ 第１０回大会 Ｉブロック ２０１７ | IA22: 表題９ | IB22: スーパーリ－グ 第１０回大会 Ｉブロック ２０１７ | IC22: 表題９ | ID22: スーパーリ－グ 第１０回大会 Ｉブロック ２０１７ | IE22: 表題９ | IF22: スーパーリ－グ 第１０回大会 Ｉブロック ２０１７ | IG22: 表題９ | IH22: スーパーリ－グ 第１０回大会 Ｉブロック ２０１７ | II22: 表題９ | IJ22: スーパーリ－グ 第１０回大会 Ｉブロック ２０１７ | IK22: 表題９ | IL22: スーパーリ－グ 第１０回大会 Ｉブロック ２０１７ | IM22: 表題９ | IN22: スーパーリ－グ 第１０回大会 Ｉブロック ２０１７ | IO22: 表題９ | IP22: スーパーリ－グ 第１０回大会 Ｉブロック ２０１７ | IQ22: 表題９ | IR22: スーパーリ－グ 第１０回大会 Ｉブロック ２０１７ | IS22: 表題９ | IT22: スーパーリ－グ 第１０回大会 Ｉブロック ２０１７ | IU22: 表題９ | IV22: スーパーリ－グ 第１０回大会 Ｉブロック ２０１７
A24: 表題１０ | B24: スーパーリ－グ 第１７回大会 Ｊブロック ２０２３ | C24: 表題１０ | D24: スーパーリ－グ 第１０回大会 Ｊブロック ２０１７ | E24: 表題１０ | F24: スーパーリ－グ 第１０回大会 Ｊブロック ２０１７ | G24: 表題１０ | H24: スーパーリ－グ 第１０回大会 Ｊブロック ２０１７ | I24: 表題１０ | J24: スーパーリ－グ 第１０回大会 Ｊブロック ２０１７ | K24: 表題１０ | L24: スーパーリ－グ 第１０回大会 Ｊブロック ２０１７ | M24: 表題１０ | N24: スーパーリ－グ 第１０回大会 Ｊブロック ２０１７ | O24: 表題１０ | P24: スーパーリ－グ 第１０回大会 Ｊブロック ２０１７ | Q24: 表題１０ | R24: スーパーリ－グ 第１０回大会 Ｊブロック ２０１７ | S24: 表題１０ | T24: スーパーリ－グ 第１０回大会 Ｊブロック ２０１７ | U24: 表題１０ | V24: スーパーリ－グ 第１０回大会 Ｊブロック ２０１７ | W24: 表題１０ | X24: スーパーリ－グ 第１０回大会 Ｊブロック ２０１７ | Y24: 表題１０ | Z24: スーパーリ－グ 第１０回大会 Ｊブロック ２０１７ | AA24: 表題１０ | AB24: スーパーリ－グ 第１０回大会 Ｊブロック ２０１７ | AC24: 表題１０ | AD24: スーパーリ－グ 第１０回大会 Ｊブロック ２０１７ | AE24: 表題１０ | AF24: スーパーリ－グ 第１０回大会 Ｊブロック ２０１７ | AG24: 表題１０ | AH24: スーパーリ－グ 第１０回大会 Ｊブロック ２０１７ | AI24: 表題１０ | AJ24: スーパーリ－グ 第１０回大会 Ｊブロック ２０１７ | AK24: 表題１０ | AL24: スーパーリ－グ 第１０回大会 Ｊブロック ２０１７ | AM24: 表題１０ | AN24: スーパーリ－グ 第１０回大会 Ｊブロック ２０１７ | AO24: 表題１０ | AP24: スーパーリ－グ 第１０回大会 Ｊブロック ２０１７ | AQ24: 表題１０ | AR24: スーパーリ－グ 第１０回大会 Ｊブロック ２０１７ | AS24: 表題１０ | AT24: スーパーリ－グ 第１０回大会 Ｊブロック ２０１７ | AU24: 表題１０ | AV24: スーパーリ－グ 第１０回大会 Ｊブロック ２０１７ | AW24: 表題１０ | AX24: スーパーリ－グ 第１０回大会 Ｊブロック ２０１７ | AY24: 表題１０ | AZ24: スーパーリ－グ 第１０回大会 Ｊブロック ２０１７ | BA24: 表題１０ | BB24: スーパーリ－グ 第１０回大会 Ｊブロック ２０１７ | BC24: 表題１０ | BD24: スーパーリ－グ 第１０回大会 Ｊブロック ２０１７ | BE24: 表題１０ | BF24: スーパーリ－グ 第１０回大会 Ｊブロック ２０１７ | BG24: 表題１０ | BH24: スーパーリ－グ 第１０回大会 Ｊブロック ２０１７ | BI24: 表題１０ | BJ24: スーパーリ－グ 第１０回大会 Ｊブロック ２０１７ | BK24: 表題１０ | BL24: スーパーリ－グ 第１０回大会 Ｊブロック ２０１７ | BM24: 表題１０ | BN24: スーパーリ－グ 第１０回大会 Ｊブロック ２０１７ | BO24: 表題１０ | BP24: スーパーリ－グ 第１０回大会 Ｊブロック ２０１７ | BQ24: 表題１０ | BR24: スーパーリ－グ 第１０回大会 Ｊブロック ２０１７ | BS24: 表題１０ | BT24: スーパーリ－グ 第１０回大会 Ｊブロック ２０１７ | BU24: 表題１０ | BV24: スーパーリ－グ 第１０回大会 Ｊブロック ２０１７ | BW24: 表題１０ | BX24: スーパーリ－グ 第１０回大会 Ｊブロック ２０１７ | BY24: 表題１０ | BZ24: スーパーリ－グ 第１０回大会 Ｊブロック ２０１７ | CA24: 表題１０ | CB24: スーパーリ－グ 第１０回大会 Ｊブロック ２０１７ | CC24: 表題１０ | CD24: スーパーリ－グ 第１０回大会 Ｊブロック ２０１７ | CE24: 表題１０ | CF24: スーパーリ－グ 第１０回大会 Ｊブロック ２０１７ | CG24: 表題１０ | CH24: スーパーリ－グ 第１０回大会 Ｊブロック ２０１７ | CI24: 表題１０ | CJ24: スーパーリ－グ 第１０回大会 Ｊブロック ２０１７ | CK24: 表題１０ | CL24: スーパーリ－グ 第１０回大会 Ｊブロック ２０１７ | CM24: 表題１０ | CN24: スーパーリ－グ 第１０回大会 Ｊブロック ２０１７ | CO24: 表題１０ | CP24: スーパーリ－グ 第１０回大会 Ｊブロック ２０１７ | CQ24: 表題１０ | CR24: スーパーリ－グ 第１０回大会 Ｊブロック ２０１７ | CS24: 表題１０ | CT24: スーパーリ－グ 第１０回大会 Ｊブロック ２０１７ | CU24: 表題１０ | CV24: スーパーリ－グ 第１０回大会 Ｊブロック ２０１７ | CW24: 表題１０ | CX24: スーパーリ－グ 第１０回大会 Ｊブロック ２０１７ | CY24: 表題１０ | CZ24: スーパーリ－グ 第１０回大会 Ｊブロック ２０１７ | DA24: 表題１０ | DB24: スーパーリ－グ 第１０回大会 Ｊブロック ２０１７ | DC24: 表題１０ | DD24: スーパーリ－グ 第１０回大会 Ｊブロック ２０１７ | DE24: 表題１０ | DF24: スーパーリ－グ 第１０回大会 Ｊブロック ２０１７ | DG24: 表題１０ | DH24: スーパーリ－グ 第１０回大会 Ｊブロック ２０１７ | DI24: 表題１０ | DJ24: スーパーリ－グ 第１０回大会 Ｊブロック ２０１７ | DK24: 表題１０ | DL24: スーパーリ－グ 第１０回大会 Ｊブロック ２０１７ | DM24: 表題１０ | DN24: スーパーリ－グ 第１０回大会 Ｊブロック ２０１７ | DO24: 表題１０ | DP24: スーパーリ－グ 第１０回大会 Ｊブロック ２０１７ | DQ24: 表題１０ | DR24: スーパーリ－グ 第１０回大会 Ｊブロック ２０１７ | DS24: 表題１０ | DT24: スーパーリ－グ 第１０回大会 Ｊブロック ２０１７ | DU24: 表題１０ | DV24: スーパーリ－グ 第１０回大会 Ｊブロック ２０１７ | DW24: 表題１０ | DX24: スーパーリ－グ 第１０回大会 Ｊブロック ２０１７ | DY24: 表題１０ | DZ24: スーパーリ－グ 第１０回大会 Ｊブロック ２０１７ | EA24: 表題１０ | EB24: スーパーリ－グ 第１０回大会 Ｊブロック ２０１７ | EC24: 表題１０ | ED24: スーパーリ－グ 第１０回大会 Ｊブロック ２０１７ | EE24: 表題１０ | EF24: スーパーリ－グ 第１０回大会 Ｊブロック ２０１７ | EG24: 表題１０ | EH24: スーパーリ－グ 第１０回大会 Ｊブロック ２０１７ | EI24: 表題１０ | EJ24: スーパーリ－グ 第１０回大会 Ｊブロック ２０１７ | EK24: 表題１０ | EL24: スーパーリ－グ 第１０回大会 Ｊブロック ２０１７ | EM24: 表題１０ | EN24: スーパーリ－グ 第１０回大会 Ｊブロック ２０１７ | EO24: 表題１０ | EP24: スーパーリ－グ 第１０回大会 Ｊブロック ２０１７ | EQ24: 表題１０ | ER24: スーパーリ－グ 第１０回大会 Ｊブロック ２０１７ | ES24: 表題１０ | ET24: スーパーリ－グ 第１０回大会 Ｊブロック ２０１７ | EU24: 表題１０ | EV24: スーパーリ－グ 第１０回大会 Ｊブロック ２０１７ | EW24: 表題１０ | EX24: スーパーリ－グ 第１０回大会 Ｊブロック ２０１７ | EY24: 表題１０ | EZ24: スーパーリ－グ 第１０回大会 Ｊブロック ２０１７ | FA24: 表題１０ | FB24: スーパーリ－グ 第１０回大会 Ｊブロック ２０１７ | FC24: 表題１０ | FD24: スーパーリ－グ 第１０回大会 Ｊブロック ２０１７ | FE24: 表題１０ | FF24: スーパーリ－グ 第１０回大会 Ｊブロック ２０１７ | FG24: 表題１０ | FH24: スーパーリ－グ 第１０回大会 Ｊブロック ２０１７ | FI24: 表題１０ | FJ24: スーパーリ－グ 第１０回大会 Ｊブロック ２０１７ | FK24: 表題１０ | FL24: スーパーリ－グ 第１０回大会 Ｊブロック ２０１７ | FM24: 表題１０ | FN24: スーパーリ－グ 第１０回大会 Ｊブロック ２０１７ | FO24: 表題１０ | FP24: スーパーリ－グ 第１０回大会 Ｊブロック ２０１７ | FQ24: 表題１０ | FR24: スーパーリ－グ 第１０回大会 Ｊブロック ２０１７ | FS24: 表題１０ | FT24: スーパーリ－グ 第１０回大会 Ｊブロック ２０１７ | FU24: 表題１０ | FV24: スーパーリ－グ 第１０回大会 Ｊブロック ２０１７ | FW24: 表題１０ | FX24: スーパーリ－グ 第１０回大会 Ｊブロック ２０１７ | FY24: 表題１０ | FZ24: スーパーリ－グ 第１０回大会 Ｊブロック ２０１７ | GA24: 表題１０ | GB24: スーパーリ－グ 第１０回大会 Ｊブロック ２０１７ | GC24: 表題１０ | GD24: スーパーリ－グ 第１０回大会 Ｊブロック ２０１７ | GE24: 表題１０ | GF24: スーパーリ－グ 第１０回大会 Ｊブロック ２０１７ | GG24: 表題１０ | GH24: スーパーリ－グ 第１０回大会 Ｊブロック ２０１７ | GI24: 表題１０ | GJ24: スーパーリ－グ 第１０回大会 Ｊブロック ２０１７ | GK24: 表題１０ | GL24: スーパーリ－グ 第１０回大会 Ｊブロック ２０１７ | GM24: 表題１０ | GN24: スーパーリ－グ 第１０回大会 Ｊブロック ２０１７ | GO24: 表題１０ | GP24: スーパーリ－グ 第１０回大会 Ｊブロック ２０１７ | GQ24: 表題１０ | GR24: スーパーリ－グ 第１０回大会 Ｊブロック ２０１７ | GS24: 表題１０ | GT24: スーパーリ－グ 第１０回大会 Ｊブロック ２０１７ | GU24: 表題１０ | GV24: スーパーリ－グ 第１０回大会 Ｊブロック ２０１７ | GW24: 表題１０ | GX24: スーパーリ－グ 第１０回大会 Ｊブロック ２０１７ | GY24: 表題１０ | GZ24: スーパーリ－グ 第１０回大会 Ｊブロック ２０１７ | HA24: 表題１０ | HB24: スーパーリ－グ 第１０回大会 Ｊブロック ２０１７ | HC24: 表題１０ | HD24: スーパーリ－グ 第１０回大会 Ｊブロック ２０１７ | HE24: 表題１０ | HF24: スーパーリ－グ 第１０回大会 Ｊブロック ２０１７ | HG24: 表題１０ | HH24: スーパーリ－グ 第１０回大会 Ｊブロック ２０１７ | HI24: 表題１０ | HJ24: スーパーリ－グ 第１０回大会 Ｊブロック ２０１７ | HK24: 表題１０ | HL24: スーパーリ－グ 第１０回大会 Ｊブロック ２０１７ | HM24: 表題１０ | HN24: スーパーリ－グ 第１０回大会 Ｊブロック ２０１７ | HO24: 表題１０ | HP24: スーパーリ－グ 第１０回大会 Ｊブロック ２０１７ | HQ24: 表題１０ | HR24: スーパーリ－グ 第１０回大会 Ｊブロック ２０１７ | HS24: 表題１０ | HT24: スーパーリ－グ 第１０回大会 Ｊブロック ２０１７ | HU24: 表題１０ | HV24: スーパーリ－グ 第１０回大会 Ｊブロック ２０１７ | HW24: 表題１０ | HX24: スーパーリ－グ 第１０回大会 Ｊブロック ２０１７ | HY24: 表題１０ | HZ24: スーパーリ－グ 第１０回大会 Ｊブロック ２０１７ | IA24: 表題１０ | IB24: スーパーリ－グ 第１０回大会 Ｊブロック ２０１７ | IC24: 表題１０ | ID24: スーパーリ－グ 第１０回大会 Ｊブロック ２０１７ | IE24: 表題１０ | IF24: スーパーリ－グ 第１０回大会 Ｊブロック ２０１７ | IG24: 表題１０ | IH24: スーパーリ－グ 第１０回大会 Ｊブロック ２０１７ | II24: 表題１０ | IJ24: スーパーリ－グ 第１０回大会 Ｊブロック ２０１７ | IK24: 表題１０ | IL24: スーパーリ－グ 第１０回大会 Ｊブロック ２０１７ | IM24: 表題１０ | IN24: スーパーリ－グ 第１０回大会 Ｊブロック ２０１７ | IO24: 表題１０ | IP24: スーパーリ－グ 第１０回大会 Ｊブロック ２０１７ | IQ24: 表題１０ | IR24: スーパーリ－グ 第１０回大会 Ｊブロック ２０１７ | IS24: 表題１０ | IT24: スーパーリ－グ 第１０回大会 Ｊブロック ２０１７ | IU24: 表題１０ | IV24: スーパーリ－グ 第１０回大会 Ｊブロック ２０１７
A26: 表題１１ | B26: スーパーリ－グ 第１７回大会 Ｋブロック ２０２３ | C26: 表題１１ | D26: スーパーリ－グ 第１０回大会 Ｋブロック ２０１７ | E26: 表題１１ | F26: スーパーリ－グ 第１０回大会 Ｋブロック ２０１７ | G26: 表題１１ | H26: スーパーリ－グ 第１０回大会 Ｋブロック ２０１７ | I26: 表題１１ | J26: スーパーリ－グ 第１０回大会 Ｋブロック ２０１７ | K26: 表題１１ | L26: スーパーリ－グ 第１０回大会 Ｋブロック ２０１７ | M26: 表題１１ | N26: スーパーリ－グ 第１０回大会 Ｋブロック ２０１７ | O26: 表題１１ | P26: スーパーリ－グ 第１０回大会 Ｋブロック ２０１７ | Q26: 表題１１ | R26: スーパーリ－グ 第１０回大会 Ｋブロック ２０１７ | S26: 表題１１ | T26: スーパーリ－グ 第１０回大会 Ｋブロック ２０１７ | U26: 表題１１ | V26: スーパーリ－グ 第１０回大会 Ｋブロック ２０１７ | W26: 表題１１ | X26: スーパーリ－グ 第１０回大会 Ｋブロック ２０１７ | Y26: 表題１１ | Z26: スーパーリ－グ 第１０回大会 Ｋブロック ２０１７ | AA26: 表題１１ | AB26: スーパーリ－グ 第１０回大会 Ｋブロック ２０１７ | AC26: 表題１１ | AD26: スーパーリ－グ 第１０回大会 Ｋブロック ２０１７ | AE26: 表題１１ | AF26: スーパーリ－グ 第１０回大会 Ｋブロック ２０１７ | AG26: 表題１１ | AH26: スーパーリ－グ 第１０回大会 Ｋブロック ２０１７ | AI26: 表題１１ | AJ26: スーパーリ－グ 第１０回大会 Ｋブロック ２０１７ | AK26: 表題１１ | AL26: スーパーリ－グ 第１０回大会 Ｋブロック ２０１７ | AM26: 表題１１ | AN26: スーパーリ－グ 第１０回大会 Ｋブロック ２０１７ | AO26: 表題１１ | AP26: スーパーリ－グ 第１０回大会 Ｋブロック ２０１７ | AQ26: 表題１１ | AR26: スーパーリ－グ 第１０回大会 Ｋブロック ２０１７ | AS26: 表題１１ | AT26: スーパーリ－グ 第１０回大会 Ｋブロック ２０１７ | AU26: 表題１１ | AV26: スーパーリ－グ 第１０回大会 Ｋブロック ２０１７ | AW26: 表題１１ | AX26: スーパーリ－グ 第１０回大会 Ｋブロック ２０１７ | AY26: 表題１１ | AZ26: スーパーリ－グ 第１０回大会 Ｋブロック ２０１７ | BA26: 表題１１ | BB26: スーパーリ－グ 第１０回大会 Ｋブロック ２０１７ | BC26: 表題１１ | BD26: スーパーリ－グ 第１０回大会 Ｋブロック ２０１７ | BE26: 表題１１ | BF26: スーパーリ－グ 第１０回大会 Ｋブロック ２０１７ | BG26: 表題１１ | BH26: スーパーリ－グ 第１０回大会 Ｋブロック ２０１７ | BI26: 表題１１ | BJ26: スーパーリ－グ 第１０回大会 Ｋブロック ２０１７ | BK26: 表題１１ | BL26: スーパーリ－グ 第１０回大会 Ｋブロック ２０１７ | BM26: 表題１１ | BN26: スーパーリ－グ 第１０回大会 Ｋブロック ２０１７ | BO26: 表題１１ | BP26: スーパーリ－グ 第１０回大会 Ｋブロック ２０１７ | BQ26: 表題１１ | BR26: スーパーリ－グ 第１０回大会 Ｋブロック ２０１７ | BS26: 表題１１ | BT26: スーパーリ－グ 第１０回大会 Ｋブロック ２０１７ | BU26: 表題１１ | BV26: スーパーリ－グ 第１０回大会 Ｋブロック ２０１７ | BW26: 表題１１ | BX26: スーパーリ－グ 第１０回大会 Ｋブロック ２０１７ | BY26: 表題１１ | BZ26: スーパーリ－グ 第１０回大会 Ｋブロック ２０１７ | CA26: 表題１１ | CB26: スーパーリ－グ 第１０回大会 Ｋブロック ２０１７ | CC26: 表題１１ | CD26: スーパーリ－グ 第１０回大会 Ｋブロック ２０１７ | CE26: 表題１１ | CF26: スーパーリ－グ 第１０回大会 Ｋブロック ２０１７ | CG26: 表題１１ | CH26: スーパーリ－グ 第１０回大会 Ｋブロック ２０１７ | CI26: 表題１１ | CJ26: スーパーリ－グ 第１０回大会 Ｋブロック ２０１７ | CK26: 表題１１ | CL26: スーパーリ－グ 第１０回大会 Ｋブロック ２０１７ | CM26: 表題１１ | CN26: スーパーリ－グ 第１０回大会 Ｋブロック ２０１７ | CO26: 表題１１ | CP26: スーパーリ－グ 第１０回大会 Ｋブロック ２０１７ | CQ26: 表題１１ | CR26: スーパーリ－グ 第１０回大会 Ｋブロック ２０１７ | CS26: 表題１１ | CT26: スーパーリ－グ 第１０回大会 Ｋブロック ２０１７ | CU26: 表題１１ | CV26: スーパーリ－グ 第１０回大会 Ｋブロック ２０１７ | CW26: 表題１１ | CX26: スーパーリ－グ 第１０回大会 Ｋブロック ２０１７ | CY26: 表題１１ | CZ26: スーパーリ－グ 第１０回大会 Ｋブロック ２０１７ | DA26: 表題１１ | DB26: スーパーリ－グ 第１０回大会 Ｋブロック ２０１７ | DC26: 表題１１ | DD26: スーパーリ－グ 第１０回大会 Ｋブロック ２０１７ | DE26: 表題１１ | DF26: スーパーリ－グ 第１０回大会 Ｋブロック ２０１７ | DG26: 表題１１ | DH26: スーパーリ－グ 第１０回大会 Ｋブロック ２０１７ | DI26: 表題１１ | DJ26: スーパーリ－グ 第１０回大会 Ｋブロック ２０１７ | DK26: 表題１１ | DL26: スーパーリ－グ 第１０回大会 Ｋブロック ２０１７ | DM26: 表題１１ | DN26: スーパーリ－グ 第１０回大会 Ｋブロック ２０１７ | DO26: 表題１１ | DP26: スーパーリ－グ 第１０回大会 Ｋブロック ２０１７ | DQ26: 表題１１ | DR26: スーパーリ－グ 第１０回大会 Ｋブロック ２０１７ | DS26: 表題１１ | DT26: スーパーリ－グ 第１０回大会 Ｋブロック ２０１７ | DU26: 表題１１ | DV26: スーパーリ－グ 第１０回大会 Ｋブロック ２０１７ | DW26: 表題１１ | DX26: スーパーリ－グ 第１０回大会 Ｋブロック ２０１７ | DY26: 表題１１ | DZ26: スーパーリ－グ 第１０回大会 Ｋブロック ２０１７ | EA26: 表題１１ | EB26: スーパーリ－グ 第１０回大会 Ｋブロック ２０１７ | EC26: 表題１１ | ED26: スーパーリ－グ 第１０回大会 Ｋブロック ２０１７ | EE26: 表題１１ | EF26: スーパーリ－グ 第１０回大会 Ｋブロック ２０１７ | EG26: 表題１１ | EH26: スーパーリ－グ 第１０回大会 Ｋブロック ２０１７ | EI26: 表題１１ | EJ26: スーパーリ－グ 第１０回大会 Ｋブロック ２０１７ | EK26: 表題１１ | EL26: スーパーリ－グ 第１０回大会 Ｋブロック ２０１７ | EM26: 表題１１ | EN26: スーパーリ－グ 第１０回大会 Ｋブロック ２０１７ | EO26: 表題１１ | EP26: スーパーリ－グ 第１０回大会 Ｋブロック ２０１７ | EQ26: 表題１１ | ER26: スーパーリ－グ 第１０回大会 Ｋブロック ２０１７ | ES26: 表題１１ | ET26: スーパーリ－グ 第１０回大会 Ｋブロック ２０１７ | EU26: 表題１１ | EV26: スーパーリ－グ 第１０回大会 Ｋブロック ２０１７ | EW26: 表題１１ | EX26: スーパーリ－グ 第１０回大会 Ｋブロック ２０１７ | EY26: 表題１１ | EZ26: スーパーリ－グ 第１０回大会 Ｋブロック ２０１７ | FA26: 表題１１ | FB26: スーパーリ－グ 第１０回大会 Ｋブロック ２０１７ | FC26: 表題１１ | FD26: スーパーリ－グ 第１０回大会 Ｋブロック ２０１７ | FE26: 表題１１ | FF26: スーパーリ－グ 第１０回大会 Ｋブロック ２０１７ | FG26: 表題１１ | FH26: スーパーリ－グ 第１０回大会 Ｋブロック ２０１７ | FI26: 表題１１ | FJ26: スーパーリ－グ 第１０回大会 Ｋブロック ２０１７ | FK26: 表題１１ | FL26: スーパーリ－グ 第１０回大会 Ｋブロック ２０１７ | FM26: 表題１１ | FN26: スーパーリ－グ 第１０回大会 Ｋブロック ２０１７ | FO26: 表題１１ | FP26: スーパーリ－グ 第１０回大会 Ｋブロック ２０１７ | FQ26: 表題１１ | FR26: スーパーリ－グ 第１０回大会 Ｋブロック ２０１７ | FS26: 表題１１ | FT26: スーパーリ－グ 第１０回大会 Ｋブロック ２０１７ | FU26: 表題１１ | FV26: スーパーリ－グ 第１０回大会 Ｋブロック ２０１７ | FW26: 表題１１ | FX26: スーパーリ－グ 第１０回大会 Ｋブロック ２０１７ | FY26: 表題１１ | FZ26: スーパーリ－グ 第１０回大会 Ｋブロック ２０１７ | GA26: 表題１１ | GB26: スーパーリ－グ 第１０回大会 Ｋブロック ２０１７ | GC26: 表題１１ | GD26: スーパーリ－グ 第１０回大会 Ｋブロック ２０１７ | GE26: 表題１１ | GF26: スーパーリ－グ 第１０回大会 Ｋブロック ２０１７ | GG26: 表題１１ | GH26: スーパーリ－グ 第１０回大会 Ｋブロック ２０１７ | GI26: 表題１１ | GJ26: スーパーリ－グ 第１０回大会 Ｋブロック ２０１７ | GK26: 表題１１ | GL26: スーパーリ－グ 第１０回大会 Ｋブロック ２０１７ | GM26: 表題１１ | GN26: スーパーリ－グ 第１０回大会 Ｋブロック ２０１７ | GO26: 表題１１ | GP26: スーパーリ－グ 第１０回大会 Ｋブロック ２０１７ | GQ26: 表題１１ | GR26: スーパーリ－グ 第１０回大会 Ｋブロック ２０１７ | GS26: 表題１１ | GT26: スーパーリ－グ 第１０回大会 Ｋブロック ２０１７ | GU26: 表題１１ | GV26: スーパーリ－グ 第１０回大会 Ｋブロック ２０１７ | GW26: 表題１１ | GX26: スーパーリ－グ 第１０回大会 Ｋブロック ２０１７ | GY26: 表題１１ | GZ26: スーパーリ－グ 第１０回大会 Ｋブロック ２０１７ | HA26: 表題１１ | HB26: スーパーリ－グ 第１０回大会 Ｋブロック ２０１７ | HC26: 表題１１ | HD26: スーパーリ－グ 第１０回大会 Ｋブロック ２０１７ | HE26: 表題１１ | HF26: スーパーリ－グ 第１０回大会 Ｋブロック ２０１７ | HG26: 表題１１ | HH26: スーパーリ－グ 第１０回大会 Ｋブロック ２０１７ | HI26: 表題１１ | HJ26: スーパーリ－グ 第１０回大会 Ｋブロック ２０１７ | HK26: 表題１１ | HL26: スーパーリ－グ 第１０回大会 Ｋブロック ２０１７ | HM26: 表題１１ | HN26: スーパーリ－グ 第１０回大会 Ｋブロック ２０１７ | HO26: 表題１１ | HP26: スーパーリ－グ 第１０回大会 Ｋブロック ２０１７ | HQ26: 表題１１ | HR26: スーパーリ－グ 第１０回大会 Ｋブロック ２０１７ | HS26: 表題１１ | HT26: スーパーリ－グ 第１０回大会 Ｋブロック ２０１７ | HU26: 表題１１ | HV26: スーパーリ－グ 第１０回大会 Ｋブロック ２０１７ | HW26: 表題１１ | HX26: スーパーリ－グ 第１０回大会 Ｋブロック ２０１７ | HY26: 表題１１ | HZ26: スーパーリ－グ 第１０回大会 Ｋブロック ２０１７ | IA26: 表題１１ | IB26: スーパーリ－グ 第１０回大会 Ｋブロック ２０１７ | IC26: 表題１１ | ID26: スーパーリ－グ 第１０回大会 Ｋブロック ２０１７ | IE26: 表題１１ | IF26: スーパーリ－グ 第１０回大会 Ｋブロック ２０１７ | IG26: 表題１１ | IH26: スーパーリ－グ 第１０回大会 Ｋブロック ２０１７ | II26: 表題１１ | IJ26: スーパーリ－グ 第１０回大会 Ｋブロック ２０１７ | IK26: 表題１１ | IL26: スーパーリ－グ 第１０回大会 Ｋブロック ２０１７ | IM26: 表題１１ | IN26: スーパーリ－グ 第１０回大会 Ｋブロック ２０１７ | IO26: 表題１１ | IP26: スーパーリ－グ 第１０回大会 Ｋブロック ２０１７ | IQ26: 表題１１ | IR26: スーパーリ－グ 第１０回大会 Ｋブロック ２０１７ | IS26: 表題１１ | IT26: スーパーリ－グ 第１０回大会 Ｋブロック ２０１７ | IU26: 表題１１ | IV26: スーパーリ－グ 第１０回大会 Ｋブロック ２０１７
A28: 表題１２ | B28: スーパーリ－グ 第１７回大会 Ｌブロック ２０２３ | C28: 表題１０ | D28: スーパーリ－グ 第１０回大会 Ｊブロック ２０１７ | E28: 表題１０ | F28: スーパーリ－グ 第１０回大会 Ｊブロック ２０１７ | G28: 表題１０ | H28: スーパーリ－グ 第１０回大会 Ｊブロック ２０１７ | I28: 表題１０ | J28: スーパーリ－グ 第１０回大会 Ｊブロック ２０１７ | K28: 表題１０ | L28: スーパーリ－グ 第１０回大会 Ｊブロック ２０１７ | M28: 表題１０ | N28: スーパーリ－グ 第１０回大会 Ｊブロック ２０１７ | O28: 表題１０ | P28: スーパーリ－グ 第１０回大会 Ｊブロック ２０１７ | Q28: 表題１０ | R28: スーパーリ－グ 第１０回大会 Ｊブロック ２０１７ | S28: 表題１０ | T28: スーパーリ－グ 第１０回大会 Ｊブロック ２０１７ | U28: 表題１０ | V28: スーパーリ－グ 第１０回大会 Ｊブロック ２０１７ | W28: 表題１０ | X28: スーパーリ－グ 第１０回大会 Ｊブロック ２０１７ | Y28: 表題１０ | Z28: スーパーリ－グ 第１０回大会 Ｊブロック ２０１７ | AA28: 表題１０ | AB28: スーパーリ－グ 第１０回大会 Ｊブロック ２０１７ | AC28: 表題１０ | AD28: スーパーリ－グ 第１０回大会 Ｊブロック ２０１７ | AE28: 表題１０ | AF28: スーパーリ－グ 第１０回大会 Ｊブロック ２０１７ | AG28: 表題１０ | AH28: スーパーリ－グ 第１０回大会 Ｊブロック ２０１７ | AI28: 表題１０ | AJ28: スーパーリ－グ 第１０回大会 Ｊブロック ２０１７ | AK28: 表題１０ | AL28: スーパーリ－グ 第１０回大会 Ｊブロック ２０１７ | AM28: 表題１０ | AN28: スーパーリ－グ 第１０回大会 Ｊブロック ２０１７ | AO28: 表題１０ | AP28: スーパーリ－グ 第１０回大会 Ｊブロック ２０１７ | AQ28: 表題１０ | AR28: スーパーリ－グ 第１０回大会 Ｊブロック ２０１７ | AS28: 表題１０ | AT28: スーパーリ－グ 第１０回大会 Ｊブロック ２０１７ | AU28: 表題１０ | AV28: スーパーリ－グ 第１０回大会 Ｊブロック ２０１７ | AW28: 表題１０ | AX28: スーパーリ－グ 第１０回大会 Ｊブロック ２０１７ | AY28: 表題１０ | AZ28: スーパーリ－グ 第１０回大会 Ｊブロック ２０１７ | BA28: 表題１０ | BB28: スーパーリ－グ 第１０回大会 Ｊブロック ２０１７ | BC28: 表題１０ | BD28: スーパーリ－グ 第１０回大会 Ｊブロック ２０１７ | BE28: 表題１０ | BF28: スーパーリ－グ 第１０回大会 Ｊブロック ２０１７ | BG28: 表題１０ | BH28: スーパーリ－グ 第１０回大会 Ｊブロック ２０１７ | BI28: 表題１０ | BJ28: スーパーリ－グ 第１０回大会 Ｊブロック ２０１７ | BK28: 表題１０ | BL28: スーパーリ－グ 第１０回大会 Ｊブロック ２０１７ | BM28: 表題１０ | BN28: スーパーリ－グ 第１０回大会 Ｊブロック ２０１７ | BO28: 表題１０ | BP28: スーパーリ－グ 第１０回大会 Ｊブロック ２０１７ | BQ28: 表題１０ | BR28: スーパーリ－グ 第１０回大会 Ｊブロック ２０１７ | BS28: 表題１０ | BT28: スーパーリ－グ 第１０回大会 Ｊブロック ２０１７ | BU28: 表題１０ | BV28: スーパーリ－グ 第１０回大会 Ｊブロック ２０１７ | BW28: 表題１０ | BX28: スーパーリ－グ 第１０回大会 Ｊブロック ２０１７ | BY28: 表題１０ | BZ28: スーパーリ－グ 第１０回大会 Ｊブロック ２０１７ | CA28: 表題１０ | CB28: スーパーリ－グ 第１０回大会 Ｊブロック ２０１７ | CC28: 表題１０ | CD28: スーパーリ－グ 第１０回大会 Ｊブロック ２０１７ | CE28: 表題１０ | CF28: スーパーリ－グ 第１０回大会 Ｊブロック ２０１７ | CG28: 表題１０ | CH28: スーパーリ－グ 第１０回大会 Ｊブロック ２０１７ | CI28: 表題１０ | CJ28: スーパーリ－グ 第１０回大会 Ｊブロック ２０１７ | CK28: 表題１０ | CL28: スーパーリ－グ 第１０回大会 Ｊブロック ２０１７ | CM28: 表題１０ | CN28: スーパーリ－グ 第１０回大会 Ｊブロック ２０１７ | CO28: 表題１０ | CP28: スーパーリ－グ 第１０回大会 Ｊブロック ２０１７ | CQ28: 表題１０ | CR28: スーパーリ－グ 第１０回大会 Ｊブロック ２０１７ | CS28: 表題１０ | CT28: スーパーリ－グ 第１０回大会 Ｊブロック ２０１７ | CU28: 表題１０ | CV28: スーパーリ－グ 第１０回大会 Ｊブロック ２０１７ | CW28: 表題１０ | CX28: スーパーリ－グ 第１０回大会 Ｊブロック ２０１７ | CY28: 表題１０ | CZ28: スーパーリ－グ 第１０回大会 Ｊブロック ２０１７ | DA28: 表題１０ | DB28: スーパーリ－グ 第１０回大会 Ｊブロック ２０１７ | DC28: 表題１０ | DD28: スーパーリ－グ 第１０回大会 Ｊブロック ２０１７ | DE28: 表題１０ | DF28: スーパーリ－グ 第１０回大会 Ｊブロック ２０１７ | DG28: 表題１０ | DH28: スーパーリ－グ 第１０回大会 Ｊブロック ２０１７ | DI28: 表題１０ | DJ28: スーパーリ－グ 第１０回大会 Ｊブロック ２０１７ | DK28: 表題１０ | DL28: スーパーリ－グ 第１０回大会 Ｊブロック ２０１７ | DM28: 表題１０ | DN28: スーパーリ－グ 第１０回大会 Ｊブロック ２０１７ | DO28: 表題１０ | DP28: スーパーリ－グ 第１０回大会 Ｊブロック ２０１７ | DQ28: 表題１０ | DR28: スーパーリ－グ 第１０回大会 Ｊブロック ２０１７ | DS28: 表題１０ | DT28: スーパーリ－グ 第１０回大会 Ｊブロック ２０１７ | DU28: 表題１０ | DV28: スーパーリ－グ 第１０回大会 Ｊブロック ２０１７ | DW28: 表題１０ | DX28: スーパーリ－グ 第１０回大会 Ｊブロック ２０１７ | DY28: 表題１０ | DZ28: スーパーリ－グ 第１０回大会 Ｊブロック ２０１７ | EA28: 表題１０ | EB28: スーパーリ－グ 第１０回大会 Ｊブロック ２０１７ | EC28: 表題１０ | ED28: スーパーリ－グ 第１０回大会 Ｊブロック ２０１７ | EE28: 表題１０ | EF28: スーパーリ－グ 第１０回大会 Ｊブロック ２０１７ | EG28: 表題１０ | EH28: スーパーリ－グ 第１０回大会 Ｊブロック ２０１７ | EI28: 表題１０ | EJ28: スーパーリ－グ 第１０回大会 Ｊブロック ２０１７ | EK28: 表題１０ | EL28: スーパーリ－グ 第１０回大会 Ｊブロック ２０１７ | EM28: 表題１０ | EN28: スーパーリ－グ 第１０回大会 Ｊブロック ２０１７ | EO28: 表題１０ | EP28: スーパーリ－グ 第１０回大会 Ｊブロック ２０１７ | EQ28: 表題１０ | ER28: スーパーリ－グ 第１０回大会 Ｊブロック ２０１７ | ES28: 表題１０ | ET28: スーパーリ－グ 第１０回大会 Ｊブロック ２０１７ | EU28: 表題１０ | EV28: スーパーリ－グ 第１０回大会 Ｊブロック ２０１７ | EW28: 表題１０ | EX28: スーパーリ－グ 第１０回大会 Ｊブロック ２０１７ | EY28: 表題１０ | EZ28: スーパーリ－グ 第１０回大会 Ｊブロック ２０１７ | FA28: 表題１０ | FB28: スーパーリ－グ 第１０回大会 Ｊブロック ２０１７ | FC28: 表題１０ | FD28: スーパーリ－グ 第１０回大会 Ｊブロック ２０１７ | FE28: 表題１０ | FF28: スーパーリ－グ 第１０回大会 Ｊブロック ２０１７ | FG28: 表題１０ | FH28: スーパーリ－グ 第１０回大会 Ｊブロック ２０１７ | FI28: 表題１０ | FJ28: スーパーリ－グ 第１０回大会 Ｊブロック ２０１７ | FK28: 表題１０ | FL28: スーパーリ－グ 第１０回大会 Ｊブロック ２０１７ | FM28: 表題１０ | FN28: スーパーリ－グ 第１０回大会 Ｊブロック ２０１７ | FO28: 表題１０ | FP28: スーパーリ－グ 第１０回大会 Ｊブロック ２０１７ | FQ28: 表題１０ | FR28: スーパーリ－グ 第１０回大会 Ｊブロック ２０１７ | FS28: 表題１０ | FT28: スーパーリ－グ 第１０回大会 Ｊブロック ２０１７ | FU28: 表題１０ | FV28: スーパーリ－グ 第１０回大会 Ｊブロック ２０１７ | FW28: 表題１０ | FX28: スーパーリ－グ 第１０回大会 Ｊブロック ２０１７ | FY28: 表題１０ | FZ28: スーパーリ－グ 第１０回大会 Ｊブロック ２０１７ | GA28: 表題１０ | GB28: スーパーリ－グ 第１０回大会 Ｊブロック ２０１７ | GC28: 表題１０ | GD28: スーパーリ－グ 第１０回大会 Ｊブロック ２０１７ | GE28: 表題１０ | GF28: スーパーリ－グ 第１０回大会 Ｊブロック ２０１７ | GG28: 表題１０ | GH28: スーパーリ－グ 第１０回大会 Ｊブロック ２０１７ | GI28: 表題１０ | GJ28: スーパーリ－グ 第１０回大会 Ｊブロック ２０１７ | GK28: 表題１０ | GL28: スーパーリ－グ 第１０回大会 Ｊブロック ２０１７ | GM28: 表題１０ | GN28: スーパーリ－グ 第１０回大会 Ｊブロック ２０１７ | GO28: 表題１０ | GP28: スーパーリ－グ 第１０回大会 Ｊブロック ２０１７ | GQ28: 表題１０ | GR28: スーパーリ－グ 第１０回大会 Ｊブロック ２０１７ | GS28: 表題１０ | GT28: スーパーリ－グ 第１０回大会 Ｊブロック ２０１７ | GU28: 表題１０ | GV28: スーパーリ－グ 第１０回大会 Ｊブロック ２０１７ | GW28: 表題１０ | GX28: スーパーリ－グ 第１０回大会 Ｊブロック ２０１７ | GY28: 表題１０ | GZ28: スーパーリ－グ 第１０回大会 Ｊブロック ２０１７ | HA28: 表題１０ | HB28: スーパーリ－グ 第１０回大会 Ｊブロック ２０１７ | HC28: 表題１０ | HD28: スーパーリ－グ 第１０回大会 Ｊブロック ２０１７ | HE28: 表題１０ | HF28: スーパーリ－グ 第１０回大会 Ｊブロック ２０１７ | HG28: 表題１０ | HH28: スーパーリ－グ 第１０回大会 Ｊブロック ２０１７ | HI28: 表題１０ | HJ28: スーパーリ－グ 第１０回大会 Ｊブロック ２０１７ | HK28: 表題１０ | HL28: スーパーリ－グ 第１０回大会 Ｊブロック ２０１７ | HM28: 表題１０ | HN28: スーパーリ－グ 第１０回大会 Ｊブロック ２０１７ | HO28: 表題１０ | HP28: スーパーリ－グ 第１０回大会 Ｊブロック ２０１７ | HQ28: 表題１０ | HR28: スーパーリ－グ 第１０回大会 Ｊブロック ２０１７ | HS28: 表題１０ | HT28: スーパーリ－グ 第１０回大会 Ｊブロック ２０１７ | HU28: 表題１０ | HV28: スーパーリ－グ 第１０回大会 Ｊブロック ２０１７ | HW28: 表題１０ | HX28: スーパーリ－グ 第１０回大会 Ｊブロック ２０１７ | HY28: 表題１０ | HZ28: スーパーリ－グ 第１０回大会 Ｊブロック ２０１７ | IA28: 表題１０ | IB28: スーパーリ－グ 第１０回大会 Ｊブロック ２０１７ | IC28: 表題１０ | ID28: スーパーリ－グ 第１０回大会 Ｊブロック ２０１７ | IE28: 表題１０ | IF28: スーパーリ－グ 第１０回大会 Ｊブロック ２０１７ | IG28: 表題１０ | IH28: スーパーリ－グ 第１０回大会 Ｊブロック ２０１７ | II28: 表題１０ | IJ28: スーパーリ－グ 第１０回大会 Ｊブロック ２０１７ | IK28: 表題１０ | IL28: スーパーリ－グ 第１０回大会 Ｊブロック ２０１７ | IM28: 表題１０ | IN28: スーパーリ－グ 第１０回大会 Ｊブロック ２０１７ | IO28: 表題１０ | IP28: スーパーリ－グ 第１０回大会 Ｊブロック ２０１７ | IQ28: 表題１０ | IR28: スーパーリ－グ 第１０回大会 Ｊブロック ２０１７ | IS28: 表題１０ | IT28: スーパーリ－グ 第１０回大会 Ｊブロック ２０１７ | IU28: 表題１０ | IV28: スーパーリ－グ 第１０回大会 Ｊブロック ２０１７
A30: 表題１３ | B30: スーパーリ－グ 第１７回大会 Ｍブロック ２０２３ | C30: 表題１１ | D30: スーパーリ－グ 第１０回大会 Ｋブロック ２０１７ | E30: 表題１１ | F30: スーパーリ－グ 第１０回大会 Ｋブロック ２０１７ | G30: 表題１１ | H30: スーパーリ－グ 第１０回大会 Ｋブロック ２０１７ | I30: 表題１１ | J30: スーパーリ－グ 第１０回大会 Ｋブロック ２０１７ | K30: 表題１１ | L30: スーパーリ－グ 第１０回大会 Ｋブロック ２０１７ | M30: 表題１１ | N30: スーパーリ－グ 第１０回大会 Ｋブロック ２０１７ | O30: 表題１１ | P30: スーパーリ－グ 第１０回大会 Ｋブロック ２０１７ | Q30: 表題１１ | R30: スーパーリ－グ 第１０回大会 Ｋブロック ２０１７ | S30: 表題１１ | T30: スーパーリ－グ 第１０回大会 Ｋブロック ２０１７ | U30: 表題１１ | V30: スーパーリ－グ 第１０回大会 Ｋブロック ２０１７ | W30: 表題１１ | X30: スーパーリ－グ 第１０回大会 Ｋブロック ２０１７ | Y30: 表題１１ | Z30: スーパーリ－グ 第１０回大会 Ｋブロック ２０１７ | AA30: 表題１１ | AB30: スーパーリ－グ 第１０回大会 Ｋブロック ２０１７ | AC30: 表題１１ | AD30: スーパーリ－グ 第１０回大会 Ｋブロック ２０１７ | AE30: 表題１１ | AF30: スーパーリ－グ 第１０回大会 Ｋブロック ２０１７ | AG30: 表題１１ | AH30: スーパーリ－グ 第１０回大会 Ｋブロック ２０１７ | AI30: 表題１１ | AJ30: スーパーリ－グ 第１０回大会 Ｋブロック ２０１７ | AK30: 表題１１ | AL30: スーパーリ－グ 第１０回大会 Ｋブロック ２０１７ | AM30: 表題１１ | AN30: スーパーリ－グ 第１０回大会 Ｋブロック ２０１７ | AO30: 表題１１ | AP30: スーパーリ－グ 第１０回大会 Ｋブロック ２０１７ | AQ30: 表題１１ | AR30: スーパーリ－グ 第１０回大会 Ｋブロック ２０１７ | AS30: 表題１１ | AT30: スーパーリ－グ 第１０回大会 Ｋブロック ２０１７ | AU30: 表題１１ | AV30: スーパーリ－グ 第１０回大会 Ｋブロック ２０１７ | AW30: 表題１１ | AX30: スーパーリ－グ 第１０回大会 Ｋブロック ２０１７ | AY30: 表題１１ | AZ30: スーパーリ－グ 第１０回大会 Ｋブロック ２０１７ | BA30: 表題１１ | BB30: スーパーリ－グ 第１０回大会 Ｋブロック ２０１７ | BC30: 表題１１ | BD30: スーパーリ－グ 第１０回大会 Ｋブロック ２０１７ | BE30: 表題１１ | BF30: スーパーリ－グ 第１０回大会 Ｋブロック ２０１７ | BG30: 表題１１ | BH30: スーパーリ－グ 第１０回大会 Ｋブロック ２０１７ | BI30: 表題１１ | BJ30: スーパーリ－グ 第１０回大会 Ｋブロック ２０１７ | BK30: 表題１１ | BL30: スーパーリ－グ 第１０回大会 Ｋブロック ２０１７ | BM30: 表題１１ | BN30: スーパーリ－グ 第１０回大会 Ｋブロック ２０１７ | BO30: 表題１１ | BP30: スーパーリ－グ 第１０回大会 Ｋブロック ２０１７ | BQ30: 表題１１ | BR30: スーパーリ－グ 第１０回大会 Ｋブロック ２０１７ | BS30: 表題１１ | BT30: スーパーリ－グ 第１０回大会 Ｋブロック ２０１７ | BU30: 表題１１ | BV30: スーパーリ－グ 第１０回大会 Ｋブロック ２０１７ | BW30: 表題１１ | BX30: スーパーリ－グ 第１０回大会 Ｋブロック ２０１７ | BY30: 表題１１ | BZ30: スーパーリ－グ 第１０回大会 Ｋブロック ２０１７ | CA30: 表題１１ | CB30: スーパーリ－グ 第１０回大会 Ｋブロック ２０１７ | CC30: 表題１１ | CD30: スーパーリ－グ 第１０回大会 Ｋブロック ２０１７ | CE30: 表題１１ | CF30: スーパーリ－グ 第１０回大会 Ｋブロック ２０１７ | CG30: 表題１１ | CH30: スーパーリ－グ 第１０回大会 Ｋブロック ２０１７ | CI30: 表題１１ | CJ30: スーパーリ－グ 第１０回大会 Ｋブロック ２０１７ | CK30: 表題１１ | CL30: スーパーリ－グ 第１０回大会 Ｋブロック ２０１７ | CM30: 表題１１ | CN30: スーパーリ－グ 第１０回大会 Ｋブロック ２０１７ | CO30: 表題１１ | CP30: スーパーリ－グ 第１０回大会 Ｋブロック ２０１７ | CQ30: 表題１１ | CR30: スーパーリ－グ 第１０回大会 Ｋブロック ２０１７ | CS30: 表題１１ | CT30: スーパーリ－グ 第１０回大会 Ｋブロック ２０１７ | CU30: 表題１１ | CV30: スーパーリ－グ 第１０回大会 Ｋブロック ２０１７ | CW30: 表題１１ | CX30: スーパーリ－グ 第１０回大会 Ｋブロック ２０１７ | CY30: 表題１１ | CZ30: スーパーリ－グ 第１０回大会 Ｋブロック ２０１７ | DA30: 表題１１ | DB30: スーパーリ－グ 第１０回大会 Ｋブロック ２０１７ | DC30: 表題１１ | DD30: スーパーリ－グ 第１０回大会 Ｋブロック ２０１７ | DE30: 表題１１ | DF30: スーパーリ－グ 第１０回大会 Ｋブロック ２０１７ | DG30: 表題１１ | DH30: スーパーリ－グ 第１０回大会 Ｋブロック ２０１７ | DI30: 表題１１ | DJ30: スーパーリ－グ 第１０回大会 Ｋブロック ２０１７ | DK30: 表題１１ | DL30: スーパーリ－グ 第１０回大会 Ｋブロック ２０１７ | DM30: 表題１１ | DN30: スーパーリ－グ 第１０回大会 Ｋブロック ２０１７ | DO30: 表題１１ | DP30: スーパーリ－グ 第１０回大会 Ｋブロック ２０１７ | DQ30: 表題１１ | DR30: スーパーリ－グ 第１０回大会 Ｋブロック ２０１７ | DS30: 表題１１ | DT30: スーパーリ－グ 第１０回大会 Ｋブロック ２０１７ | DU30: 表題１１ | DV30: スーパーリ－グ 第１０回大会 Ｋブロック ２０１７ | DW30: 表題１１ | DX30: スーパーリ－グ 第１０回大会 Ｋブロック ２０１７ | DY30: 表題１１ | DZ30: スーパーリ－グ 第１０回大会 Ｋブロック ２０１７ | EA30: 表題１１ | EB30: スーパーリ－グ 第１０回大会 Ｋブロック ２０１７ | EC30: 表題１１ | ED30: スーパーリ－グ 第１０回大会 Ｋブロック ２０１７ | EE30: 表題１１ | EF30: スーパーリ－グ 第１０回大会 Ｋブロック ２０１７ | EG30: 表題１１ | EH30: スーパーリ－グ 第１０回大会 Ｋブロック ２０１７ | EI30: 表題１１ | EJ30: スーパーリ－グ 第１０回大会 Ｋブロック ２０１７ | EK30: 表題１１ | EL30: スーパーリ－グ 第１０回大会 Ｋブロック ２０１７ | EM30: 表題１１ | EN30: スーパーリ－グ 第１０回大会 Ｋブロック ２０１７ | EO30: 表題１１ | EP30: スーパーリ－グ 第１０回大会 Ｋブロック ２０１７ | EQ30: 表題１１ | ER30: スーパーリ－グ 第１０回大会 Ｋブロック ２０１７ | ES30: 表題１１ | ET30: スーパーリ－グ 第１０回大会 Ｋブロック ２０１７ | EU30: 表題１１ | EV30: スーパーリ－グ 第１０回大会 Ｋブロック ２０１７ | EW30: 表題１１ | EX30: スーパーリ－グ 第１０回大会 Ｋブロック ２０１７ | EY30: 表題１１ | EZ30: スーパーリ－グ 第１０回大会 Ｋブロック ２０１７ | FA30: 表題１１ | FB30: スーパーリ－グ 第１０回大会 Ｋブロック ２０１７ | FC30: 表題１１ | FD30: スーパーリ－グ 第１０回大会 Ｋブロック ２０１７ | FE30: 表題１１ | FF30: スーパーリ－グ 第１０回大会 Ｋブロック ２０１７ | FG30: 表題１１ | FH30: スーパーリ－グ 第１０回大会 Ｋブロック ２０１７ | FI30: 表題１１ | FJ30: スーパーリ－グ 第１０回大会 Ｋブロック ２０１７ | FK30: 表題１１ | FL30: スーパーリ－グ 第１０回大会 Ｋブロック ２０１７ | FM30: 表題１１ | FN30: スーパーリ－グ 第１０回大会 Ｋブロック ２０１７ | FO30: 表題１１ | FP30: スーパーリ－グ 第１０回大会 Ｋブロック ２０１７ | FQ30: 表題１１ | FR30: スーパーリ－グ 第１０回大会 Ｋブロック ２０１７ | FS30: 表題１１ | FT30: スーパーリ－グ 第１０回大会 Ｋブロック ２０１７ | FU30: 表題１１ | FV30: スーパーリ－グ 第１０回大会 Ｋブロック ２０１７ | FW30: 表題１１ | FX30: スーパーリ－グ 第１０回大会 Ｋブロック ２０１７ | FY30: 表題１１ | FZ30: スーパーリ－グ 第１０回大会 Ｋブロック ２０１７ | GA30: 表題１１ | GB30: スーパーリ－グ 第１０回大会 Ｋブロック ２０１７ | GC30: 表題１１ | GD30: スーパーリ－グ 第１０回大会 Ｋブロック ２０１７ | GE30: 表題１１ | GF30: スーパーリ－グ 第１０回大会 Ｋブロック ２０１７ | GG30: 表題１１ | GH30: スーパーリ－グ 第１０回大会 Ｋブロック ２０１７ | GI30: 表題１１ | GJ30: スーパーリ－グ 第１０回大会 Ｋブロック ２０１７ | GK30: 表題１１ | GL30: スーパーリ－グ 第１０回大会 Ｋブロック ２０１７ | GM30: 表題１１ | GN30: スーパーリ－グ 第１０回大会 Ｋブロック ２０１７ | GO30: 表題１１ | GP30: スーパーリ－グ 第１０回大会 Ｋブロック ２０１７ | GQ30: 表題１１ | GR30: スーパーリ－グ 第１０回大会 Ｋブロック ２０１７ | GS30: 表題１１ | GT30: スーパーリ－グ 第１０回大会 Ｋブロック ２０１７ | GU30: 表題１１ | GV30: スーパーリ－グ 第１０回大会 Ｋブロック ２０１７ | GW30: 表題１１ | GX30: スーパーリ－グ 第１０回大会 Ｋブロック ２０１７ | GY30: 表題１１ | GZ30: スーパーリ－グ 第１０回大会 Ｋブロック ２０１７ | HA30: 表題１１ | HB30: スーパーリ－グ 第１０回大会 Ｋブロック ２０１７ | HC30: 表題１１ | HD30: スーパーリ－グ 第１０回大会 Ｋブロック ２０１７ | HE30: 表題１１ | HF30: スーパーリ－グ 第１０回大会 Ｋブロック ２０１７ | HG30: 表題１１ | HH30: スーパーリ－グ 第１０回大会 Ｋブロック ２０１７ | HI30: 表題１１ | HJ30: スーパーリ－グ 第１０回大会 Ｋブロック ２０１７ | HK30: 表題１１ | HL30: スーパーリ－グ 第１０回大会 Ｋブロック ２０１７ | HM30: 表題１１ | HN30: スーパーリ－グ 第１０回大会 Ｋブロック ２０１７ | HO30: 表題１１ | HP30: スーパーリ－グ 第１０回大会 Ｋブロック ２０１７ | HQ30: 表題１１ | HR30: スーパーリ－グ 第１０回大会 Ｋブロック ２０１７ | HS30: 表題１１ | HT30: スーパーリ－グ 第１０回大会 Ｋブロック ２０１７ | HU30: 表題１１ | HV30: スーパーリ－グ 第１０回大会 Ｋブロック ２０１７ | HW30: 表題１１ | HX30: スーパーリ－グ 第１０回大会 Ｋブロック ２０１７ | HY30: 表題１１ | HZ30: スーパーリ－グ 第１０回大会 Ｋブロック ２０１７ | IA30: 表題１１ | IB30: スーパーリ－グ 第１０回大会 Ｋブロック ２０１７ | IC30: 表題１１ | ID30: スーパーリ－グ 第１０回大会 Ｋブロック ２０１７ | IE30: 表題１１ | IF30: スーパーリ－グ 第１０回大会 Ｋブロック ２０１７ | IG30: 表題１１ | IH30: スーパーリ－グ 第１０回大会 Ｋブロック ２０１７ | II30: 表題１１ | IJ30: スーパーリ－グ 第１０回大会 Ｋブロック ２０１７ | IK30: 表題１１ | IL30: スーパーリ－グ 第１０回大会 Ｋブロック ２０１７ | IM30: 表題１１ | IN30: スーパーリ－グ 第１０回大会 Ｋブロック ２０１７ | IO30: 表題１１ | IP30: スーパーリ－グ 第１０回大会 Ｋブロック ２０１７ | IQ30: 表題１１ | IR30: スーパーリ－グ 第１０回大会 Ｋブロック ２０１７ | IS30: 表題１１ | IT30: スーパーリ－グ 第１０回大会 Ｋブロック ２０１７ | IU30: 表題１１ | IV30: スーパーリ－グ 第１０回大会 Ｋブロック ２０１７
A32: 表題１３ | B32: スーパーリ－グ 第１７回大会 Ｎブロック ２０２３

Sheet データ２
B1: Aブロック長
A2: 1 | B2: 有馬スワローズ | D2: 葛飾アニマルズ | E2: B | F2: 葛飾区
A4: 2 | B4: 麹町ドリームス | D4: カバラホークス | E4: I | F4: 足立区
A6: 3 | B6: 山野レッドイーグルス | D6: 品川ドリームキッズ | E6: D | F6: 品川区
A8: 4 | B8: リトルジャイアンツ | D8: ゼットタイガー | E8: L | F8: 大田区
A10: 5 | B10: 大島タイガース | D10: レッドサンズ | E10: G | F10: 文京区
A12: 6 | B12: 麻布キッズ | D12: ブルースカイズ | E12: N | F12: 北区
A14: 7 | B14: 葛西ファイターズ | D14: 高島エイト | E14: C | F14: 板橋区
A16: 8 | B16: コンバッツ | D16: 有馬スワローズ | E16: A | F16: 中央区
B17: Bブロック長
A18: 9 | B18: 葛飾アニマルズ | D18: 大雲寺スターズ | E18: J | F18: 江戸川区
A20: 10 | B20: 淀四ライオンズ | D20: 西田野球クラブ | E20: M | F20: 杉並区
A22: 11 | B22: エンジェルス | D22: 南千住ペガサス | E22: H | F22: 荒川区
A24: 12 | B24: 初台ビクトリー | D24: 大島中央 | E24: F | F24: 江東区城
A26: 13 | B26: ニュー愛宕 | D26: 北原少年野球クラブ | E26: K | F26: 練馬区
A28: 14 | B28: 高輪クラブ | D28: オール麻布 | E28: E | F28: 港区
D29: ●足立Ｉ以外を入れる
A30: 15 | B30: 南篠崎ランチャーズ | D30: ジュニアヤンガース | F30: 足立区
A32: 16 | B32: 勝どきドリームN | D32: ブラックキラーズ | F32: 足立区
B33: Cブロック長
A34: 17 | B34: 高島エイト | D34: レッドファイヤーズ | F34: 足立区
A36: 18 | B36: 新宿ドリーム | D36: 新田ファイヤーズ | F36: 足立区
A38: 19 | B38: 糀谷イーグルス | D38: 西伊興若潮ジュニア | F38: 足立区
A40: 20 | B40: 富ヶ谷ノーティーボーイズ | D40: 扇ターキーズ | F40: 足立区
A42: 21 | B42: 深川レッドソックス | D42: 竹仲 | F42: 足立区
A44: 22 | B44: 御殿山ファイターズ | D44: 東伊興シャインズ | F44: 足立区
D45: ◎足立Ｉを入れる
A46: 23 | B46: 堀小スワローズ | D46: いちがやチーターズ | F46: 新宿区
A48: 24 | B48: 豊島ブレイズ | D48: 新宿ドリーム | F48: 新宿区
B49: Dブロック長
A50: 25 | B50: 品川ドリームキッズ | D50: 淀四ライオンズ | F50: 新宿区
A52: 26 | B52: 扇ターキーズ | D52: 落一アポロ | F52: 新宿区
A54: 27 | B54: トゥールスジュニア | D54: 落合コメッツ | F54: 新宿区
A56: 28 | B56: 文京パワーズ | D56: 麹町ドリームス | F56: 千代田区
D57: ●荒川Ｈ、大田Ｌ以外を入れる
A58: 29 | B58: 江東ジョーズ | D58: 球友ジュニアーズ | F58: 大田区
A60: 30 | B60: サンジュニア | D60: 池雪ジュニアストロング | F60: 大田区
A62: 31 | B62: 興宮ファイターズ | D62: 馬込ジャガース | F62: 大田区
A64: 32 | B64: 不動パイレーツ | D64: 糀谷イーグルス | F64: 大田区
B65: Eブロック長 | D65: ◎大田Ｌを入れる
A66: 33 | B66: オール麻布 | D66: エンジェルス | F66: 荒川区
A68: 34 | B68: ブラックキラーズ | D68: トゥールスジュニア | F68: 荒川区
A70: 35 | B70: ブラザースクラブ | D70: ブラザースクラブ | F70: 荒川区
A72: 36 | B72: 茗荷谷クラブ | D72: 荒川コンドル | F72: 荒川区
D73: ◎荒川Ｈを入れる
A74: 37 | B74: 深川ライナーズ | D74: KCレッドジャッカル | F74: 港区
A76: 38 | B76: 浅草ベースボールクラブ | D76: ナインスターズ | F76: 港区
A78: 39 | B78: 向陽台スターキッズ | D78: 九品仏ペガサス | F78: 港区
A80: 40 | B80: 中央バンディーズ | D80: 山野レッドイーグルス | F80: 世田谷区
B81: Fブロック長
A82: 41 | B82: 大島中央 | D82: 船橋フェニックス | F82: 世田谷区
A84: 42 | B84: ジュニアヤンガース | D84: 用賀ベアーズ | F84: 世田谷区
D85: ●北Ｎ、文京Ｇ、葛飾Ｂ以外を入れる
A86: 43 | B86: KCレッドジャッカル | D86: マッハブレーブス | F86: 北区
A88: 44 | B88: 菊坂ファイヤーズ | D88: 城北メッツ | F88: 北区
D89: ◎北Ｎを入れる
A90: 45 | B90: 亀戸合同 | D90: 菊坂ファイヤーズ | F90: 文京区
A92: 46 | B92: 本村クラブ | D92: 駒込チャイルド | F92: 文京区
A94: 47 | B94: 高井戸東少年野球クラブ | D94: 西千タイガース | F94: 文京区
A96: 48 | B96: 駒込ベアーズ | D96: 文京パワーズ | F96: 文京区
B97: Gブロック長
A98: 49 | B98: レッドサンズ | D98: 礫川 | F98: 文京区
A100: 50 | B100: いちがやチーターズ | D100: 茗荷谷クラブ | F100: 文京区
D101: ◎文京Ｇを入れる
A102: 51 | B102: 馬込ジャガース | D102: リトルジャイアンツ | F102: 葛飾区
A104: 52 | B104: 金町ジャイアンツ | D104: 金町ジャイアンツ | F104: 葛飾区
D105: ◎葛飾Ｂを入れる
A106: 53 | B106: 元加賀 | D106: 若羽クラブ | F106: 渋谷区
A108: 54 | B108: 品川ブルーレーシング | D108: 渋谷レッドソックス | F108: 渋谷区
A110: 55 | B110: 本一色イーグルス | D110: 初台ビクトリー | F110: 渋谷区
A112: 56 | B112: 月島ライオンズ | D112: 富ヶ谷ノーティーボーイズ | F112: 渋谷区
B113: Hブロック長 | D113: ●
A114: 57 | B114: 南千住ペガサス | D114: ニュー愛宕 | F114: 江東区
A116: 58 | B116: 竹仲 | D116: 越中島ブレーブス | F116: 江東区
A118: 59 | B118: 九品仏ペガサス | D118: 亀戸合同 | F118: 江東区
A120: 60 | B120: 駒込チャイルド | D120: 元加賀 | F120: 江東区
A122: 61 | B122: 東陽フェニックス | D122: 江東ジョーズ | F122: 江東区
A124: 62 | B124: 港南メッツ | D124: 江東ファイターズ | F124: 江東区
A126: 63 | B126: サンダースターズ | D126: 七北クラブ | F126: 江東区
A128: 64 | B128: 大塚スネイクス | D128: 深川ジャイアンツ | F128: 江東区
B129: Iブロック長
A130: 65 | B130: カバラホークス | D130: 深川ライナーズ | F130: 江東区
A132: 66 | B132: 落合コメッツ | D132: 深川レッドソックス | F132: 江東区
A134: 67 | B134: 池雪ジュニアストロング | D134: 大島タイガース | F134: 江東区
A136: 68 | B136: 若羽クラブ | D136: 東雲メッツ | F136: 江東区
A138: 69 | B138: 東雲メッツ | D138: 東王ジュニア | F138: 江東区
A140: 70 | B140: 元芝ハヤブサ | D140: 東陽フェニックス | F140: 江東区
D141: ●品川Ｄ、港Ｅ、板橋Ｃ以外を入れる
A142: 71 | B142: 雷サンダース | D142: 中板橋ボーイズ | F142: 板橋区
D143: ◎板橋Ｃを入れる
A144: 72 | B144: 目黒ペガサス | D144: 旗の台クラブ | F144: 品川区
B145: Jブロック長
A146: 73 | B146: 大雲寺スターズ | D146: 元芝ハヤブサ | F146: 品川区
A148: 74 | B148: 西伊興若潮ジュニア | D148: 御殿山ファイターズ | F148: 品川区
A150: 75 | B150: 球友ジュニアーズ | D150: 品川ブルーレーシング | F150: 品川区
A152: 76 | B152: 礫川 | D152: 品川レインボーズ | F152: 品川区
D153: ◎品川Ｄを入れる
A154: 77 | B154: 越中島ブレーブス | D154: 港南メッツ | F154: 港区
A156: 78 | B156: リトルロジャース | D156: 高輪クラブ | F156: 港区
A158: 79 | B158: 調布メンパース | D158: 高輪台ファイターズ | F158: 港区
A160: 80 | B160: 晴海アポローズ | D160: 本村クラブ | F160: 港区
B161: Kブロック長
A162: 81 | B162: 北原少年野球クラブ | D162: 麻布キッズ | F162: 港区
D163: ◎港Ｅを入れる
A164: 82 | B164: 東伊興シャインズ | D164: 浅草ベースボールクラブ | F164: 台東区
A166: 83 | B166: 船橋フェニックス | D166: サンジュニア | F166: 台東区
A168: 84 | B168: 城北メッツ | D168: リトルロジャース | F168: 台東区
D169: ●杉並Ｍ、江戸川Ｊ以外を入れる
A170: 85 | B170: 深川ジャイアンツ | D170: 久我山イーグルス | F170: 杉並区
A172: 86 | B172: 中板橋ボーイズ | D172: 高井戸東少年野球クラブ | F172: 杉並区
A174: 87 | B174: 桃五少年野球クラブ | D174: 桃五少年野球クラブ | F174: 杉並区
A176: 88 | B176: 日本橋ファイターズ | D176: 堀小スワローズ | F176: 杉並区
B177: Lブロック長 | D177: ◎杉並Ｍを入れる
A178: 89 | B178: ゼットタイガー | D178: しらさぎ | F178: 江戸川区
A180: 90 | B180: 新田ファイヤーズ | D180: 葛西ファイターズ | F180: 江戸川区
A182: 91 | B182: 用賀ベアーズ | D182: 興宮ファイターズ | F182: 江戸川区
A184: 92 | B184: 西千タイガース | D184: 松島ファルコンズ | F184: 江戸川区
A186: 93 | B186: 七北クラブ | D186: 南篠崎ランチャーズ | F186: 江戸川区
A188: 94 | B188: 旗の台クラブ | D188: 本一色イーグルス | F188: 江戸川区
A190: 95 | B190: 松島ファルコンズ | D190: 雷サンダース | F190: 江戸川区
D191: ◎江戸川Ｊを入れる
A192: 96 | B192: 練馬ペガサス | D192: サンダースターズ | F192: 墨田区
B193: Mブロック長
A194: 97 | B194: 西田野球クラブ | D194: 調布メンパース | F194: 調布市
A196: 98 | B196: 落一アポロ | D196: 向陽台スターキッズ | F196: 稲城市
D197: ●練馬Ｋ、中央Ａ以外を入れる
A198: 99 | B198: ナインスターズ | D198: 練馬ペガサス | F198: 練馬区
D199: ◎練馬Ｋを入れる
A200: 100 | B200: マッハブレーブス | D200: 月島ライオンズ | F200: 中央区
A202: 101 | B202: 東王ジュニア | D202: 勝どきドリームN | F202: 中央区
A204: 102 | B204: 高輪台ファイターズ | D204: 晴海アポローズ | F204: 中央区
A206: 103 | B206: しらさぎ | D206: 中央バンディーズ | F206: 中央区
A208: 104 | B208: 東山エイターズ | D208: 中央フェニックス | F208: 中央区
B209: Nブロック長
A210: 105 | B210: ブルースカイズ | D210: 日本橋ファイターズ | F210: 中央区
D211: ◎中央Ａを入れる
A212: 106 | B212: レッドファイヤーズ | D212: 東山エイターズ | F212: 目黒区
A214: 107 | B214: 荒川コンドル | D214: 不動パイレーツ | F214: 目黒区
A216: 108 | B216: 渋谷レッドソックス | D216: 目黒ペガサス | F216: 目黒区
A218: 109 | B218: 江東ファイターズ | D218: 駒込ベアーズ | F218: 豊島区
A220: 110 | B220: 品川レインボーズ | D220: 大塚スネイクス | F220: 豊島区
A222: 111 | B222: 久我山イーグルス | D222: 豊島ブレイズ | F222: 豊島区
A224: 112 | B224: 中央フェニックス | D224: コンバッツ | F224: 中野区

Sheet 抽選順 (hidden)
B1: A | D1: B | F1: C | H1: D | J1: E | L1: F | N1: G
B2: 有馬スワローズ | C2: 中央区 | D2: 葛飾アニマルズ | E2: 葛飾区 | F2: 高島エイト | G2: 板橋区 | H2: 品川ドリームキッズ | I2: 品川区 | J2: オール麻布 | K2: 港区 | L2: 大島中央 | M2: 江東区 | N2: レッドサンズ | O2: 文京区
B3: H | D3: I | F3: J | H3: K | J3: L | L3: M | N3: N
B4: 南千住ペガサス | C4: 荒川区 | D4: カバラホークス | E4: 足立区 | F4: 大雲寺スターズ | G4: 江戸川区 | H4: 北原少年 | I4: 練馬区 | J4: ゼットタイガー | K4: 大田区 | L4: 西田野球クラブ | M4: 杉並区 | N4: ブルースカイズ | O4: 北区
A6: 1 | B6: ジュニアヤンガース | C6: Ix | D6: 球友ジュニアーズ | E6: Lx | F6: マッハブレーブス | G6: Nx | H6: ニュー愛宕 | I6: Fx | J6: 中板橋ボーイズ | K6: Cx | L6: 久我山イーグルス | M6: Mx | N6: 練馬ペガサス | O6: Kx
A7: 2 | B7: ブラックキラーズ | C7: Ix | D7: 池雪ジュニアストロング | E7: Lx | F7: 城北メッツ | G7: Nx | H7: 越中島ブレーブス | I7: Fx | J7: 旗の台クラブ | K7: Dx | L7: 高井戸東少年野球クラブ | M7: Mx | N7: 月島ライオンズ | O7: Ax
A8: 3 | B8: レッドファイヤーズ | C8: Ix | D8: 馬込ジャガース | E8: Lx | F8: 菊坂ファイヤーズ | G8: Gx | H8: 亀戸合同 | I8: Fx | J8: 元芝ハヤブサ | K8: Dx | L8: 桃五少年野球クラブ | M8: Mx | N8: 勝どきドリームNH | O8: Ax
A9: 4 | B9: 新田ファイヤーズ | C9: Ix | D9: 糀谷イーグルス | E9: Lx | F9: 駒込チャイルド | G9: Gx | H9: 元加賀 | I9: Fx | J9: 御殿山ファイターズ | K9: Dx | L9: 堀小スワローズ | M9: Mx | N9: 晴海アポローズ | O9: Ax
A10: 5 | B10: 西伊興若潮ジュニア | C10: Ix | D10: エンジェルス | E10: Hx | F10: 西千タイガース | G10: Gx | H10: 江東ジョーズ | I10: Fx | J10: 品川ブルーレーシング | K10: Dx | L10: しらさぎ | M10: Jx | N10: 中央バンディーズ | O10: Ax
A11: 6 | B11: 扇ターキーズ | C11: Ix | D11: トゥールスジュニア | E11: Hx | F11: 文京パワーズ | G11: Gx | H11: 江東ファイターズ | I11: Fx | J11: 品川レインボーズ | K11: Dx | L11: 葛西ファイターズ | M11: Jx | N11: 中央フェニックス | O11: Ax
A12: 7 | B12: 竹仲 | C12: Ix | D12: ブラザースクラブ | E12: Hx | F12: 礫川 | G12: Gx | H12: 七北クラブ | I12: Fx | J12: 港南メッツ | K12: Ex | L12: 興宮ファイターズ | M12: Jx | N12: 日本橋ファイターズ | O12: Ax
A13: 8 | B13: 東伊興シャインズ | C13: Ix | D13: 荒川コンドル | E13: Hx | F13: 茗荷谷クラブ | G13: Gx | H13: 深川ジャイアンツ | I13: Fx | J13: 高輪クラブ | K13: Ex | L13: 松島ファルコンズ | M13: Jx | N13: 東山エイターズ
A14: 9 | B14: いちがやチーターズ | D14: KCレッドジャッカル | F14: リトルジャイアンツ | G14: Bx | H14: 深川ライナーズ | I14: Fx | J14: 高輪台ファイターズ | K14: Ex | L14: 南篠崎ランチャーズ | M14: Jx | N14: 不動パイレーツ
A15: 10 | B15: 新宿ドリーム | D15: ナインスターズ | F15: 金町ジャイアンツ | G15: Bx | H15: 深川レッドソックス | I15: Fx | J15: 本村クラブ | K15: Ex | L15: 本一色イーグルス | M15: Jx | N15: 目黒ペガサス
A16: 11 | B16: 淀四ライオンズ | D16: 九品仏ペガサス | F16: 若羽クラブ | H16: 大島タイガース | I16: Fx | J16: 麻布キッズ | K16: Ex | L16: 雷サンダース | M16: Jx | N16: 駒込ベアーズ
A17: 12 | B17: 落一アポロ | D17: 山野レッドイーグルス | F17: 渋谷レッドソックス | H17: 東雲メッツ | I17: Fx | J17: 浅草ベースボールクラブ | L17: サンダースターズ | N17: 大塚スネイクス
A18: 13 | B18: 落合コメッツ | D18: 船橋フェニックス | F18: 初台ビクトリー | H18: 東王ジュニア | I18: Fx | J18: サンジュニア | L18: 調布メンパース | N18: 豊島ブレイズ
A19: 14 | B19: 麹町ドリームス | D19: 用賀ベアーズ | F19: 富ヶ谷ノーティーボーイズ | H19: 東陽フェニックス | I19: Fx | J19: リトルロジャース | L19: 向陽台スターキッズ | N19: コンバッツ
